Publisher Label,Publisher URI,Body Name,Service Area Categorisation,Service Division Categorisation,Expenses Type,Date,Transaction Number,Amount,Capital or Revenue,Supplier Name,Merchant Category
Peterborough,http://opendatacommunities.org/id/unitary-authority/peterborough,Peterborough City Council,More than one Service Area Category,More than one Service Division,Supplies and Services,03/09/2012 00:00,463786,7261.94,REVENUE,Loomis UK Ltd,
Peterborough,http://opendatacommunities.org/id/unitary-authority/peterborough,Peterborough City Council,More than one Service Area Category,More than one Service Division,Supplies and Services,03/09/2012 00:00,464228,1735.79,REVENUE,Loomis UK Ltd,
Peterborough,http://opendatacommunities.org/id/unitary-authority/peterborough,Peterborough City Council,Children's & Education Services - Children's Social Care,More than one Service Division,Employees,03/09/2012 00:00,472826,1624.96,REVENUE,Capita Resourcing Ltd,
Peterborough,http://opendatacommunities.org/id/unitary-authority/peterborough,Peterborough City Council,Children's & Education Services - Children's Social Care,Children Looked After,Supplies and Services - Transfer Payments,03/09/2012 00:00,476110,3703.88,REVENUE,Fosterplus Ltd,
Peterborough,http://opendatacommunities.org/id/unitary-authority/peterborough,Peterborough City Council,Children's & Education Services - Children's Social Care,Children Looked After,Supplies and Services - Transfer Payments,03/09/2012 00:00,476113,4441.68,REVENUE,Fosterplus Ltd,
Peterborough,http://opendatacommunities.org/id/unitary-authority/peterborough,Peterborough City Council,Children's & Education Services - Children's Social Care,Family Support Services,Employees,03/09/2012 00:00,476345,1530,REVENUE,Service Care Solutions Ltd,
Peterborough,http://opendatacommunities.org/id/unitary-authority/peterborough,Peterborough City Council,Children's & Education Services - Children's Social Care,More than one Service Division,Employees,03/09/2012 00:00,477139,1603.28,REVENUE,Capita Resourcing Ltd,
Peterborough,http://opendatacommunities.org/id/unitary-authority/peterborough,Peterborough City Council,Children's & Education Services - Children's Social Care,Children Looked After,Supplies and Services - Transfer Payments,03/09/2012 00:00,477270,3620.8,REVENUE,Archway Care Ltd,
Peterborough,http://opendatacommunities.org/id/unitary-authority/peterborough,Peterborough City Council,Children's & Education Services - Children's Social Care,Children Looked After,Supplies and Services - Transfer Payments,03/09/2012 00:00,477644,3560.78,REVENUE,Key2,
Peterborough,http://opendatacommunities.org/id/unitary-authority/peterborough,Peterborough City Council,Children's & Education Services - Children's Social Care,Children Looked After,Supplies and Services - Transfer Payments,03/09/2012 00:00,477648,1267.2,REVENUE,Key2,
Peterborough,http://opendatacommunities.org/id/unitary-authority/peterborough,Peterborough City Council,Support Services,Support Services,Premises,03/09/2012 00:00,477758,558474.48,REVENUE,Zurich Insurance Company,
Peterborough,http://opendatacommunities.org/id/unitary-authority/peterborough,Peterborough City Council,Support Services,Support Services,Supplies and Services,03/09/2012 00:00,477838,-594,REVENUE,Danwood Group Limited,
Peterborough,http://opendatacommunities.org/id/unitary-authority/peterborough,Peterborough City Council,Planning Services,Community Development,Supplies and Services,03/09/2012 00:00,477921,666,REVENUE,Triple SSS Limited,
Peterborough,http://opendatacommunities.org/id/unitary-authority/peterborough,Peterborough City Council,Children's & Education Services - Children's Social Care,More than one Service Division,Employees,03/09/2012 00:00,477989,1559.95,REVENUE,Capita Resourcing Ltd,
Peterborough,http://opendatacommunities.org/id/unitary-authority/peterborough,Peterborough City Council,Children's & Education Services - Children's Social Care,Family Support Services,Supplies and Services,03/09/2012 00:00,478037,742.6,REVENUE,Sahara Community Care Services,
Peterborough,http://opendatacommunities.org/id/unitary-authority/peterborough,Peterborough City Council,Children's & Education Services - Children's Social Care,Family Support Services,Supplies and Services,03/09/2012 00:00,478047,615.1,REVENUE,Sahara Community Care Services,
Peterborough,http://opendatacommunities.org/id/unitary-authority/peterborough,Peterborough City Council,Children's & Education Services - Children's Social Care,Family Support Services,Supplies and Services,03/09/2012 00:00,478049,550.64,REVENUE,Sahara Community Care Services,
Peterborough,http://opendatacommunities.org/id/unitary-authority/peterborough,Peterborough City Council,Capital,Capital,Capital Pending Update to BS,03/09/2012 00:00,478065,43921.92,CAPITAL,Harmony Roofing Serv. Ltd,
Peterborough,http://opendatacommunities.org/id/unitary-authority/peterborough,Peterborough City Council,Adult Social Care,Older People,Supplies and Services,03/09/2012 00:00,478240,3029.43,REVENUE,Sahara Community Care Services,
Peterborough,http://opendatacommunities.org/id/unitary-authority/peterborough,Peterborough City Council,Adult Social Care,Older People,Supplies and Services,03/09/2012 00:00,478245,534.34,REVENUE,Sahara Community Care Services,
Peterborough,http://opendatacommunities.org/id/unitary-authority/peterborough,Peterborough City Council,Children's & Education Services - Children's Social Care,Children Looked After,Supplies and Services,03/09/2012 00:00,478308,9854.21,REVENUE,St Andrew's Healthcare,
Peterborough,http://opendatacommunities.org/id/unitary-authority/peterborough,Peterborough City Council,Adult Social Care,Older People,Supplies and Services,03/09/2012 00:00,478312,712.45,REVENUE,Sahara Community Care Services,
Peterborough,http://opendatacommunities.org/id/unitary-authority/peterborough,Peterborough City Council,Adult Social Care,Older People,Supplies and Services,03/09/2012 00:00,478313,1157.39,REVENUE,Sahara Community Care Services,
Peterborough,http://opendatacommunities.org/id/unitary-authority/peterborough,Peterborough City Council,Adult Social Care,Older People,Supplies and Services,03/09/2012 00:00,478314,743.77,REVENUE,Sahara Community Care Services,
Peterborough,http://opendatacommunities.org/id/unitary-authority/peterborough,Peterborough City Council,Adult Social Care,Adult Learning Disabilities,Third Party Payments,03/09/2012 00:00,478388,4802.28,REVENUE,Thera East Anglia,
Peterborough,http://opendatacommunities.org/id/unitary-authority/peterborough,Peterborough City Council,Adult Social Care,Adult Learning Disabilities,Supplies and Services,03/09/2012 00:00,478389,4382.78,REVENUE,HOMEFIELD COLLEGE,
Peterborough,http://opendatacommunities.org/id/unitary-authority/peterborough,Peterborough City Council,Support Services,Support Services,Premises,03/09/2012 00:00,478465,1837.18,REVENUE,Beebys Ltd,
Peterborough,http://opendatacommunities.org/id/unitary-authority/peterborough,Peterborough City Council,Children's & Education Services - Children's Social Care,Children Looked After,Supplies and Services - Transfer Payments,03/09/2012 00:00,478484,2802.17,REVENUE,IAS TACT,
Peterborough,http://opendatacommunities.org/id/unitary-authority/peterborough,Peterborough City Council,Children's & Education Services - Children's Social Care,Children Looked After,Supplies and Services - Transfer Payments,03/09/2012 00:00,478486,2802.17,REVENUE,IAS TACT,
Peterborough,http://opendatacommunities.org/id/unitary-authority/peterborough,Peterborough City Council,Children's & Education Services - Children's Social Care,Children Looked After,Supplies and Services - Transfer Payments,03/09/2012 00:00,478487,2927.33,REVENUE,IAS TACT,
Peterborough,http://opendatacommunities.org/id/unitary-authority/peterborough,Peterborough City Council,Children's & Education Services - Children's Social Care,Children Looked After,Supplies and Services - Transfer Payments,03/09/2012 00:00,478488,2927.33,REVENUE,IAS TACT,
Peterborough,http://opendatacommunities.org/id/unitary-authority/peterborough,Peterborough City Council,Children's & Education Services - Children's Social Care,Children Looked After,Supplies and Services - Transfer Payments,03/09/2012 00:00,478489,2802.17,REVENUE,IAS TACT,
Peterborough,http://opendatacommunities.org/id/unitary-authority/peterborough,Peterborough City Council,Children's & Education Services - Children's Social Care,Children Looked After,Supplies and Services - Transfer Payments,03/09/2012 00:00,478490,2949.65,REVENUE,IAS TACT,
Peterborough,http://opendatacommunities.org/id/unitary-authority/peterborough,Peterborough City Council,Children's & Education Services - Children's Social Care,Children Looked After,Supplies and Services - Transfer Payments,03/09/2012 00:00,478494,10796,REVENUE,Lincoln House Childrens Services,
Peterborough,http://opendatacommunities.org/id/unitary-authority/peterborough,Peterborough City Council,Adult Social Care,Adult Learning Disabilities,Third Party Payments,03/09/2012 00:00,478601,2267.2,REVENUE,Augusta Care Ltd,
Peterborough,http://opendatacommunities.org/id/unitary-authority/peterborough,Peterborough City Council,Support Services,Support Services,Supplies and Services,03/09/2012 00:00,479117,672,REVENUE,Clear Channel UK Ltd,
Peterborough,http://opendatacommunities.org/id/unitary-authority/peterborough,Peterborough City Council,Adult Social Care,Adult Learning Disabilities,Supplies and Services,03/09/2012 00:00,479145,650,REVENUE,Thera East Anglia,
Peterborough,http://opendatacommunities.org/id/unitary-authority/peterborough,Peterborough City Council,Adult Social Care,Older People,Supplies and Services,03/09/2012 00:00,479156,1152.5,REVENUE,Bestcare Ltd,
Peterborough,http://opendatacommunities.org/id/unitary-authority/peterborough,Peterborough City Council,Adult Social Care,Older People,Supplies and Services,03/09/2012 00:00,479188,567,REVENUE,West Anglia Crossroads Ltd,
Peterborough,http://opendatacommunities.org/id/unitary-authority/peterborough,Peterborough City Council,Highways and Transport Services,Parking Services,Supplies and Services,03/09/2012 00:00,479315,1582.66,REVENUE,Loomis UK Ltd,
Peterborough,http://opendatacommunities.org/id/unitary-authority/peterborough,Peterborough City Council,Capital,Capital,Capital Pending Update to BS,03/09/2012 00:00,479353,75000,CAPITAL,Ely Diocesan Board of Finance,
Peterborough,http://opendatacommunities.org/id/unitary-authority/peterborough,Peterborough City Council,Adult Social Care,Older People,Supplies and Services,03/09/2012 00:00,479380,639.48,REVENUE,Care UK Homecare Ltd,
Peterborough,http://opendatacommunities.org/id/unitary-authority/peterborough,Peterborough City Council,Children's & Education Services - Children's Social Care,Children Looked After,Supplies and Services - Transfer Payments,03/09/2012 00:00,479398,1771.65,REVENUE,Synergy Fostering Ltd,
Peterborough,http://opendatacommunities.org/id/unitary-authority/peterborough,Peterborough City Council,Adult Social Care,Adult Learning Disabilities,Third Party Payments,03/09/2012 00:00,479512,5999.36,REVENUE,K2 CARE LTD,
Peterborough,http://opendatacommunities.org/id/unitary-authority/peterborough,Peterborough City Council,Adult Social Care,Older People,Supplies and Services,03/09/2012 00:00,479513,4802.12,REVENUE,K2 CARE LTD,
Peterborough,http://opendatacommunities.org/id/unitary-authority/peterborough,Peterborough City Council,Adult Social Care,Older People,Supplies and Services,03/09/2012 00:00,479522,4802.12,REVENUE,K2 CARE LTD,
Peterborough,http://opendatacommunities.org/id/unitary-authority/peterborough,Peterborough City Council,Adult Social Care,Adult Learning Disabilities,Third Party Payments,03/09/2012 00:00,479523,1872,REVENUE,K2 CARE LTD,
Peterborough,http://opendatacommunities.org/id/unitary-authority/peterborough,Peterborough City Council,Adult Social Care,Older People,Supplies and Services,03/09/2012 00:00,479638,784,REVENUE,Care UK Homecare Ltd,
Peterborough,http://opendatacommunities.org/id/unitary-authority/peterborough,Peterborough City Council,Adult Social Care,Older People,Supplies and Services,03/09/2012 00:00,479639,2548,REVENUE,Care UK Homecare Ltd,
Peterborough,http://opendatacommunities.org/id/unitary-authority/peterborough,Peterborough City Council,Adult Social Care,Older People,Supplies and Services,03/09/2012 00:00,479641,2584,REVENUE,Care UK Homecare Ltd,
Peterborough,http://opendatacommunities.org/id/unitary-authority/peterborough,Peterborough City Council,Adult Social Care,Older People,Supplies and Services,03/09/2012 00:00,479642,1826,REVENUE,Care UK Homecare Ltd,
Peterborough,http://opendatacommunities.org/id/unitary-authority/peterborough,Peterborough City Council,Adult Social Care,Older People,Supplies and Services,03/09/2012 00:00,479646,2515.24,REVENUE,Care UK Homecare Ltd,
Peterborough,http://opendatacommunities.org/id/unitary-authority/peterborough,Peterborough City Council,Adult Social Care,Older People,Supplies and Services,03/09/2012 00:00,479647,2241.6,REVENUE,Care UK Homecare Ltd,
Peterborough,http://opendatacommunities.org/id/unitary-authority/peterborough,Peterborough City Council,Adult Social Care,Older People,Supplies and Services,03/09/2012 00:00,479658,676.69,REVENUE,Care UK Homecare Ltd,
Peterborough,http://opendatacommunities.org/id/unitary-authority/peterborough,Peterborough City Council,Environmental and Regulatory Services,"Cemetery, Crematorium & Mortuary Services",Supplies and Services,03/09/2012 00:00,479718,749.25,REVENUE,Norwich Books and Music,
Peterborough,http://opendatacommunities.org/id/unitary-authority/peterborough,Peterborough City Council,Adult Social Care,Support Services & Management Costs,Supplies and Services,03/09/2012 00:00,479841,1086.55,REVENUE,Danwood Group Limited,
Peterborough,http://opendatacommunities.org/id/unitary-authority/peterborough,Peterborough City Council,Adult Social Care,Older People,Supplies and Services,03/09/2012 00:00,479916,1357,REVENUE,Care UK Homecare Ltd,
Peterborough,http://opendatacommunities.org/id/unitary-authority/peterborough,Peterborough City Council,Children's & Education Services - Children's Social Care,Children Looked After,Supplies and Services - Transfer Payments,03/09/2012 00:00,480167,3454.33,REVENUE,Synergy Fostering Ltd,
Peterborough,http://opendatacommunities.org/id/unitary-authority/peterborough,Peterborough City Council,Adult Social Care,Adult Mental Health,Supplies and Services,03/09/2012 00:00,480206,774.5,REVENUE,Sahara Community Care Services,
Peterborough,http://opendatacommunities.org/id/unitary-authority/peterborough,Peterborough City Council,Children's & Education Services - Children's Social Care,Service Strategy,Supplies and Services,03/09/2012 00:00,480209,27588,REVENUE,MCBN Management Consultants Ltd,
Peterborough,http://opendatacommunities.org/id/unitary-authority/peterborough,Peterborough City Council,Highways and Transport Services,Public Transport,Supplies and Services,03/09/2012 00:00,480277,7407.97,REVENUE,Stagecoach in Peterborough,
Peterborough,http://opendatacommunities.org/id/unitary-authority/peterborough,Peterborough City Council,Highways and Transport Services,Public Transport,Supplies and Services,03/09/2012 00:00,480279,6841.08,REVENUE,Stagecoach in Peterborough,
Peterborough,http://opendatacommunities.org/id/unitary-authority/peterborough,Peterborough City Council,Children's & Education Services - Children's Social Care,Family Support Services,Employees,03/09/2012 00:00,480418,1530,REVENUE,Medicare First,
Peterborough,http://opendatacommunities.org/id/unitary-authority/peterborough,Peterborough City Council,Children's & Education Services - Children's Social Care,Family Support Services,Employees,03/09/2012 00:00,480420,1440,REVENUE,Medicare First,
Peterborough,http://opendatacommunities.org/id/unitary-authority/peterborough,Peterborough City Council,Support Services,Support Services,Premises,03/09/2012 00:00,480456,14969.8,REVENUE,ACE European Group Ltd,
Peterborough,http://opendatacommunities.org/id/unitary-authority/peterborough,Peterborough City Council,Highways and Transport Services,Public Transport,Supplies and Services,03/09/2012 00:00,480826,15525,REVENUE,First Eastern Counties Buses Ltd,
Peterborough,http://opendatacommunities.org/id/unitary-authority/peterborough,Peterborough City Council,Children's & Education Services - Children's Social Care,Other Children's & Families Services,Supplies and Services,03/09/2012 00:00,480840,4200,REVENUE,"Ganteaume, Ms Natalie",
Peterborough,http://opendatacommunities.org/id/unitary-authority/peterborough,Peterborough City Council,Environmental and Regulatory Services,"Cemetery, Crematorium & Mortuary Services",Supplies and Services,03/09/2012 00:00,480933,645.78,REVENUE,Scribes Ltd,
Peterborough,http://opendatacommunities.org/id/unitary-authority/peterborough,Peterborough City Council,Planning Services,Economic Development,Supplies and Services,03/09/2012 00:00,481972,4500,REVENUE,Aqua Environmental Services,
Peterborough,http://opendatacommunities.org/id/unitary-authority/peterborough,Peterborough City Council,Children's & Education Services - Children's Social Care,Family Support Services,Employees,03/09/2012 00:00,482261,1550.4,REVENUE,Service Care Solutions Ltd,
Peterborough,http://opendatacommunities.org/id/unitary-authority/peterborough,Peterborough City Council,Capital,Capital,Capital Pending Update to BS,03/09/2012 00:00,482459,301611.4,CAPITAL,E N Suiter & Sons Ltd,
Peterborough,http://opendatacommunities.org/id/unitary-authority/peterborough,Peterborough City Council,Adult Social Care,Adult Learning Disabilities,Supplies and Services,03/09/2012 00:00,482653,3097.78,REVENUE,British Telecom PLC,
Peterborough,http://opendatacommunities.org/id/unitary-authority/peterborough,Peterborough City Council,Children's & Education Services - Children's Social Care,Children Looked After,Supplies and Services - Transfer Payments,03/09/2012 00:00,482678,1771.65,REVENUE,Synergy Fostering Ltd,
Peterborough,http://opendatacommunities.org/id/unitary-authority/peterborough,Peterborough City Council,Children's & Education Services - Children's Social Care,Children Looked After,Supplies and Services,03/09/2012 00:00,482709,3600,REVENUE,Sharpe Focus Ltd,
Peterborough,http://opendatacommunities.org/id/unitary-authority/peterborough,Peterborough City Council,Central Services to the Public,Elections,Supplies and Services,03/09/2012 00:00,482934,2083.37,REVENUE,Royal Mail,
Peterborough,http://opendatacommunities.org/id/unitary-authority/peterborough,Peterborough City Council,Support Services,Support Services,Supplies and Services,03/09/2012 00:00,482944,4884,REVENUE,Criminal Records Bureau,
Peterborough,http://opendatacommunities.org/id/unitary-authority/peterborough,Peterborough City Council,More than one Service Area Category,More than one Service Division,Supplies and Services,03/09/2012 00:00,482955,512.89,REVENUE,Vodafone Ltd,
Peterborough,http://opendatacommunities.org/id/unitary-authority/peterborough,Peterborough City Council,Adult Social Care,Older People,More than one Expenses Type,03/09/2012 00:00,482957,2414.21,REVENUE,Fieldwork Admin Team (IMPREST),
Peterborough,http://opendatacommunities.org/id/unitary-authority/peterborough,Peterborough City Council,Adult Social Care,Older People,Supplies and Services,03/09/2012 00:00,482975,500,REVENUE,Postage By Phone - Pitney Bowes Ltd,
Peterborough,http://opendatacommunities.org/id/unitary-authority/peterborough,Peterborough City Council,Children's & Education Services - Education,Other School -related Education Functions,Transport,03/09/2012 00:00,483003,648,REVENUE,A2B Euro Cars,
Peterborough,http://opendatacommunities.org/id/unitary-authority/peterborough,Peterborough City Council,Children's & Education Services - Education,Other School -related Education Functions,Transport,03/09/2012 00:00,483004,968.4,REVENUE,A2B Euro Cars,
Peterborough,http://opendatacommunities.org/id/unitary-authority/peterborough,Peterborough City Council,Children's & Education Services - Education,Other School -related Education Functions,Transport,03/09/2012 00:00,483005,576,REVENUE,A2B Euro Cars,
Peterborough,http://opendatacommunities.org/id/unitary-authority/peterborough,Peterborough City Council,Children's & Education Services - Education,Other School -related Education Functions,Transport,03/09/2012 00:00,483006,864,REVENUE,A2B Euro Cars,
Peterborough,http://opendatacommunities.org/id/unitary-authority/peterborough,Peterborough City Council,Children's & Education Services - Education,Other School -related Education Functions,Transport,03/09/2012 00:00,483009,1044,REVENUE,A2B Euro Cars,
Peterborough,http://opendatacommunities.org/id/unitary-authority/peterborough,Peterborough City Council,More than one Service Area Category,More than one Service Division,Transport,03/09/2012 00:00,483010,1242,REVENUE,A2B Euro Cars,
Peterborough,http://opendatacommunities.org/id/unitary-authority/peterborough,Peterborough City Council,Children's & Education Services - Education,Other School -related Education Functions,Transport,03/09/2012 00:00,483011,504,REVENUE,A2B Euro Cars,
Peterborough,http://opendatacommunities.org/id/unitary-authority/peterborough,Peterborough City Council,Children's & Education Services - Education,Other School -related Education Functions,Transport,03/09/2012 00:00,483012,1152,REVENUE,A2B Euro Cars,
Peterborough,http://opendatacommunities.org/id/unitary-authority/peterborough,Peterborough City Council,Children's & Education Services - Education,Other School -related Education Functions,Transport,03/09/2012 00:00,483013,936,REVENUE,A2B Euro Cars,
Peterborough,http://opendatacommunities.org/id/unitary-authority/peterborough,Peterborough City Council,Children's & Education Services - Education,Other School -related Education Functions,Transport,03/09/2012 00:00,483014,1440,REVENUE,A2B Euro Cars,
Peterborough,http://opendatacommunities.org/id/unitary-authority/peterborough,Peterborough City Council,Children's & Education Services - Education,Other School -related Education Functions,Transport,03/09/2012 00:00,483015,1828.8,REVENUE,A2B Euro Cars,
Peterborough,http://opendatacommunities.org/id/unitary-authority/peterborough,Peterborough City Council,Children's & Education Services - Education,Other School -related Education Functions,Transport,03/09/2012 00:00,483016,1440,REVENUE,A2B Euro Cars,
Peterborough,http://opendatacommunities.org/id/unitary-authority/peterborough,Peterborough City Council,Children's & Education Services - Education,Other School -related Education Functions,Transport,03/09/2012 00:00,483018,828,REVENUE,A2B Euro Cars,
Peterborough,http://opendatacommunities.org/id/unitary-authority/peterborough,Peterborough City Council,Children's & Education Services - Education,Other School -related Education Functions,Transport,03/09/2012 00:00,483019,537.6,REVENUE,A2B Euro Cars,
Peterborough,http://opendatacommunities.org/id/unitary-authority/peterborough,Peterborough City Council,More than one Service Area Category,More than one Service Division,Transport,03/09/2012 00:00,483020,1315.2,REVENUE,A2B Euro Cars,
Peterborough,http://opendatacommunities.org/id/unitary-authority/peterborough,Peterborough City Council,Children's & Education Services - Education,Other School -related Education Functions,Transport,03/09/2012 00:00,483021,1310.4,REVENUE,A2B Euro Cars,
Peterborough,http://opendatacommunities.org/id/unitary-authority/peterborough,Peterborough City Council,Children's & Education Services - Education,Other School -related Education Functions,Transport,03/09/2012 00:00,483022,1260,REVENUE,A2B Euro Cars,
Peterborough,http://opendatacommunities.org/id/unitary-authority/peterborough,Peterborough City Council,Children's & Education Services - Education,Other School -related Education Functions,Transport,03/09/2012 00:00,483023,792,REVENUE,A2B Euro Cars,
Peterborough,http://opendatacommunities.org/id/unitary-authority/peterborough,Peterborough City Council,Children's & Education Services - Education,Other School -related Education Functions,Transport,03/09/2012 00:00,483025,1404,REVENUE,A2B Euro Cars,
Peterborough,http://opendatacommunities.org/id/unitary-authority/peterborough,Peterborough City Council,Children's & Education Services - Education,Other School -related Education Functions,Transport,03/09/2012 00:00,483026,1296,REVENUE,A2B Euro Cars,
Peterborough,http://opendatacommunities.org/id/unitary-authority/peterborough,Peterborough City Council,Children's & Education Services - Education,Other School -related Education Functions,Transport,03/09/2012 00:00,483027,720,REVENUE,A2B Euro Cars,
Peterborough,http://opendatacommunities.org/id/unitary-authority/peterborough,Peterborough City Council,More than one Service Area Category,More than one Service Division,Transport,03/09/2012 00:00,483028,1128,REVENUE,Woodgrange Travel Ltd t/a DiamondCars,
Peterborough,http://opendatacommunities.org/id/unitary-authority/peterborough,Peterborough City Council,Children's & Education Services - Education,Other School -related Education Functions,Transport,03/09/2012 00:00,483029,828,REVENUE,Goldstar Cabs Ltd,
Peterborough,http://opendatacommunities.org/id/unitary-authority/peterborough,Peterborough City Council,More than one Service Area Category,More than one Service Division,More than one Expenses Type,03/09/2012 00:00,483038,10968.24,"Mixture of Capital, Revenue and/or Balance Sheet",Richard Masham Building Services,
Peterborough,http://opendatacommunities.org/id/unitary-authority/peterborough,Peterborough City Council,More than one Service Area Category,More than one Service Division,More than one Expenses Type,03/09/2012 00:00,483043,2874,"Mixture of Capital, Revenue and/or Balance Sheet",T J Electrical Engineering & Contractors Ltd,
Peterborough,http://opendatacommunities.org/id/unitary-authority/peterborough,Peterborough City Council,More than one Service Area Category,More than one Service Division,More than one Expenses Type,03/09/2012 00:00,483052,12698.4,"Mixture of Capital, Revenue and/or Balance Sheet",Burmor Construction,
Peterborough,http://opendatacommunities.org/id/unitary-authority/peterborough,Peterborough City Council,More than one Service Area Category,More than one Service Division,More than one Expenses Type,03/09/2012 00:00,483055,1218.37,"Mixture of Capital, Revenue and/or Balance Sheet",Bloom & Wake Ltd,
Peterborough,http://opendatacommunities.org/id/unitary-authority/peterborough,Peterborough City Council,More than one Service Area Category,More than one Service Division,More than one Expenses Type,03/09/2012 00:00,483070,4213,"Mixture of Capital, Revenue and/or Balance Sheet",Stannah Lift Services,
Peterborough,http://opendatacommunities.org/id/unitary-authority/peterborough,Peterborough City Council,More than one Service Area Category,More than one Service Division,More than one Expenses Type,03/09/2012 00:00,483073,6296.4,"Mixture of Capital, Revenue and/or Balance Sheet",Warics Ltd,
Peterborough,http://opendatacommunities.org/id/unitary-authority/peterborough,Peterborough City Council,Adult Social Care,Older People,Supplies and Services,03/09/2012 00:00,483079,1132.73,REVENUE,Redacted Personal Data,
Peterborough,http://opendatacommunities.org/id/unitary-authority/peterborough,Peterborough City Council,Adult Social Care,Older People,Supplies and Services,03/09/2012 00:00,483080,1132.73,REVENUE,Redacted Personal Data,
Peterborough,http://opendatacommunities.org/id/unitary-authority/peterborough,Peterborough City Council,Adult Social Care,Older People,Supplies and Services,05/09/2012 00:00,459166,729.89,REVENUE,MEARS GROUP,
Peterborough,http://opendatacommunities.org/id/unitary-authority/peterborough,Peterborough City Council,Adult Social Care,Adult Learning Disabilities,Third Party Payments,05/09/2012 00:00,463384,9800,REVENUE,PRIORY GROUP LTD,
Peterborough,http://opendatacommunities.org/id/unitary-authority/peterborough,Peterborough City Council,Children's & Education Services - Education,Secondary,More than one Expenses Type,05/09/2012 00:00,471929,937.67,REVENUE,Fletton Student Support Centre,
Peterborough,http://opendatacommunities.org/id/unitary-authority/peterborough,Peterborough City Council,Adult Social Care,Older People,Supplies and Services,05/09/2012 00:00,474386,-2391.72,REVENUE,AVERY HOMES PETERBOROUGH LTD,
Peterborough,http://opendatacommunities.org/id/unitary-authority/peterborough,Peterborough City Council,Children's & Education Services - Education,Other School -related Education Functions,Supplies and Services,05/09/2012 00:00,474486,2088.55,REVENUE,Nottingham City Council,
Peterborough,http://opendatacommunities.org/id/unitary-authority/peterborough,Peterborough City Council,Adult Social Care,Adult Learning Disabilities,Supplies and Services,05/09/2012 00:00,475336,10509.75,REVENUE,Rethink Mental Illness,
Peterborough,http://opendatacommunities.org/id/unitary-authority/peterborough,Peterborough City Council,Children's & Education Services - Children's Social Care,Children's Services - Commissioning and Social Work,Supplies and Services,05/09/2012 00:00,475851,1200,REVENUE,Cross Keys Homes,
Peterborough,http://opendatacommunities.org/id/unitary-authority/peterborough,Peterborough City Council,Adult Social Care,Adult Learning Disabilities,Supplies and Services,05/09/2012 00:00,476133,2412.6,REVENUE,Linkage Community Trust Limited,
Peterborough,http://opendatacommunities.org/id/unitary-authority/peterborough,Peterborough City Council,Children's & Education Services - Children's Social Care,Children Looked After,Employees,05/09/2012 00:00,476193,1278.28,REVENUE,Service Care Solutions Ltd,
Peterborough,http://opendatacommunities.org/id/unitary-authority/peterborough,Peterborough City Council,Housing Services,Private Sector Housing Renewal,Supplies and Services,05/09/2012 00:00,476416,1496,REVENUE,T G M Maintenance,
Peterborough,http://opendatacommunities.org/id/unitary-authority/peterborough,Peterborough City Council,Environmental and Regulatory Services,"Cemetery, Crematorium & Mortuary Services",Supplies and Services,05/09/2012 00:00,476846,1060.8,REVENUE,"Strickland, Mr A M",
Peterborough,http://opendatacommunities.org/id/unitary-authority/peterborough,Peterborough City Council,Highways and Transport Services,Street Lighting,Premises,05/09/2012 00:00,476986,661.2,REVENUE,E.ON Energy,
Peterborough,http://opendatacommunities.org/id/unitary-authority/peterborough,Peterborough City Council,Adult Social Care,Adult Learning Disabilities,Third Party Payments,05/09/2012 00:00,477729,9800,REVENUE,PRIORY GROUP LTD,
Peterborough,http://opendatacommunities.org/id/unitary-authority/peterborough,Peterborough City Council,Children's & Education Services - Children's Social Care,Children Looked After,Supplies and Services - Transfer Payments,05/09/2012 00:00,477764,13263.66,REVENUE,Direct Care Limited,
Peterborough,http://opendatacommunities.org/id/unitary-authority/peterborough,Peterborough City Council,Children's & Education Services - Children's Social Care,Children Looked After,Supplies and Services - Transfer Payments,05/09/2012 00:00,477765,13263.66,REVENUE,Direct Care Limited,
Peterborough,http://opendatacommunities.org/id/unitary-authority/peterborough,Peterborough City Council,Children's & Education Services - Children's Social Care,Children Looked After,Supplies and Services - Transfer Payments,05/09/2012 00:00,477767,13263.66,REVENUE,Direct Care Limited,
Peterborough,http://opendatacommunities.org/id/unitary-authority/peterborough,Peterborough City Council,Children's & Education Services - Children's Social Care,Children Looked After,Supplies and Services - Transfer Payments,05/09/2012 00:00,478091,17340,REVENUE,Positive Steps (Care Services) Ltd,
Peterborough,http://opendatacommunities.org/id/unitary-authority/peterborough,Peterborough City Council,Housing Services,Private Sector Housing Renewal,Supplies and Services,05/09/2012 00:00,478301,858.5,REVENUE,Fletton Electrics Ltd,
Peterborough,http://opendatacommunities.org/id/unitary-authority/peterborough,Peterborough City Council,Adult Social Care,Adult Learning Disabilities,Supplies and Services,05/09/2012 00:00,478562,3270.8,REVENUE,Craegmoor Priory Group,
Peterborough,http://opendatacommunities.org/id/unitary-authority/peterborough,Peterborough City Council,Adult Social Care,Adult Learning Disabilities,Supplies and Services,05/09/2012 00:00,478567,920.44,REVENUE,Craegmoor Priory Group,
Peterborough,http://opendatacommunities.org/id/unitary-authority/peterborough,Peterborough City Council,Adult Social Care,Adult Learning Disabilities,Supplies and Services,05/09/2012 00:00,478582,3218.8,REVENUE,Craegmoor Priory Group,
Peterborough,http://opendatacommunities.org/id/unitary-authority/peterborough,Peterborough City Council,Support Services,Support Services,Premises,05/09/2012 00:00,479090,5522.4,REVENUE,Princebuild Limited,
Peterborough,http://opendatacommunities.org/id/unitary-authority/peterborough,Peterborough City Council,Support Services,Support Services,Premises,05/09/2012 00:00,479092,2928,REVENUE,Princebuild Limited,
Peterborough,http://opendatacommunities.org/id/unitary-authority/peterborough,Peterborough City Council,Capital,Capital,Capital Pending Update to BS,05/09/2012 00:00,479094,9971.47,CAPITAL,Princebuild Limited,
Peterborough,http://opendatacommunities.org/id/unitary-authority/peterborough,Peterborough City Council,Highways and Transport Services,Street Lighting,Supplies and Services,05/09/2012 00:00,479103,1503,REVENUE,Telensa Limited,
Peterborough,http://opendatacommunities.org/id/unitary-authority/peterborough,Peterborough City Council,Children's & Education Services - Children's Social Care,Other Children's & Families Services,Supplies and Services,05/09/2012 00:00,479121,1900,REVENUE,HM Courts and Tribunals Service (HMCTS),
Peterborough,http://opendatacommunities.org/id/unitary-authority/peterborough,Peterborough City Council,Support Services,Support Services,Employees,05/09/2012 00:00,479154,540,REVENUE,Pentana Ltd,
Peterborough,http://opendatacommunities.org/id/unitary-authority/peterborough,Peterborough City Council,Children's & Education Services - Children's Social Care,Other Children's & Families Services,Supplies and Services,05/09/2012 00:00,479177,700,REVENUE,HM Courts and Tribunals Service (HMCTS),
Peterborough,http://opendatacommunities.org/id/unitary-authority/peterborough,Peterborough City Council,Children's & Education Services - Education,Early Years,Employees,05/09/2012 00:00,479224,561.6,REVENUE,Human Touch Training Ltd,
Peterborough,http://opendatacommunities.org/id/unitary-authority/peterborough,Peterborough City Council,Children's & Education Services - Children's Social Care,Children Looked After,Employees,05/09/2012 00:00,479310,2888.4,REVENUE,Eden Brown Ltd,
Peterborough,http://opendatacommunities.org/id/unitary-authority/peterborough,Peterborough City Council,Children's & Education Services - Children's Social Care,Family Support Services,Employees,05/09/2012 00:00,479364,1390.38,REVENUE,Capita Resourcing Ltd,
Peterborough,http://opendatacommunities.org/id/unitary-authority/peterborough,Peterborough City Council,Highways and Transport Services,"Transport planning, policy and strategy",Employees,05/09/2012 00:00,479366,1061.64,REVENUE,Randstad CPE,
Peterborough,http://opendatacommunities.org/id/unitary-authority/peterborough,Peterborough City Council,Highways and Transport Services,Street Lighting,Supplies and Services,05/09/2012 00:00,479375,554.4,REVENUE,UK Power Networks (operations) Ltd,
Peterborough,http://opendatacommunities.org/id/unitary-authority/peterborough,Peterborough City Council,Highways and Transport Services,Street Lighting,Supplies and Services,05/09/2012 00:00,479379,829.2,REVENUE,UK Power Networks (operations) Ltd,
Peterborough,http://opendatacommunities.org/id/unitary-authority/peterborough,Peterborough City Council,Highways and Transport Services,Street Lighting,Supplies and Services,05/09/2012 00:00,479384,554.4,REVENUE,UK Power Networks (operations) Ltd,
Peterborough,http://opendatacommunities.org/id/unitary-authority/peterborough,Peterborough City Council,Capital,Capital,Capital Pending Update to BS,05/09/2012 00:00,479388,624,CAPITAL,Ratcliff Land & Engineering Surveys,
Peterborough,http://opendatacommunities.org/id/unitary-authority/peterborough,Peterborough City Council,Environmental and Regulatory Services,Regulatory services,Employees,05/09/2012 00:00,479390,1316.46,REVENUE,Osborne Richardson,
Peterborough,http://opendatacommunities.org/id/unitary-authority/peterborough,Peterborough City Council,Adult Social Care,Older People,Supplies and Services,05/09/2012 00:00,479410,3206.82,REVENUE,FIELD HOUSE (EYE) LTD,
Peterborough,http://opendatacommunities.org/id/unitary-authority/peterborough,Peterborough City Council,Adult Social Care,Older People,Supplies and Services,05/09/2012 00:00,479419,1492.83,REVENUE,BUPA CARE SERVICES,
Peterborough,http://opendatacommunities.org/id/unitary-authority/peterborough,Peterborough City Council,Adult Social Care,Older People,Supplies and Services,05/09/2012 00:00,479422,1548.12,REVENUE,BUPA CARE SERVICES,
Peterborough,http://opendatacommunities.org/id/unitary-authority/peterborough,Peterborough City Council,Capital,Capital,Capital Pending Update to BS,05/09/2012 00:00,479675,995,CAPITAL,Countrywide Legal Indemnities,
Peterborough,http://opendatacommunities.org/id/unitary-authority/peterborough,Peterborough City Council,Capital,Capital,Capital Pending Update to BS,05/09/2012 00:00,479677,7450,CAPITAL,Countrywide Legal Indemnities,
Peterborough,http://opendatacommunities.org/id/unitary-authority/peterborough,Peterborough City Council,Adult Social Care,Older People,Supplies and Services,05/09/2012 00:00,479700,822.64,REVENUE,THOMAS RIDLEY & SON LTD,
Peterborough,http://opendatacommunities.org/id/unitary-authority/peterborough,Peterborough City Council,Adult Social Care,Older People,Supplies and Services,05/09/2012 00:00,479729,1719.17,REVENUE,Barchester Healthcare Homes Ltd,
Peterborough,http://opendatacommunities.org/id/unitary-authority/peterborough,Peterborough City Council,Adult Social Care,Older People,Supplies and Services,05/09/2012 00:00,479731,1505.36,REVENUE,CAREWATCH (F.P.S.),
Peterborough,http://opendatacommunities.org/id/unitary-authority/peterborough,Peterborough City Council,Adult Social Care,Older People,Supplies and Services,05/09/2012 00:00,479732,3788.43,REVENUE,Barchester Healthcare Homes Ltd,
Peterborough,http://opendatacommunities.org/id/unitary-authority/peterborough,Peterborough City Council,Adult Social Care,Older People,Supplies and Services,05/09/2012 00:00,479733,3788.43,REVENUE,Barchester Healthcare Homes Ltd,
Peterborough,http://opendatacommunities.org/id/unitary-authority/peterborough,Peterborough City Council,Adult Social Care,Older People,Supplies and Services,05/09/2012 00:00,479736,3862.38,REVENUE,Barchester Healthcare Homes Ltd,
Peterborough,http://opendatacommunities.org/id/unitary-authority/peterborough,Peterborough City Council,Adult Social Care,Older People,Supplies and Services,05/09/2012 00:00,479739,3075.74,REVENUE,Barchester Healthcare Homes Ltd,
Peterborough,http://opendatacommunities.org/id/unitary-authority/peterborough,Peterborough City Council,Adult Social Care,Older People,Supplies and Services,05/09/2012 00:00,479743,3605.3,REVENUE,Barchester Healthcare Homes Ltd,
Peterborough,http://opendatacommunities.org/id/unitary-authority/peterborough,Peterborough City Council,Adult Social Care,Older People,Supplies and Services,05/09/2012 00:00,479759,4287.38,REVENUE,Barchester Healthcare Homes Ltd,
Peterborough,http://opendatacommunities.org/id/unitary-authority/peterborough,Peterborough City Council,Adult Social Care,Older People,Supplies and Services,05/09/2012 00:00,479797,5114.03,REVENUE,Barchester Healthcare Homes Ltd,
Peterborough,http://opendatacommunities.org/id/unitary-authority/peterborough,Peterborough City Council,Adult Social Care,Older People,Supplies and Services,05/09/2012 00:00,479799,3788.43,REVENUE,Barchester Healthcare Homes Ltd,
Peterborough,http://opendatacommunities.org/id/unitary-authority/peterborough,Peterborough City Council,Adult Social Care,More than one Service Division,Supplies and Services,05/09/2012 00:00,479801,7730.92,REVENUE,Sense,
Peterborough,http://opendatacommunities.org/id/unitary-authority/peterborough,Peterborough City Council,Adult Social Care,Older People,Supplies and Services,05/09/2012 00:00,479805,1405.61,REVENUE,Barchester Healthcare Homes Ltd,
Peterborough,http://opendatacommunities.org/id/unitary-authority/peterborough,Peterborough City Council,Adult Social Care,Older People,Supplies and Services,05/09/2012 00:00,479806,940.68,REVENUE,Park Road Baptist Housing Association Ltd,
Peterborough,http://opendatacommunities.org/id/unitary-authority/peterborough,Peterborough City Council,Adult Social Care,Older People,Supplies and Services,05/09/2012 00:00,479811,3507.48,REVENUE,Barchester Healthcare Homes Ltd,
Peterborough,http://opendatacommunities.org/id/unitary-authority/peterborough,Peterborough City Council,Adult Social Care,Older People,Supplies and Services,05/09/2012 00:00,479815,1071.32,REVENUE,Park Road Baptist Housing Association Ltd,
Peterborough,http://opendatacommunities.org/id/unitary-authority/peterborough,Peterborough City Council,Adult Social Care,Adult Learning Disabilities,Supplies and Services,05/09/2012 00:00,479816,5811.52,REVENUE,Sense,
Peterborough,http://opendatacommunities.org/id/unitary-authority/peterborough,Peterborough City Council,Adult Social Care,Older People,Supplies and Services,05/09/2012 00:00,479817,988.81,REVENUE,Barchester Healthcare Homes Ltd,
Peterborough,http://opendatacommunities.org/id/unitary-authority/peterborough,Peterborough City Council,Adult Social Care,Older People,Supplies and Services,05/09/2012 00:00,479823,1627.85,REVENUE,Barchester Healthcare Homes Ltd,
Peterborough,http://opendatacommunities.org/id/unitary-authority/peterborough,Peterborough City Council,Adult Social Care,Adult Mental Health,Supplies and Services,05/09/2012 00:00,479830,1545,REVENUE,Spotless {Cleaning Services},
Peterborough,http://opendatacommunities.org/id/unitary-authority/peterborough,Peterborough City Council,Adult Social Care,Older People,Supplies and Services,05/09/2012 00:00,479860,526.77,REVENUE,CAREWATCH (F.P.S.),
Peterborough,http://opendatacommunities.org/id/unitary-authority/peterborough,Peterborough City Council,Adult Social Care,Older People,Supplies and Services,05/09/2012 00:00,479890,1069.98,REVENUE,FIELD HOUSE (EYE) LTD,
Peterborough,http://opendatacommunities.org/id/unitary-authority/peterborough,Peterborough City Council,Adult Social Care,Older People,Supplies and Services,05/09/2012 00:00,479901,603.78,REVENUE,CAREWATCH (F.P.S.),
Peterborough,http://opendatacommunities.org/id/unitary-authority/peterborough,Peterborough City Council,Adult Social Care,Adult Learning Disabilities,Third Party Payments,05/09/2012 00:00,479989,-4198.5,REVENUE,Mencap,
Peterborough,http://opendatacommunities.org/id/unitary-authority/peterborough,Peterborough City Council,Adult Social Care,Adult Learning Disabilities,Third Party Payments,05/09/2012 00:00,479993,-2692.74,REVENUE,Mencap,
Peterborough,http://opendatacommunities.org/id/unitary-authority/peterborough,Peterborough City Council,Adult Social Care,Adult Learning Disabilities,Third Party Payments,05/09/2012 00:00,479995,-4198.5,REVENUE,Mencap,
Peterborough,http://opendatacommunities.org/id/unitary-authority/peterborough,Peterborough City Council,Adult Social Care,Adult Learning Disabilities,Third Party Payments,05/09/2012 00:00,480000,-4198.5,REVENUE,Mencap,
Peterborough,http://opendatacommunities.org/id/unitary-authority/peterborough,Peterborough City Council,Adult Social Care,Adult Learning Disabilities,Third Party Payments,05/09/2012 00:00,480014,-4198.5,REVENUE,Mencap,
Peterborough,http://opendatacommunities.org/id/unitary-authority/peterborough,Peterborough City Council,Adult Social Care,Adult Learning Disabilities,Third Party Payments,05/09/2012 00:00,480016,-4198.5,REVENUE,Mencap,
Peterborough,http://opendatacommunities.org/id/unitary-authority/peterborough,Peterborough City Council,Adult Social Care,Adult Learning Disabilities,Third Party Payments,05/09/2012 00:00,480088,824.88,REVENUE,Mencap,
Peterborough,http://opendatacommunities.org/id/unitary-authority/peterborough,Peterborough City Council,Environmental and Regulatory Services,Regulatory services,Transport,05/09/2012 00:00,480141,636,REVENUE,City Locks Ltd,
Peterborough,http://opendatacommunities.org/id/unitary-authority/peterborough,Peterborough City Council,Adult Social Care,Support Services & Management Costs,Employees,05/09/2012 00:00,480142,2160,REVENUE,Caritas Recruitment,
Peterborough,http://opendatacommunities.org/id/unitary-authority/peterborough,Peterborough City Council,Housing Services,Private Sector Housing Renewal,Supplies and Services,05/09/2012 00:00,480164,3600,REVENUE,Elmhurst Energy Systems Ltd,
Peterborough,http://opendatacommunities.org/id/unitary-authority/peterborough,Peterborough City Council,Capital,Capital,Capital Pending Update to BS,05/09/2012 00:00,480180,3300,CAPITAL,JAT Ingledew,
Peterborough,http://opendatacommunities.org/id/unitary-authority/peterborough,Peterborough City Council,Cultural and Related Services,Recreation & Sport,Supplies and Services,05/09/2012 00:00,480184,1108.68,REVENUE,Performing Rights Society Ltd,
Peterborough,http://opendatacommunities.org/id/unitary-authority/peterborough,Peterborough City Council,Support Services,Support Services,Premises,05/09/2012 00:00,480188,6406.02,REVENUE,Baker Perkins Ltd,
Peterborough,http://opendatacommunities.org/id/unitary-authority/peterborough,Peterborough City Council,Adult Social Care,Adult Mental Health,Supplies and Services,05/09/2012 00:00,480196,648.97,REVENUE,Sahara Community Care Services,
Peterborough,http://opendatacommunities.org/id/unitary-authority/peterborough,Peterborough City Council,Adult Social Care,Adult Mental Health,Supplies and Services,05/09/2012 00:00,480216,1090.42,REVENUE,Saga Homecare,
Peterborough,http://opendatacommunities.org/id/unitary-authority/peterborough,Peterborough City Council,Adult Social Care,Adult Mental Health,Supplies and Services,05/09/2012 00:00,480219,722.11,REVENUE,Saga Homecare,
Peterborough,http://opendatacommunities.org/id/unitary-authority/peterborough,Peterborough City Council,Adult Social Care,Adult Mental Health,Supplies and Services,05/09/2012 00:00,480243,1276.08,REVENUE,Saga Homecare,
Peterborough,http://opendatacommunities.org/id/unitary-authority/peterborough,Peterborough City Council,Adult Social Care,Adult Mental Health,Supplies and Services,05/09/2012 00:00,480245,1333.73,REVENUE,Saga Homecare,
Peterborough,http://opendatacommunities.org/id/unitary-authority/peterborough,Peterborough City Council,Adult Social Care,Adult Mental Health,Supplies and Services,05/09/2012 00:00,480267,1579.03,REVENUE,Saga Homecare,
Peterborough,http://opendatacommunities.org/id/unitary-authority/peterborough,Peterborough City Council,Children's & Education Services - Children's Social Care,Other Children's & Families Services,Supplies and Services,05/09/2012 00:00,480292,2580,REVENUE,"Robertson, Miss Mary",
Peterborough,http://opendatacommunities.org/id/unitary-authority/peterborough,Peterborough City Council,Adult Social Care,Adult Learning Disabilities,Supplies and Services,05/09/2012 00:00,480379,10509.75,REVENUE,Rethink Mental Illness,
Peterborough,http://opendatacommunities.org/id/unitary-authority/peterborough,Peterborough City Council,Children's & Education Services - Children's Social Care,Youth Justice,Employees,05/09/2012 00:00,480437,17478.14,REVENUE,Cambs & P'boro NHS Foundation Trust,
Peterborough,http://opendatacommunities.org/id/unitary-authority/peterborough,Peterborough City Council,Children's & Education Services - Education,Secondary,Premises,05/09/2012 00:00,480853,6130.34,REVENUE,Southern Electric,
Peterborough,http://opendatacommunities.org/id/unitary-authority/peterborough,Peterborough City Council,Adult Social Care,Older People,Supplies and Services,05/09/2012 00:00,480875,581.63,REVENUE,THOMAS RIDLEY & SON LTD,
Peterborough,http://opendatacommunities.org/id/unitary-authority/peterborough,Peterborough City Council,Children's & Education Services - Children's Social Care,Children Looked After,Premises,05/09/2012 00:00,480922,640.39,REVENUE,Bull & Co Ltd,
Peterborough,http://opendatacommunities.org/id/unitary-authority/peterborough,Peterborough City Council,Planning Services,Building Control,Supplies and Services,05/09/2012 00:00,481110,940.8,REVENUE,BSi Management Systems,
Peterborough,http://opendatacommunities.org/id/unitary-authority/peterborough,Peterborough City Council,Children's & Education Services - Children's Social Care,Family Support Services,Employees,05/09/2012 00:00,481199,571.2,REVENUE,Service Care Solutions Ltd,
Peterborough,http://opendatacommunities.org/id/unitary-authority/peterborough,Peterborough City Council,Support Services,Support Services,Premises,05/09/2012 00:00,481327,1149.6,REVENUE,Leeton Building Services Ltd,
Peterborough,http://opendatacommunities.org/id/unitary-authority/peterborough,Peterborough City Council,Deficit/(Surplus) on Trading Undertakings,Trading Account Surpluses & Deficits,Supplies and Services,05/09/2012 00:00,481931,1851.3,REVENUE,Barron Clark Castings Ltd,
Peterborough,http://opendatacommunities.org/id/unitary-authority/peterborough,Peterborough City Council,Capital,Capital,Capital Pending Update to BS,05/09/2012 00:00,481939,62826.54,CAPITAL,T Clarke East Limited,
Peterborough,http://opendatacommunities.org/id/unitary-authority/peterborough,Peterborough City Council,Deficit/(Surplus) on Trading Undertakings,Trading Account Surpluses & Deficits,Supplies and Services,05/09/2012 00:00,481963,1636.74,REVENUE,Perkins Engines Co Ltd,
Peterborough,http://opendatacommunities.org/id/unitary-authority/peterborough,Peterborough City Council,Children's & Education Services - Children's Social Care,Other Children's & Families Services,Employees,05/09/2012 00:00,482024,3660,REVENUE,Reed Business Information Ltd,
Peterborough,http://opendatacommunities.org/id/unitary-authority/peterborough,Peterborough City Council,Adult Social Care,Support Services & Management Costs,Employees,05/09/2012 00:00,482029,586.08,REVENUE,Reed Specialist Recruitment,
Peterborough,http://opendatacommunities.org/id/unitary-authority/peterborough,Peterborough City Council,Central Services to the Public,Corporate Management,Supplies and Services,05/09/2012 00:00,482035,1057.86,REVENUE,Neopost Limited,
Peterborough,http://opendatacommunities.org/id/unitary-authority/peterborough,Peterborough City Council,Adult Social Care,Older People,Supplies and Services,05/09/2012 00:00,482170,2477.3,REVENUE,Barchester Healthcare Homes Ltd,
Peterborough,http://opendatacommunities.org/id/unitary-authority/peterborough,Peterborough City Council,Adult Social Care,Older People,Supplies and Services,05/09/2012 00:00,482217,6174.36,REVENUE,TOTAL HOME CARE SOLUTIONS,
Peterborough,http://opendatacommunities.org/id/unitary-authority/peterborough,Peterborough City Council,Adult Social Care,Older People,Supplies and Services,05/09/2012 00:00,482224,1133.76,REVENUE,TOTAL HOME CARE SOLUTIONS,
Peterborough,http://opendatacommunities.org/id/unitary-authority/peterborough,Peterborough City Council,Adult Social Care,Older People,Supplies and Services,05/09/2012 00:00,482243,544.06,REVENUE,TOTAL HOME CARE SOLUTIONS,
Peterborough,http://opendatacommunities.org/id/unitary-authority/peterborough,Peterborough City Council,Adult Social Care,Older People,Supplies and Services,05/09/2012 00:00,482246,1651.04,REVENUE,TOTAL HOME CARE SOLUTIONS,
Peterborough,http://opendatacommunities.org/id/unitary-authority/peterborough,Peterborough City Council,Adult Social Care,Older People,Supplies and Services,05/09/2012 00:00,482247,661.67,REVENUE,TOTAL HOME CARE SOLUTIONS,
Peterborough,http://opendatacommunities.org/id/unitary-authority/peterborough,Peterborough City Council,Adult Social Care,Adult Learning Disabilities,Third Party Payments,05/09/2012 00:00,482249,1836.6,REVENUE,TOTAL HOME CARE SOLUTIONS,
Peterborough,http://opendatacommunities.org/id/unitary-authority/peterborough,Peterborough City Council,Adult Social Care,Older People,Supplies and Services,05/09/2012 00:00,482255,2132,REVENUE,TOTAL HOME CARE SOLUTIONS,
Peterborough,http://opendatacommunities.org/id/unitary-authority/peterborough,Peterborough City Council,Children's & Education Services - Children's Social Care,Children Looked After,Premises,05/09/2012 00:00,482285,764.26,REVENUE,Bunzl UK Ltd t/a Industrial Supplies,
Peterborough,http://opendatacommunities.org/id/unitary-authority/peterborough,Peterborough City Council,Adult Social Care,Adult Learning Disabilities,Employees,05/09/2012 00:00,482287,729,REVENUE,Randstad Care Ltd,
Peterborough,http://opendatacommunities.org/id/unitary-authority/peterborough,Peterborough City Council,More than one Service Area Category,More than one Service Division,More than one Expenses Type,05/09/2012 00:00,482302,6807,"Mixture of Capital, Revenue and/or Balance Sheet",Casbon Building Services,
Peterborough,http://opendatacommunities.org/id/unitary-authority/peterborough,Peterborough City Council,Adult Social Care,Service Strategy,Supplies and Services,05/09/2012 00:00,482415,2640,REVENUE,Buckles Solicitors LLP,
Peterborough,http://opendatacommunities.org/id/unitary-authority/peterborough,Peterborough City Council,Adult Social Care,Adult Learning Disabilities,Employees,05/09/2012 00:00,482421,1199.88,REVENUE,Randstad Care Ltd,
Peterborough,http://opendatacommunities.org/id/unitary-authority/peterborough,Peterborough City Council,Adult Social Care,Older People,Supplies and Services,05/09/2012 00:00,482423,649.19,REVENUE,TOTAL HOME CARE SOLUTIONS,
Peterborough,http://opendatacommunities.org/id/unitary-authority/peterborough,Peterborough City Council,Adult Social Care,Older People,Supplies and Services,05/09/2012 00:00,482426,1982,REVENUE,TOTAL HOME CARE SOLUTIONS,
Peterborough,http://opendatacommunities.org/id/unitary-authority/peterborough,Peterborough City Council,Adult Social Care,Older People,Supplies and Services,05/09/2012 00:00,482437,1980.55,REVENUE,TOTAL HOME CARE SOLUTIONS,
Peterborough,http://opendatacommunities.org/id/unitary-authority/peterborough,Peterborough City Council,Adult Social Care,Adult Learning Disabilities,Employees,05/09/2012 00:00,482438,635.9,REVENUE,Jark Healthcare,
Peterborough,http://opendatacommunities.org/id/unitary-authority/peterborough,Peterborough City Council,Adult Social Care,Older People,Supplies and Services,05/09/2012 00:00,482445,685.07,REVENUE,TOTAL HOME CARE SOLUTIONS,
Peterborough,http://opendatacommunities.org/id/unitary-authority/peterborough,Peterborough City Council,Capital,Capital,Capital Pending Update to BS,05/09/2012 00:00,482463,171970.52,CAPITAL,E N Suiter & Sons Ltd,
Peterborough,http://opendatacommunities.org/id/unitary-authority/peterborough,Peterborough City Council,Capital,Capital,Capital Pending Update to BS,05/09/2012 00:00,482528,5310.76,CAPITAL,J Breheny Contractors Ltd,
Peterborough,http://opendatacommunities.org/id/unitary-authority/peterborough,Peterborough City Council,Adult Social Care,Adult Learning Disabilities,Employees,05/09/2012 00:00,482554,1168.97,REVENUE,Randstad Care Ltd,
Peterborough,http://opendatacommunities.org/id/unitary-authority/peterborough,Peterborough City Council,Children's & Education Services - Children's Social Care,Children Looked After,Supplies and Services,05/09/2012 00:00,482565,795.5,REVENUE,Excell Network Solutions Ltd,
Peterborough,http://opendatacommunities.org/id/unitary-authority/peterborough,Peterborough City Council,Adult Social Care,Older People,Supplies and Services,05/09/2012 00:00,482568,594.6,REVENUE,TOTAL HOME CARE SOLUTIONS,
Peterborough,http://opendatacommunities.org/id/unitary-authority/peterborough,Peterborough City Council,Adult Social Care,Older People,Supplies and Services,05/09/2012 00:00,482570,682.57,REVENUE,TOTAL HOME CARE SOLUTIONS,
Peterborough,http://opendatacommunities.org/id/unitary-authority/peterborough,Peterborough City Council,Adult Social Care,Older People,Supplies and Services,05/09/2012 00:00,482596,6843.16,REVENUE,TOTAL HOME CARE SOLUTIONS,
Peterborough,http://opendatacommunities.org/id/unitary-authority/peterborough,Peterborough City Council,Adult Social Care,Older People,Supplies and Services,05/09/2012 00:00,482609,2803,REVENUE,TOTAL HOME CARE SOLUTIONS,
Peterborough,http://opendatacommunities.org/id/unitary-authority/peterborough,Peterborough City Council,Adult Social Care,Older People,Supplies and Services,05/09/2012 00:00,482618,509.67,REVENUE,TOTAL HOME CARE SOLUTIONS,
Peterborough,http://opendatacommunities.org/id/unitary-authority/peterborough,Peterborough City Council,Children's & Education Services - Children's Social Care,Children Looked After,Supplies and Services - Transfer Payments,05/09/2012 00:00,482681,3454.33,REVENUE,Synergy Fostering Ltd,
Peterborough,http://opendatacommunities.org/id/unitary-authority/peterborough,Peterborough City Council,Adult Social Care,Older People,Supplies and Services,05/09/2012 00:00,482697,1042.33,REVENUE,AVERY HOMES PETERBOROUGH LTD,
Peterborough,http://opendatacommunities.org/id/unitary-authority/peterborough,Peterborough City Council,Environmental and Regulatory Services,Waste Collection,Premises,05/09/2012 00:00,482734,3817.2,REVENUE,ESE Limited,
Peterborough,http://opendatacommunities.org/id/unitary-authority/peterborough,Peterborough City Council,Environmental and Regulatory Services,Waste Collection,Premises,05/09/2012 00:00,482736,5725.8,REVENUE,ESE Limited,
Peterborough,http://opendatacommunities.org/id/unitary-authority/peterborough,Peterborough City Council,More than one Service Area Category,More than one Service Division,Balance Sheet,05/09/2012 00:00,482900,3199.24,Balance Sheet,Cambs & P'boro NHS Foundation Trust,
Peterborough,http://opendatacommunities.org/id/unitary-authority/peterborough,Peterborough City Council,Children's & Education Services - Education,Secondary,Premises,05/09/2012 00:00,482915,1617.65,REVENUE,Eastern Shires Purchasing Organisation,
Peterborough,http://opendatacommunities.org/id/unitary-authority/peterborough,Peterborough City Council,Children's & Education Services - Education,Secondary,Premises,05/09/2012 00:00,482918,6263.98,REVENUE,Eastern Shires Purchasing Organisation,
Peterborough,http://opendatacommunities.org/id/unitary-authority/peterborough,Peterborough City Council,Children's & Education Services - Education,Secondary,Premises,05/09/2012 00:00,482919,4272.52,REVENUE,Eastern Shires Purchasing Organisation,
Peterborough,http://opendatacommunities.org/id/unitary-authority/peterborough,Peterborough City Council,Children's & Education Services - Education,Secondary,Premises,05/09/2012 00:00,482921,2501.76,REVENUE,Eastern Shires Purchasing Organisation,
Peterborough,http://opendatacommunities.org/id/unitary-authority/peterborough,Peterborough City Council,Children's & Education Services - Education,Secondary,Premises,05/09/2012 00:00,482961,1304.71,REVENUE,Southern Electric,
Peterborough,http://opendatacommunities.org/id/unitary-authority/peterborough,Peterborough City Council,Children's & Education Services - Education,Secondary,Premises,05/09/2012 00:00,482968,6298.55,REVENUE,Eastern Shires Purchasing Organisation,
Peterborough,http://opendatacommunities.org/id/unitary-authority/peterborough,Peterborough City Council,Adult Social Care,Older People,Supplies and Services,05/09/2012 00:00,482974,4000,REVENUE,Postage By Phone - Pitney Bowes Ltd,
Peterborough,http://opendatacommunities.org/id/unitary-authority/peterborough,Peterborough City Council,Children's & Education Services - Education,Other School -related Education Functions,Supplies and Services,05/09/2012 00:00,482976,4687,REVENUE,Blossoms Day Nursery,
Peterborough,http://opendatacommunities.org/id/unitary-authority/peterborough,Peterborough City Council,Adult Social Care,Older People,Supplies and Services,05/09/2012 00:00,482977,1000,REVENUE,Postage By Phone - Pitney Bowes Ltd,
Peterborough,http://opendatacommunities.org/id/unitary-authority/peterborough,Peterborough City Council,Children's & Education Services - Education,Secondary,Premises,05/09/2012 00:00,482982,5704.27,REVENUE,Southern Electric,
Peterborough,http://opendatacommunities.org/id/unitary-authority/peterborough,Peterborough City Council,More than one Service Area Category,More than one Service Division,More than one Expenses Type,05/09/2012 00:00,482984,3717.35,"Mixture of Capital, Revenue and/or Balance Sheet",Casbon Building Services,
Peterborough,http://opendatacommunities.org/id/unitary-authority/peterborough,Peterborough City Council,More than one Service Area Category,More than one Service Division,More than one Expenses Type,05/09/2012 00:00,482986,3326,"Mixture of Capital, Revenue and/or Balance Sheet",Casbon Building Services,
Peterborough,http://opendatacommunities.org/id/unitary-authority/peterborough,Peterborough City Council,More than one Service Area Category,More than one Service Division,More than one Expenses Type,05/09/2012 00:00,482987,4096,"Mixture of Capital, Revenue and/or Balance Sheet",M M Heating & Plumbing,
Peterborough,http://opendatacommunities.org/id/unitary-authority/peterborough,Peterborough City Council,Children's & Education Services - Education,Secondary,Premises,05/09/2012 00:00,483002,6211.26,REVENUE,Eastern Shires Purchasing Organisation,
Peterborough,http://opendatacommunities.org/id/unitary-authority/peterborough,Peterborough City Council,More than one Service Area Category,More than one Service Division,More than one Expenses Type,05/09/2012 00:00,483081,3670,"Mixture of Capital, Revenue and/or Balance Sheet",Morley Building Services,
Peterborough,http://opendatacommunities.org/id/unitary-authority/peterborough,Peterborough City Council,More than one Service Area Category,More than one Service Division,More than one Expenses Type,05/09/2012 00:00,483084,3216,"Mixture of Capital, Revenue and/or Balance Sheet",Morley Building Services,
Peterborough,http://opendatacommunities.org/id/unitary-authority/peterborough,Peterborough City Council,More than one Service Area Category,More than one Service Division,More than one Expenses Type,05/09/2012 00:00,483085,4110,"Mixture of Capital, Revenue and/or Balance Sheet",Allworks Home Improvements Ltd,
Peterborough,http://opendatacommunities.org/id/unitary-authority/peterborough,Peterborough City Council,More than one Service Area Category,More than one Service Division,More than one Expenses Type,05/09/2012 00:00,483086,3687,"Mixture of Capital, Revenue and/or Balance Sheet",Casbon Building Services,
Peterborough,http://opendatacommunities.org/id/unitary-authority/peterborough,Peterborough City Council,More than one Service Area Category,More than one Service Division,More than one Expenses Type,05/09/2012 00:00,483094,8434,"Mixture of Capital, Revenue and/or Balance Sheet",M J Greaves,
Peterborough,http://opendatacommunities.org/id/unitary-authority/peterborough,Peterborough City Council,More than one Service Area Category,More than one Service Division,More than one Expenses Type,05/09/2012 00:00,483096,3245,"Mixture of Capital, Revenue and/or Balance Sheet",Morley Building Services,
Peterborough,http://opendatacommunities.org/id/unitary-authority/peterborough,Peterborough City Council,More than one Service Area Category,More than one Service Division,More than one Expenses Type,05/09/2012 00:00,483099,2729,"Mixture of Capital, Revenue and/or Balance Sheet",Casbon Building Services,
Peterborough,http://opendatacommunities.org/id/unitary-authority/peterborough,Peterborough City Council,More than one Service Area Category,More than one Service Division,More than one Expenses Type,05/09/2012 00:00,483101,4808,"Mixture of Capital, Revenue and/or Balance Sheet",Casbon Building Services,
Peterborough,http://opendatacommunities.org/id/unitary-authority/peterborough,Peterborough City Council,Adult Social Care,Older People,Supplies and Services,05/09/2012 00:00,483104,2227.2,REVENUE,CAREWATCH (F.P.S.),
Peterborough,http://opendatacommunities.org/id/unitary-authority/peterborough,Peterborough City Council,Adult Social Care,Older People,Transport,05/09/2012 00:00,483106,1030.22,REVENUE,Automotive Leasing Ltd,
Peterborough,http://opendatacommunities.org/id/unitary-authority/peterborough,Peterborough City Council,More than one Service Area Category,More than one Service Division,More than one Expenses Type,05/09/2012 00:00,483111,3779,"Mixture of Capital, Revenue and/or Balance Sheet",Morley Building Services,
Peterborough,http://opendatacommunities.org/id/unitary-authority/peterborough,Peterborough City Council,Adult Social Care,Older People,Supplies and Services,05/09/2012 00:00,483113,3050.8,REVENUE,CAREWATCH (F.P.S.),
Peterborough,http://opendatacommunities.org/id/unitary-authority/peterborough,Peterborough City Council,More than one Service Area Category,More than one Service Division,More than one Expenses Type,05/09/2012 00:00,483114,4966,"Mixture of Capital, Revenue and/or Balance Sheet",Allworks Home Improvements Ltd,
Peterborough,http://opendatacommunities.org/id/unitary-authority/peterborough,Peterborough City Council,Adult Social Care,Older People,Supplies and Services,05/09/2012 00:00,483115,2345.04,REVENUE,CAREWATCH (F.P.S.),
Peterborough,http://opendatacommunities.org/id/unitary-authority/peterborough,Peterborough City Council,More than one Service Area Category,More than one Service Division,More than one Expenses Type,05/09/2012 00:00,483116,3000,"Mixture of Capital, Revenue and/or Balance Sheet",Casbon Building Services,
Peterborough,http://opendatacommunities.org/id/unitary-authority/peterborough,Peterborough City Council,Children's & Education Services - Children's Social Care,Children Looked After,Supplies and Services - Transfer Payments,05/09/2012 00:00,483118,14614.33,REVENUE,Continuum Care & Educ. Group.,
Peterborough,http://opendatacommunities.org/id/unitary-authority/peterborough,Peterborough City Council,More than one Service Area Category,More than one Service Division,More than one Expenses Type,05/09/2012 00:00,483121,4233.6,"Mixture of Capital, Revenue and/or Balance Sheet",Rawheat Heating & Plumbing Eng.,
Peterborough,http://opendatacommunities.org/id/unitary-authority/peterborough,Peterborough City Council,Children's & Education Services - Children's Social Care,Children Looked After,Supplies and Services - Transfer Payments,05/09/2012 00:00,483122,-5657.16,REVENUE,Continuum Care & Educ. Group.,
Peterborough,http://opendatacommunities.org/id/unitary-authority/peterborough,Peterborough City Council,Children's & Education Services - Children's Social Care,Children Looked After,Supplies and Services - Transfer Payments,05/09/2012 00:00,483125,6128.59,REVENUE,Continuum Care & Educ. Group.,
Peterborough,http://opendatacommunities.org/id/unitary-authority/peterborough,Peterborough City Council,More than one Service Area Category,More than one Service Division,Supplies and Services,05/09/2012 00:00,483132,5707.32,REVENUE,GSL Dardan Ltd,
Peterborough,http://opendatacommunities.org/id/unitary-authority/peterborough,Peterborough City Council,Deficit/(Surplus) on Trading Undertakings,Trading Account Surpluses & Deficits,Supplies and Services,05/09/2012 00:00,483133,574.56,REVENUE,Barron Clark Castings Ltd,
Peterborough,http://opendatacommunities.org/id/unitary-authority/peterborough,Peterborough City Council,Deficit/(Surplus) on Trading Undertakings,Trading Account Surpluses & Deficits,Supplies and Services,05/09/2012 00:00,483134,566.1,REVENUE,Barron Clark Castings Ltd,
Peterborough,http://opendatacommunities.org/id/unitary-authority/peterborough,Peterborough City Council,Deficit/(Surplus) on Trading Undertakings,Trading Account Surpluses & Deficits,Supplies and Services,05/09/2012 00:00,483135,764.95,REVENUE,Barron Clark Castings Ltd,
Peterborough,http://opendatacommunities.org/id/unitary-authority/peterborough,Peterborough City Council,Deficit/(Surplus) on Trading Undertakings,Trading Account Surpluses & Deficits,Supplies and Services,05/09/2012 00:00,483136,554.36,REVENUE,Barron Clark Castings Ltd,
Peterborough,http://opendatacommunities.org/id/unitary-authority/peterborough,Peterborough City Council,Deficit/(Surplus) on Trading Undertakings,Trading Account Surpluses & Deficits,Supplies and Services,05/09/2012 00:00,483139,899.8,REVENUE,Barron Clark Castings Ltd,
Peterborough,http://opendatacommunities.org/id/unitary-authority/peterborough,Peterborough City Council,Deficit/(Surplus) on Trading Undertakings,Trading Account Surpluses & Deficits,Supplies and Services,05/09/2012 00:00,483141,614.02,REVENUE,Barron Clark Castings Ltd,
Peterborough,http://opendatacommunities.org/id/unitary-authority/peterborough,Peterborough City Council,Environmental and Regulatory Services,Regulatory services,Employees,05/09/2012 00:00,483157,2327.65,REVENUE,The Synergy Group,
Peterborough,http://opendatacommunities.org/id/unitary-authority/peterborough,Peterborough City Council,Planning Services,Economic Development,Employees,05/09/2012 00:00,483158,1229.3,REVENUE,The Synergy Group,
Peterborough,http://opendatacommunities.org/id/unitary-authority/peterborough,Peterborough City Council,Planning Services,Economic Development,Employees,05/09/2012 00:00,483160,1497.6,REVENUE,The Synergy Group,
Peterborough,http://opendatacommunities.org/id/unitary-authority/peterborough,Peterborough City Council,Environmental and Regulatory Services,Regulatory services,Employees,05/09/2012 00:00,483179,1352.04,REVENUE,The Synergy Group,
Peterborough,http://opendatacommunities.org/id/unitary-authority/peterborough,Peterborough City Council,Planning Services,Economic Development,Employees,05/09/2012 00:00,483184,1741.13,REVENUE,The Synergy Group,
Peterborough,http://opendatacommunities.org/id/unitary-authority/peterborough,Peterborough City Council,Planning Services,Economic Development,Employees,05/09/2012 00:00,483188,1456.03,REVENUE,The Synergy Group,
Peterborough,http://opendatacommunities.org/id/unitary-authority/peterborough,Peterborough City Council,Planning Services,Economic Development,Employees,05/09/2012 00:00,483189,1838.59,REVENUE,The Synergy Group,
Peterborough,http://opendatacommunities.org/id/unitary-authority/peterborough,Peterborough City Council,Environmental and Regulatory Services,Regulatory services,Employees,05/09/2012 00:00,483191,1334.26,REVENUE,The Synergy Group,
Peterborough,http://opendatacommunities.org/id/unitary-authority/peterborough,Peterborough City Council,More than one Service Area Category,More than one Service Division,More than one Expenses Type,05/09/2012 00:00,483200,797.81,REVENUE,Peterborough City Council,
Peterborough,http://opendatacommunities.org/id/unitary-authority/peterborough,Peterborough City Council,Adult Social Care,Older People,Supplies and Services,05/09/2012 00:00,483201,593.4,REVENUE,CAREWATCH (F.P.S.),
Peterborough,http://opendatacommunities.org/id/unitary-authority/peterborough,Peterborough City Council,Adult Social Care,Older People,Supplies and Services,05/09/2012 00:00,483202,2518.4,REVENUE,CAREWATCH (F.P.S.),
Peterborough,http://opendatacommunities.org/id/unitary-authority/peterborough,Peterborough City Council,Planning Services,Economic Development,Employees,05/09/2012 00:00,483205,1497.6,REVENUE,The Synergy Group,
Peterborough,http://opendatacommunities.org/id/unitary-authority/peterborough,Peterborough City Council,Planning Services,Economic Development,Employees,05/09/2012 00:00,483209,1870.02,REVENUE,The Synergy Group,
Peterborough,http://opendatacommunities.org/id/unitary-authority/peterborough,Peterborough City Council,Environmental and Regulatory Services,Regulatory services,Employees,05/09/2012 00:00,483211,1280.88,REVENUE,The Synergy Group,
Peterborough,http://opendatacommunities.org/id/unitary-authority/peterborough,Peterborough City Council,Environmental and Regulatory Services,Regulatory services,Employees,05/09/2012 00:00,483214,1271.99,REVENUE,The Synergy Group,
Peterborough,http://opendatacommunities.org/id/unitary-authority/peterborough,Peterborough City Council,Adult Social Care,Older People,Supplies and Services,05/09/2012 00:00,483226,2110.48,REVENUE,CAREWATCH (F.P.S.),
Peterborough,http://opendatacommunities.org/id/unitary-authority/peterborough,Peterborough City Council,Adult Social Care,Older People,Supplies and Services,05/09/2012 00:00,483242,703.68,REVENUE,CAREWATCH (F.P.S.),
Peterborough,http://opendatacommunities.org/id/unitary-authority/peterborough,Peterborough City Council,Adult Social Care,Older People,Supplies and Services,05/09/2012 00:00,483244,824.8,REVENUE,CAREWATCH (F.P.S.),
Peterborough,http://opendatacommunities.org/id/unitary-authority/peterborough,Peterborough City Council,Adult Social Care,Adult Learning Disabilities,Transport,05/09/2012 00:00,483246,1039.72,REVENUE,Automotive Leasing Ltd,
Peterborough,http://opendatacommunities.org/id/unitary-authority/peterborough,Peterborough City Council,Adult Social Care,Older People,Supplies and Services,05/09/2012 00:00,483249,1038.33,REVENUE,CAREWATCH (F.P.S.),
Peterborough,http://opendatacommunities.org/id/unitary-authority/peterborough,Peterborough City Council,Children's & Education Services - Children's Social Care,Children Looked After,Supplies and Services - Transfer Payments,05/09/2012 00:00,483261,3159.21,REVENUE,Fostering Options Ltd,
Peterborough,http://opendatacommunities.org/id/unitary-authority/peterborough,Peterborough City Council,Adult Social Care,Adult Learning Disabilities,Transport,05/09/2012 00:00,483271,1041,REVENUE,Automotive Leasing Ltd,
Peterborough,http://opendatacommunities.org/id/unitary-authority/peterborough,Peterborough City Council,Adult Social Care,Adult Learning Disabilities,Supplies and Services,05/09/2012 00:00,483300,1979.14,REVENUE,THE HELPING HANDS GROUP,
Peterborough,http://opendatacommunities.org/id/unitary-authority/peterborough,Peterborough City Council,Adult Social Care,Older People,Third Party Payments,05/09/2012 00:00,483302,4245.15,REVENUE,Mencap,
Peterborough,http://opendatacommunities.org/id/unitary-authority/peterborough,Peterborough City Council,Deficit/(Surplus) on Trading Undertakings,Trading Account Surpluses & Deficits,Premises,05/09/2012 00:00,483305,39000,REVENUE,Nuffield College Rents A/C,
Peterborough,http://opendatacommunities.org/id/unitary-authority/peterborough,Peterborough City Council,Adult Social Care,Adult Learning Disabilities,Third Party Payments,05/09/2012 00:00,483309,2003.76,REVENUE,PRIORY GROUP LTD,
Peterborough,http://opendatacommunities.org/id/unitary-authority/peterborough,Peterborough City Council,Adult Social Care,Older People,Supplies and Services,05/09/2012 00:00,483312,690.14,REVENUE,CAREWATCH (F.P.S.),
Peterborough,http://opendatacommunities.org/id/unitary-authority/peterborough,Peterborough City Council,Support Services,Support Services,Employees,05/09/2012 00:00,483316,655.49,REVENUE,Reed Specialist Recruitment,
Peterborough,http://opendatacommunities.org/id/unitary-authority/peterborough,Peterborough City Council,Planning Services,Community Development,Supplies and Services,05/09/2012 00:00,483330,2000,REVENUE,Peterborough Racial Equality Council,
Peterborough,http://opendatacommunities.org/id/unitary-authority/peterborough,Peterborough City Council,Adult Social Care,Older People,Supplies and Services,05/09/2012 00:00,483338,1951.14,REVENUE,AVERY HOMES PETERBOROUGH LTD,
Peterborough,http://opendatacommunities.org/id/unitary-authority/peterborough,Peterborough City Council,Adult Social Care,Older People,Supplies and Services,05/09/2012 00:00,483347,7440.37,REVENUE,Cambridgeshire County Council,
Peterborough,http://opendatacommunities.org/id/unitary-authority/peterborough,Peterborough City Council,Deficit/(Surplus) on Trading Undertakings,Trading Account Surpluses & Deficits,Supplies and Services,05/09/2012 00:00,483361,614.02,REVENUE,Barron Clark Castings Ltd,
Peterborough,http://opendatacommunities.org/id/unitary-authority/peterborough,Peterborough City Council,Deficit/(Surplus) on Trading Undertakings,Trading Account Surpluses & Deficits,Supplies and Services,05/09/2012 00:00,483364,794.81,REVENUE,Barron Clark Castings Ltd,
Peterborough,http://opendatacommunities.org/id/unitary-authority/peterborough,Peterborough City Council,Deficit/(Surplus) on Trading Undertakings,Trading Account Surpluses & Deficits,Supplies and Services,05/09/2012 00:00,483368,1009.8,REVENUE,Barron Clark Castings Ltd,
Peterborough,http://opendatacommunities.org/id/unitary-authority/peterborough,Peterborough City Council,Children's & Education Services - Children's Social Care,Children Looked After,Supplies and Services - Transfer Payments,05/09/2012 00:00,483379,3159.21,REVENUE,Fostering Options Ltd,
Peterborough,http://opendatacommunities.org/id/unitary-authority/peterborough,Peterborough City Council,Children's & Education Services - Children's Social Care,Children Looked After,Supplies and Services - Transfer Payments,05/09/2012 00:00,483395,3159.21,REVENUE,Fostering Options Ltd,
Peterborough,http://opendatacommunities.org/id/unitary-authority/peterborough,Peterborough City Council,Children's & Education Services - Children's Social Care,Children Looked After,Premises,05/09/2012 00:00,483403,3445.12,REVENUE,The K A Wing Group Ltd,
Peterborough,http://opendatacommunities.org/id/unitary-authority/peterborough,Peterborough City Council,Housing Services,Homelessness,Supplies and Services,05/09/2012 00:00,483409,864.77,REVENUE,Cross Keys Homes,
Peterborough,http://opendatacommunities.org/id/unitary-authority/peterborough,Peterborough City Council,Housing Services,Private Sector Housing Renewal,Supplies and Services,05/09/2012 00:00,483414,3600,REVENUE,Priestgate Properties Ltd,
Peterborough,http://opendatacommunities.org/id/unitary-authority/peterborough,Peterborough City Council,Children's & Education Services - Children's Social Care,Children Looked After,Supplies and Services - Transfer Payments,05/09/2012 00:00,483445,3620.8,REVENUE,Archway Care Ltd,
Peterborough,http://opendatacommunities.org/id/unitary-authority/peterborough,Peterborough City Council,Adult Social Care,Adult Learning Disabilities,Third Party Payments,05/09/2012 00:00,483449,2003.76,REVENUE,PRIORY GROUP LTD,
Peterborough,http://opendatacommunities.org/id/unitary-authority/peterborough,Peterborough City Council,Adult Social Care,Adult Learning Disabilities,Third Party Payments,05/09/2012 00:00,483451,2003.76,REVENUE,PRIORY GROUP LTD,
Peterborough,http://opendatacommunities.org/id/unitary-authority/peterborough,Peterborough City Council,Adult Social Care,Adult Learning Disabilities,Supplies and Services,05/09/2012 00:00,483462,1397.04,REVENUE,THE HELPING HANDS GROUP,
Peterborough,http://opendatacommunities.org/id/unitary-authority/peterborough,Peterborough City Council,Adult Social Care,Adult Physical Disability & Sensory Impairment,Supplies and Services,05/09/2012 00:00,483465,564,REVENUE,Deafblind Enablement Ltd,
Peterborough,http://opendatacommunities.org/id/unitary-authority/peterborough,Peterborough City Council,Adult Social Care,Adult Learning Disabilities,Third Party Payments,05/09/2012 00:00,483473,4245.15,REVENUE,Mencap,
Peterborough,http://opendatacommunities.org/id/unitary-authority/peterborough,Peterborough City Council,Adult Social Care,Adult Learning Disabilities,Third Party Payments,05/09/2012 00:00,483474,7520.71,REVENUE,Hales Group Ltd,
Peterborough,http://opendatacommunities.org/id/unitary-authority/peterborough,Peterborough City Council,Adult Social Care,Adult Learning Disabilities,Supplies and Services,05/09/2012 00:00,483475,768,REVENUE,THE HELPING HANDS GROUP,
Peterborough,http://opendatacommunities.org/id/unitary-authority/peterborough,Peterborough City Council,Adult Social Care,Adult Learning Disabilities,Third Party Payments,05/09/2012 00:00,483482,-4198.5,REVENUE,Mencap,
Peterborough,http://opendatacommunities.org/id/unitary-authority/peterborough,Peterborough City Council,Adult Social Care,Adult Learning Disabilities,Supplies and Services,05/09/2012 00:00,483485,2893.4,REVENUE,THE HELPING HANDS GROUP,
Peterborough,http://opendatacommunities.org/id/unitary-authority/peterborough,Peterborough City Council,Adult Social Care,Adult Learning Disabilities,Third Party Payments,05/09/2012 00:00,483492,4245.15,REVENUE,Mencap,
Peterborough,http://opendatacommunities.org/id/unitary-authority/peterborough,Peterborough City Council,Adult Social Care,Older People,Supplies and Services,05/09/2012 00:00,483502,2145.9,REVENUE,CAREWATCH (F.P.S.),
Peterborough,http://opendatacommunities.org/id/unitary-authority/peterborough,Peterborough City Council,Adult Social Care,Adult Learning Disabilities,Third Party Payments,05/09/2012 00:00,483504,4245.15,REVENUE,Mencap,
Peterborough,http://opendatacommunities.org/id/unitary-authority/peterborough,Peterborough City Council,Adult Social Care,Adult Physical Disability & Sensory Impairment,Supplies and Services,05/09/2012 00:00,483516,669.75,REVENUE,Deafblind Enablement Ltd,
Peterborough,http://opendatacommunities.org/id/unitary-authority/peterborough,Peterborough City Council,Adult Social Care,Adult Learning Disabilities,Third Party Payments,05/09/2012 00:00,483517,2003.76,REVENUE,PRIORY GROUP LTD,
Peterborough,http://opendatacommunities.org/id/unitary-authority/peterborough,Peterborough City Council,Adult Social Care,Adult Learning Disabilities,Employees,05/09/2012 00:00,483531,1039.97,REVENUE,Jark Healthcare,
Peterborough,http://opendatacommunities.org/id/unitary-authority/peterborough,Peterborough City Council,Adult Social Care,Older People,Supplies and Services,05/09/2012 00:00,483539,3461.7,REVENUE,AVERY HOMES PETERBOROUGH LTD,
Peterborough,http://opendatacommunities.org/id/unitary-authority/peterborough,Peterborough City Council,Children's & Education Services - Children's Social Care,Children Looked After,Supplies and Services - Transfer Payments,05/09/2012 00:00,483543,3620.8,REVENUE,Archway Care Ltd,
Peterborough,http://opendatacommunities.org/id/unitary-authority/peterborough,Peterborough City Council,Children's & Education Services - Children's Social Care,Children Looked After,Supplies and Services - Transfer Payments,05/09/2012 00:00,483548,3620.8,REVENUE,Archway Care Ltd,
Peterborough,http://opendatacommunities.org/id/unitary-authority/peterborough,Peterborough City Council,Adult Social Care,Adult Learning Disabilities,Employees,05/09/2012 00:00,483556,1092.96,REVENUE,Jark Healthcare,
Peterborough,http://opendatacommunities.org/id/unitary-authority/peterborough,Peterborough City Council,Adult Social Care,Adult Learning Disabilities,Transport,05/09/2012 00:00,483557,1030.21,REVENUE,Automotive Leasing Ltd,
Peterborough,http://opendatacommunities.org/id/unitary-authority/peterborough,Peterborough City Council,Adult Social Care,Adult Learning Disabilities,Transport,05/09/2012 00:00,483560,5151.05,REVENUE,Automotive Leasing Ltd,
Peterborough,http://opendatacommunities.org/id/unitary-authority/peterborough,Peterborough City Council,Adult Social Care,Adult Learning Disabilities,Transport,05/09/2012 00:00,483568,1030.2,REVENUE,Automotive Leasing Ltd,
Peterborough,http://opendatacommunities.org/id/unitary-authority/peterborough,Peterborough City Council,Adult Social Care,Older People,Supplies and Services,05/09/2012 00:00,483574,502.24,REVENUE,CAREWATCH (F.P.S.),
Peterborough,http://opendatacommunities.org/id/unitary-authority/peterborough,Peterborough City Council,Adult Social Care,Adult Learning Disabilities,Supplies and Services,05/09/2012 00:00,483595,1340.4,REVENUE,Redacted Personal Data,
Peterborough,http://opendatacommunities.org/id/unitary-authority/peterborough,Peterborough City Council,Adult Social Care,Adult Learning Disabilities,Supplies and Services,05/09/2012 00:00,483596,1069.2,REVENUE,Redacted Personal Data,
Peterborough,http://opendatacommunities.org/id/unitary-authority/peterborough,Peterborough City Council,Adult Social Care,Older People,Supplies and Services,05/09/2012 00:00,483598,3263.44,REVENUE,CAREWATCH (F.P.S.),
Peterborough,http://opendatacommunities.org/id/unitary-authority/peterborough,Peterborough City Council,Adult Social Care,Adult Learning Disabilities,Third Party Payments,05/09/2012 00:00,483601,4245.15,REVENUE,Mencap,
Peterborough,http://opendatacommunities.org/id/unitary-authority/peterborough,Peterborough City Council,Adult Social Care,Adult Learning Disabilities,Third Party Payments,05/09/2012 00:00,483603,4245.15,REVENUE,Mencap,
Peterborough,http://opendatacommunities.org/id/unitary-authority/peterborough,Peterborough City Council,Adult Social Care,Adult Learning Disabilities,Third Party Payments,05/09/2012 00:00,483605,4245.15,REVENUE,Mencap,
Peterborough,http://opendatacommunities.org/id/unitary-authority/peterborough,Peterborough City Council,Adult Social Care,Adult Learning Disabilities,Third Party Payments,05/09/2012 00:00,483612,1789.07,REVENUE,PRIORY GROUP LTD,
Peterborough,http://opendatacommunities.org/id/unitary-authority/peterborough,Peterborough City Council,Adult Social Care,Adult Learning Disabilities,Third Party Payments,05/09/2012 00:00,483620,1795.16,REVENUE,Mencap,
Peterborough,http://opendatacommunities.org/id/unitary-authority/peterborough,Peterborough City Council,Adult Social Care,Adult Learning Disabilities,Third Party Payments,05/09/2012 00:00,483623,1181.37,REVENUE,Augusta Care Ltd,
Peterborough,http://opendatacommunities.org/id/unitary-authority/peterborough,Peterborough City Council,Adult Social Care,Adult Learning Disabilities,Supplies and Services,05/09/2012 00:00,483626,2733.42,REVENUE,Redacted Personal Data,
Peterborough,http://opendatacommunities.org/id/unitary-authority/peterborough,Peterborough City Council,Adult Social Care,Older People,Supplies and Services,05/09/2012 00:00,483627,2292.64,REVENUE,CAREWATCH (F.P.S.),
Peterborough,http://opendatacommunities.org/id/unitary-authority/peterborough,Peterborough City Council,More than one Service Area Category,More than one Service Division,Balance Sheet,05/09/2012 00:00,483635,7805.41,Balance Sheet,The Prudential Assurance Company Ltd,
Peterborough,http://opendatacommunities.org/id/unitary-authority/peterborough,Peterborough City Council,More than one Service Area Category,More than one Service Division,Balance Sheet,05/09/2012 00:00,483638,759822.29,Balance Sheet,Teachers Pensions,
Peterborough,http://opendatacommunities.org/id/unitary-authority/peterborough,Peterborough City Council,Children's & Education Services - Children's Social Care,Children Looked After,Employees,05/09/2012 00:00,483645,1366.19,REVENUE,Randstad Care Ltd,
Peterborough,http://opendatacommunities.org/id/unitary-authority/peterborough,Peterborough City Council,More than one Service Area Category,More than one Service Division,Balance Sheet,05/09/2012 00:00,483647,6178.66,Balance Sheet,The Prudential Assurance Company Ltd,
Peterborough,http://opendatacommunities.org/id/unitary-authority/peterborough,Peterborough City Council,Children's & Education Services - Children's Social Care,Children Looked After,Employees,05/09/2012 00:00,483655,1366.19,REVENUE,Randstad Care Ltd,
Peterborough,http://opendatacommunities.org/id/unitary-authority/peterborough,Peterborough City Council,Adult Social Care,Older People,Supplies and Services,05/09/2012 00:00,483659,965.41,REVENUE,Redacted Personal Data,
Peterborough,http://opendatacommunities.org/id/unitary-authority/peterborough,Peterborough City Council,Children's & Education Services - Children's Social Care,Family Support Services,Employees,05/09/2012 00:00,483660,2327.4,REVENUE,Randstad Care Ltd,
Peterborough,http://opendatacommunities.org/id/unitary-authority/peterborough,Peterborough City Council,Children's & Education Services - Children's Social Care,Children Looked After,Employees,05/09/2012 00:00,483686,1366.19,REVENUE,Randstad Care Ltd,
Peterborough,http://opendatacommunities.org/id/unitary-authority/peterborough,Peterborough City Council,Children's & Education Services - Education,Services to Young People,Supplies and Services,05/09/2012 00:00,483701,1400,REVENUE,Peterborough United Football Club,
Peterborough,http://opendatacommunities.org/id/unitary-authority/peterborough,Peterborough City Council,Children's & Education Services - Children's Social Care,Children Looked After,Supplies and Services - Transfer Payments,05/09/2012 00:00,483705,3159.21,REVENUE,Fostering Options Ltd,
Peterborough,http://opendatacommunities.org/id/unitary-authority/peterborough,Peterborough City Council,Adult Social Care,Adult Learning Disabilities,Third Party Payments,05/09/2012 00:00,483706,2003.76,REVENUE,PRIORY GROUP LTD,
Peterborough,http://opendatacommunities.org/id/unitary-authority/peterborough,Peterborough City Council,Children's & Education Services - Children's Social Care,Children's Services - Commissioning and Social Work,Employees,05/09/2012 00:00,483708,1464.31,REVENUE,Randstad Care Ltd,
Peterborough,http://opendatacommunities.org/id/unitary-authority/peterborough,Peterborough City Council,Housing Services,Private Sector Housing Renewal,Supplies and Services,05/09/2012 00:00,483709,3942.75,REVENUE,Rawheat Heating & Plumbing Eng.,
Peterborough,http://opendatacommunities.org/id/unitary-authority/peterborough,Peterborough City Council,Children's & Education Services - Education,Other School -related Education Functions,Employees,05/09/2012 00:00,483713,25403.1,REVENUE,Teachers Pensions,
Peterborough,http://opendatacommunities.org/id/unitary-authority/peterborough,Peterborough City Council,Children's & Education Services - Children's Social Care,Children Looked After,Employees,05/09/2012 00:00,483717,1366.19,REVENUE,Randstad Care Ltd,
Peterborough,http://opendatacommunities.org/id/unitary-authority/peterborough,Peterborough City Council,Capital,Capital,Capital Pending Update to BS,05/09/2012 00:00,483720,68858.23,CAPITAL,Princebuild Limited,
Peterborough,http://opendatacommunities.org/id/unitary-authority/peterborough,Peterborough City Council,Children's & Education Services - Children's Social Care,Children Looked After,Employees,05/09/2012 00:00,483724,1464.31,REVENUE,Randstad Care Ltd,
Peterborough,http://opendatacommunities.org/id/unitary-authority/peterborough,Peterborough City Council,Support Services,Support Services,Supplies and Services,05/09/2012 00:00,483727,900,REVENUE,Deborah Shield,
Peterborough,http://opendatacommunities.org/id/unitary-authority/peterborough,Peterborough City Council,Capital,Capital,Capital Pending Update to BS,05/09/2012 00:00,483731,116017.55,CAPITAL,Princebuild Limited,
Peterborough,http://opendatacommunities.org/id/unitary-authority/peterborough,Peterborough City Council,Adult Social Care,Adult Learning Disabilities,Third Party Payments,05/09/2012 00:00,483737,-4198.5,REVENUE,Mencap,
Peterborough,http://opendatacommunities.org/id/unitary-authority/peterborough,Peterborough City Council,Children's & Education Services - Children's Social Care,Other Children's & Families Services,Employees,05/09/2012 00:00,483741,1423.8,REVENUE,Sellick Partnership Group Limited,
Peterborough,http://opendatacommunities.org/id/unitary-authority/peterborough,Peterborough City Council,Adult Social Care,Service Strategy,Supplies and Services,05/09/2012 00:00,483748,25179,REVENUE,Anglia Support Partnership,
Peterborough,http://opendatacommunities.org/id/unitary-authority/peterborough,Peterborough City Council,Adult Social Care,Older People,Supplies and Services,05/09/2012 00:00,483795,1751.22,REVENUE,Cambridgeshire County Council,
Peterborough,http://opendatacommunities.org/id/unitary-authority/peterborough,Peterborough City Council,Children's & Education Services - Education,Other School -related Education Functions,Employees,05/09/2012 00:00,483816,1972.8,REVENUE,Serco Ltd,
Peterborough,http://opendatacommunities.org/id/unitary-authority/peterborough,Peterborough City Council,Children's & Education Services - Children's Social Care,Service Strategy,Employees,05/09/2012 00:00,483819,2457,REVENUE,Serco Ltd,
Peterborough,http://opendatacommunities.org/id/unitary-authority/peterborough,Peterborough City Council,Children's & Education Services - Education,Other Children's & Families Services,Supplies and Services,05/09/2012 00:00,483821,5171.34,REVENUE,Serco Ltd,
Peterborough,http://opendatacommunities.org/id/unitary-authority/peterborough,Peterborough City Council,Support Services,Support Services,Employees,05/09/2012 00:00,483822,2213.87,REVENUE,Serco Ltd,
Peterborough,http://opendatacommunities.org/id/unitary-authority/peterborough,Peterborough City Council,Central Services to the Public,Elections,Employees,05/09/2012 00:00,483832,956.34,REVENUE,Serco Ltd,
Peterborough,http://opendatacommunities.org/id/unitary-authority/peterborough,Peterborough City Council,Support Services,Support Services,Supplies and Services,05/09/2012 00:00,483833,11247.98,REVENUE,Serco Ltd,
Peterborough,http://opendatacommunities.org/id/unitary-authority/peterborough,Peterborough City Council,Corporate & Democratic Core,Democratic Representation & Managemetn,Employees,05/09/2012 00:00,483835,1121.3,REVENUE,Serco Ltd,
Peterborough,http://opendatacommunities.org/id/unitary-authority/peterborough,Peterborough City Council,Housing Services,Private Sector Housing Renewal,Supplies and Services,07/09/2012 00:00,465178,816,REVENUE,B S Builders & Carpenters,
Peterborough,http://opendatacommunities.org/id/unitary-authority/peterborough,Peterborough City Council,Children's & Education Services - Children's Social Care,Children's Services - Commissioning and Social Work,Employees,07/09/2012 00:00,467085,1603.28,REVENUE,Capita Resourcing Ltd,
Peterborough,http://opendatacommunities.org/id/unitary-authority/peterborough,Peterborough City Council,Children's & Education Services - Children's Social Care,Children's Services - Commissioning and Social Work,Employees,07/09/2012 00:00,468238,1603.28,REVENUE,Capita Resourcing Ltd,
Peterborough,http://opendatacommunities.org/id/unitary-authority/peterborough,Peterborough City Council,Housing Services,Private Sector Housing Renewal,Supplies and Services,07/09/2012 00:00,477338,657.6,REVENUE,M J Greaves,
Peterborough,http://opendatacommunities.org/id/unitary-authority/peterborough,Peterborough City Council,Children's & Education Services - Children's Social Care,Children Looked After,Supplies and Services - Transfer Payments,07/09/2012 00:00,479876,2371.5,REVENUE,Bryne House Ltd,
Peterborough,http://opendatacommunities.org/id/unitary-authority/peterborough,Peterborough City Council,Children's & Education Services - Children's Social Care,Children Looked After,Supplies and Services - Transfer Payments,07/09/2012 00:00,479880,3557.25,REVENUE,Bryne House Ltd,
Peterborough,http://opendatacommunities.org/id/unitary-authority/peterborough,Peterborough City Council,Children's & Education Services - Education,Other School -related Education Functions,Supplies and Services,07/09/2012 00:00,479881,9751.96,REVENUE,Alpha Big Sky Ltd,
Peterborough,http://opendatacommunities.org/id/unitary-authority/peterborough,Peterborough City Council,Planning Services,Environmental Initiatives,Supplies and Services,07/09/2012 00:00,480058,789.92,REVENUE,Cyclescheme Ltd,
Peterborough,http://opendatacommunities.org/id/unitary-authority/peterborough,Peterborough City Council,Adult Social Care,Support Services & Management Costs,Employees,07/09/2012 00:00,480202,589.68,REVENUE,Service Care Solutions Ltd,
Peterborough,http://opendatacommunities.org/id/unitary-authority/peterborough,Peterborough City Council,Children's & Education Services - Children's Social Care,Children Looked After,Employees,07/09/2012 00:00,482028,536.39,REVENUE,Reed Specialist Recruitment,
Peterborough,http://opendatacommunities.org/id/unitary-authority/peterborough,Peterborough City Council,Capital,Capital,Capital Pending Update to BS,07/09/2012 00:00,482030,41442,CAPITAL,Burmor Construction,
Peterborough,http://opendatacommunities.org/id/unitary-authority/peterborough,Peterborough City Council,Children's & Education Services - Children's Social Care,Children Looked After,Employees,07/09/2012 00:00,482263,1015.64,REVENUE,Blue Arrow Ltd,
Peterborough,http://opendatacommunities.org/id/unitary-authority/peterborough,Peterborough City Council,Highways and Transport Services,Public Transport,Supplies and Services,07/09/2012 00:00,482539,1170,REVENUE,R Kime & Co Ltd,
Peterborough,http://opendatacommunities.org/id/unitary-authority/peterborough,Peterborough City Council,Highways and Transport Services,Public Transport,Supplies and Services,07/09/2012 00:00,482542,1770,REVENUE,R Kime & Co Ltd,
Peterborough,http://opendatacommunities.org/id/unitary-authority/peterborough,Peterborough City Council,Highways and Transport Services,Public Transport,Supplies and Services,07/09/2012 00:00,482544,7514,REVENUE,Centrebus North Ltd,
Peterborough,http://opendatacommunities.org/id/unitary-authority/peterborough,Peterborough City Council,Capital,Capital,Capital Pending Update to BS,07/09/2012 00:00,482575,23642.42,CAPITAL,PG Robinson t/a PGR Construction,
Peterborough,http://opendatacommunities.org/id/unitary-authority/peterborough,Peterborough City Council,Highways and Transport Services,Street Lighting,Premises,07/09/2012 00:00,482613,1131.28,REVENUE,Southern Electric,
Peterborough,http://opendatacommunities.org/id/unitary-authority/peterborough,Peterborough City Council,Highways and Transport Services,Street Lighting,Premises,07/09/2012 00:00,482617,1245.93,REVENUE,Southern Electric,
Peterborough,http://opendatacommunities.org/id/unitary-authority/peterborough,Peterborough City Council,Children's & Education Services - Children's Social Care,Other Children's & Families Services,Third Party Payments,07/09/2012 00:00,482671,4500,REVENUE,The National Autistic Society,
Peterborough,http://opendatacommunities.org/id/unitary-authority/peterborough,Peterborough City Council,Support Services,Support Services,Supplies and Services,07/09/2012 00:00,482674,886.78,REVENUE,Rossendales C B Ltd,
Peterborough,http://opendatacommunities.org/id/unitary-authority/peterborough,Peterborough City Council,Court Services,Coroner's Court Service,Supplies and Services,07/09/2012 00:00,482966,6448.48,REVENUE,P'Boro & Stamford Hosp NHS F/dation Trust,
Peterborough,http://opendatacommunities.org/id/unitary-authority/peterborough,Peterborough City Council,Court Services,Coroner's Court Service,Supplies and Services,07/09/2012 00:00,482970,6416.02,REVENUE,P'Boro & Stamford Hosp NHS F/dation Trust,
Peterborough,http://opendatacommunities.org/id/unitary-authority/peterborough,Peterborough City Council,Planning Services,Economic Development,Employees,07/09/2012 00:00,483178,1364.39,REVENUE,The Synergy Group,
Peterborough,http://opendatacommunities.org/id/unitary-authority/peterborough,Peterborough City Council,Planning Services,Economic Development,Employees,07/09/2012 00:00,483217,1428.17,REVENUE,The Synergy Group,
Peterborough,http://opendatacommunities.org/id/unitary-authority/peterborough,Peterborough City Council,Adult Social Care,Service Strategy,Supplies and Services,07/09/2012 00:00,483264,19701,REVENUE,Veredus,
Peterborough,http://opendatacommunities.org/id/unitary-authority/peterborough,Peterborough City Council,Housing Services,Private Sector Housing Renewal,Supplies and Services,07/09/2012 00:00,483430,756,REVENUE,Priestgate Properties Ltd,
Peterborough,http://opendatacommunities.org/id/unitary-authority/peterborough,Peterborough City Council,Cultural and Related Services,Recreation & Sport,Premises,07/09/2012 00:00,483602,614.88,REVENUE,Vivacity Culture and Leisure,
Peterborough,http://opendatacommunities.org/id/unitary-authority/peterborough,Peterborough City Council,Children's & Education Services - Children's Social Care,Children Looked After,Employees,07/09/2012 00:00,483672,1163.57,REVENUE,Randstad Care Ltd,
Peterborough,http://opendatacommunities.org/id/unitary-authority/peterborough,Peterborough City Council,Children's & Education Services - Children's Social Care,Children Looked After,Employees,07/09/2012 00:00,483683,837.78,REVENUE,Randstad Care Ltd,
Peterborough,http://opendatacommunities.org/id/unitary-authority/peterborough,Peterborough City Council,Children's & Education Services - Children's Social Care,Children Looked After,Employees,07/09/2012 00:00,483691,1042.48,REVENUE,Randstad Care Ltd,
Peterborough,http://opendatacommunities.org/id/unitary-authority/peterborough,Peterborough City Council,Adult Social Care,Adult Learning Disabilities,Third Party Payments,07/09/2012 00:00,483742,-4198.5,REVENUE,Mencap,
Peterborough,http://opendatacommunities.org/id/unitary-authority/peterborough,Peterborough City Council,Corporate & Democratic Core,Democratic Representation & Managemetn,Employees,07/09/2012 00:00,483829,1681.94,REVENUE,Serco Ltd,
Peterborough,http://opendatacommunities.org/id/unitary-authority/peterborough,Peterborough City Council,Capital,Capital,Capital Pending Update to BS,07/09/2012 00:00,483830,559.44,CAPITAL,Serco Ltd,
Peterborough,http://opendatacommunities.org/id/unitary-authority/peterborough,Peterborough City Council,Adult Social Care,Older People,Employees,07/09/2012 00:00,483837,2128.14,REVENUE,Serco Ltd,
Peterborough,http://opendatacommunities.org/id/unitary-authority/peterborough,Peterborough City Council,Adult Social Care,Support Services & Management Costs,Employees,07/09/2012 00:00,483841,2691.36,REVENUE,Serco Ltd,
Peterborough,http://opendatacommunities.org/id/unitary-authority/peterborough,Peterborough City Council,Support Services,Support Services,Supplies and Services,07/09/2012 00:00,483845,6382.24,REVENUE,Serco Ltd,
Peterborough,http://opendatacommunities.org/id/unitary-authority/peterborough,Peterborough City Council,Support Services,Support Services,Employees,07/09/2012 00:00,483847,2950.82,REVENUE,Serco Ltd,
Peterborough,http://opendatacommunities.org/id/unitary-authority/peterborough,Peterborough City Council,Adult Social Care,Older People,Supplies and Services,07/09/2012 00:00,483848,771.78,REVENUE,Hales Group Ltd,
Peterborough,http://opendatacommunities.org/id/unitary-authority/peterborough,Peterborough City Council,Support Services,Support Services,Employees,07/09/2012 00:00,483849,2797.2,REVENUE,Serco Ltd,
Peterborough,http://opendatacommunities.org/id/unitary-authority/peterborough,Peterborough City Council,Children's & Education Services - Children's Social Care,Other Children's & Families Services,Supplies and Services,07/09/2012 00:00,483850,2133.89,REVENUE,Serco Ltd,
Peterborough,http://opendatacommunities.org/id/unitary-authority/peterborough,Peterborough City Council,Adult Social Care,Adult Learning Disabilities,Employees,07/09/2012 00:00,483870,2026.08,REVENUE,Serco Ltd,
Peterborough,http://opendatacommunities.org/id/unitary-authority/peterborough,Peterborough City Council,Capital,Capital,Capital Pending Update to BS,07/09/2012 00:00,483872,8342.4,CAPITAL,Serco Ltd,
Peterborough,http://opendatacommunities.org/id/unitary-authority/peterborough,Peterborough City Council,Children's & Education Services - Education,Other Children's & Families Services,Supplies and Services,07/09/2012 00:00,483874,13155.11,REVENUE,Serco Ltd,
Peterborough,http://opendatacommunities.org/id/unitary-authority/peterborough,Peterborough City Council,Central Services to the Public,Elections,Employees,07/09/2012 00:00,483875,7860.5,REVENUE,Serco Ltd,
Peterborough,http://opendatacommunities.org/id/unitary-authority/peterborough,Peterborough City Council,Environmental and Regulatory Services,Regulatory services,Supplies and Services,07/09/2012 00:00,483877,873.06,REVENUE,Serco Ltd,
Peterborough,http://opendatacommunities.org/id/unitary-authority/peterborough,Peterborough City Council,Adult Social Care,Older People,Employees,07/09/2012 00:00,483881,2177.28,REVENUE,Serco Ltd,
Peterborough,http://opendatacommunities.org/id/unitary-authority/peterborough,Peterborough City Council,Planning Services,Economic Development,Employees,07/09/2012 00:00,483892,1995.84,REVENUE,Serco Ltd,
Peterborough,http://opendatacommunities.org/id/unitary-authority/peterborough,Peterborough City Council,Children's & Education Services - Education,Other School -related Education Functions,Employees,07/09/2012 00:00,483894,1113.46,REVENUE,Serco Ltd,
Peterborough,http://opendatacommunities.org/id/unitary-authority/peterborough,Peterborough City Council,Support Services,Support Services,Supplies and Services,07/09/2012 00:00,483943,502.8,REVENUE,Serco Ltd,
Peterborough,http://opendatacommunities.org/id/unitary-authority/peterborough,Peterborough City Council,Adult Social Care,Older People,Supplies and Services,07/09/2012 00:00,484010,637.24,REVENUE,CAREWATCH (F.P.S.),
Peterborough,http://opendatacommunities.org/id/unitary-authority/peterborough,Peterborough City Council,Adult Social Care,Adult Learning Disabilities,Supplies and Services,07/09/2012 00:00,484049,4867.2,REVENUE,HEREWARD CARE SERVICES LIMITED,
Peterborough,http://opendatacommunities.org/id/unitary-authority/peterborough,Peterborough City Council,Adult Social Care,Adult Learning Disabilities,Third Party Payments,07/09/2012 00:00,484209,4245.15,REVENUE,Mencap,
Peterborough,http://opendatacommunities.org/id/unitary-authority/peterborough,Peterborough City Council,Support Services,Support Services,Supplies and Services,07/09/2012 00:00,484288,2400,REVENUE,Radio Peterborough,
Peterborough,http://opendatacommunities.org/id/unitary-authority/peterborough,Peterborough City Council,Adult Social Care,Older People,More than one Expenses Type,07/09/2012 00:00,484308,3323.49,REVENUE,Fieldwork Admin Team (IMPREST),
Peterborough,http://opendatacommunities.org/id/unitary-authority/peterborough,Peterborough City Council,More than one Service Area Category,More than one Service Division,Balance Sheet,07/09/2012 00:00,484322,2640,Balance Sheet,Learning Disability & Autism Team (IMPREST),
Peterborough,http://opendatacommunities.org/id/unitary-authority/peterborough,Peterborough City Council,Children's & Education Services - Children's Social Care,Children Looked After,Supplies and Services - Transfer Payments,07/09/2012 00:00,484346,5637.97,REVENUE,I S P,
Peterborough,http://opendatacommunities.org/id/unitary-authority/peterborough,Peterborough City Council,Parish Council Precepts,Precepts & Levies,Supplies and Services,07/09/2012 00:00,484352,1890,REVENUE,Glinton Parish Council,
Peterborough,http://opendatacommunities.org/id/unitary-authority/peterborough,Peterborough City Council,Cultural and Related Services,Support Services & Management Costs,Premises,07/09/2012 00:00,484396,564,REVENUE,Siemens Energy Services Ltd,
Peterborough,http://opendatacommunities.org/id/unitary-authority/peterborough,Peterborough City Council,More than one Service Area Category,More than one Service Division,Premises,07/09/2012 00:00,484401,638.45,REVENUE,Eastern Shires Purchasing Organisation,
Peterborough,http://opendatacommunities.org/id/unitary-authority/peterborough,Peterborough City Council,More than one Service Area Category,More than one Service Division,Premises,07/09/2012 00:00,484403,2681.99,REVENUE,Anglian Water,
Peterborough,http://opendatacommunities.org/id/unitary-authority/peterborough,Peterborough City Council,More than one Service Area Category,More than one Service Division,Premises,07/09/2012 00:00,484406,7571.46,REVENUE,Anglian Water,
Peterborough,http://opendatacommunities.org/id/unitary-authority/peterborough,Peterborough City Council,More than one Service Area Category,More than one Service Division,Premises,07/09/2012 00:00,484409,5980.24,REVENUE,Anglian Water,
Peterborough,http://opendatacommunities.org/id/unitary-authority/peterborough,Peterborough City Council,More than one Service Area Category,More than one Service Division,Premises,07/09/2012 00:00,484413,1247.48,REVENUE,Southern Electric,
Peterborough,http://opendatacommunities.org/id/unitary-authority/peterborough,Peterborough City Council,Adult Social Care,Adult Learning Disabilities,Supplies and Services,10/09/2012 00:00,469794,998.2,REVENUE,HEREWARD CARE SERVICES LIMITED,
Peterborough,http://opendatacommunities.org/id/unitary-authority/peterborough,Peterborough City Council,Children's & Education Services - Children's Social Care,Children Looked After,Supplies and Services - Transfer Payments,10/09/2012 00:00,471583,12400,REVENUE,Continuum Care & Educ. Group.,
Peterborough,http://opendatacommunities.org/id/unitary-authority/peterborough,Peterborough City Council,Adult Social Care,Older People,Supplies and Services,10/09/2012 00:00,479600,1021.2,REVENUE,JLA TOTAL CARE,
Peterborough,http://opendatacommunities.org/id/unitary-authority/peterborough,Peterborough City Council,Adult Social Care,Adult Learning Disabilities,Third Party Payments,10/09/2012 00:00,479730,1710.96,REVENUE,Thera East Anglia,
Peterborough,http://opendatacommunities.org/id/unitary-authority/peterborough,Peterborough City Council,Adult Social Care,Adult Learning Disabilities,Third Party Payments,10/09/2012 00:00,479803,1700.54,REVENUE,Thera East Anglia,
Peterborough,http://opendatacommunities.org/id/unitary-authority/peterborough,Peterborough City Council,Adult Social Care,Adult Learning Disabilities,Supplies and Services,10/09/2012 00:00,479807,19837.44,REVENUE,Thera East Anglia,
Peterborough,http://opendatacommunities.org/id/unitary-authority/peterborough,Peterborough City Council,Adult Social Care,Adult Learning Disabilities,Supplies and Services,10/09/2012 00:00,479810,2243.92,REVENUE,LINK HOUSE,
Peterborough,http://opendatacommunities.org/id/unitary-authority/peterborough,Peterborough City Council,Adult Social Care,Adult Mental Health,Supplies and Services,10/09/2012 00:00,479856,539.1,REVENUE,Housing 21,
Peterborough,http://opendatacommunities.org/id/unitary-authority/peterborough,Peterborough City Council,Planning Services,Environmental Initiatives,Supplies and Services,10/09/2012 00:00,480099,1000,REVENUE,Cyclescheme Ltd,
Peterborough,http://opendatacommunities.org/id/unitary-authority/peterborough,Peterborough City Council,Environmental and Regulatory Services,Waste Collection,Supplies and Services,10/09/2012 00:00,480118,4509.03,REVENUE,Mid UK Recycling Ltd,
Peterborough,http://opendatacommunities.org/id/unitary-authority/peterborough,Peterborough City Council,Planning Services,Community Development,Supplies and Services,10/09/2012 00:00,480172,666,REVENUE,Triple SSS Limited,
Peterborough,http://opendatacommunities.org/id/unitary-authority/peterborough,Peterborough City Council,Adult Social Care,Older People,Supplies and Services,10/09/2012 00:00,480316,1868.4,REVENUE,Housing 21,
Peterborough,http://opendatacommunities.org/id/unitary-authority/peterborough,Peterborough City Council,Environmental and Regulatory Services,"Cemetery, Crematorium & Mortuary Services",Supplies and Services,10/09/2012 00:00,480350,1071,REVENUE,Ashdown Supplies,
Peterborough,http://opendatacommunities.org/id/unitary-authority/peterborough,Peterborough City Council,Deficit/(Surplus) on Trading Undertakings,Trading Account Surpluses & Deficits,Supplies and Services,10/09/2012 00:00,480356,840,REVENUE,Barker Storey Matthews,
Peterborough,http://opendatacommunities.org/id/unitary-authority/peterborough,Peterborough City Council,Adult Social Care,Adult Learning Disabilities,Supplies and Services,10/09/2012 00:00,480784,7268,REVENUE,NEW BOUNDARIES COMMUNITY SERVICES LTD,
Peterborough,http://opendatacommunities.org/id/unitary-authority/peterborough,Peterborough City Council,Highways and Transport Services,Public Transport,Supplies and Services,10/09/2012 00:00,480855,9020.5,REVENUE,Stagecoach in Peterborough,
Peterborough,http://opendatacommunities.org/id/unitary-authority/peterborough,Peterborough City Council,Children's & Education Services - Children's Social Care,Children Looked After,Supplies and Services,10/09/2012 00:00,480918,1862.1,REVENUE,XMA Limited,
Peterborough,http://opendatacommunities.org/id/unitary-authority/peterborough,Peterborough City Council,Children's & Education Services - Children's Social Care,Other Children's & Families Services,Premises,10/09/2012 00:00,480923,3609.8,REVENUE,Bull & Co Ltd,
Peterborough,http://opendatacommunities.org/id/unitary-authority/peterborough,Peterborough City Council,Capital,Capital,Capital Pending Update to BS,10/09/2012 00:00,481038,5592,CAPITAL,Danwood Contract Rentals,
Peterborough,http://opendatacommunities.org/id/unitary-authority/peterborough,Peterborough City Council,Adult Social Care,Older People,Supplies and Services,10/09/2012 00:00,481265,1548.12,REVENUE,BUPA Care  Homes,
Peterborough,http://opendatacommunities.org/id/unitary-authority/peterborough,Peterborough City Council,Cultural and Related Services,Culture & Heritage,Supplies and Services,10/09/2012 00:00,481956,1065,REVENUE,Riverboat Days,
Peterborough,http://opendatacommunities.org/id/unitary-authority/peterborough,Peterborough City Council,Adult Social Care,Older People,Supplies and Services,10/09/2012 00:00,481966,713.91,REVENUE,Housing 21,
Peterborough,http://opendatacommunities.org/id/unitary-authority/peterborough,Peterborough City Council,Adult Social Care,Older People,Supplies and Services,10/09/2012 00:00,481979,681.17,REVENUE,Housing 21,
Peterborough,http://opendatacommunities.org/id/unitary-authority/peterborough,Peterborough City Council,Adult Social Care,Older People,Supplies and Services,10/09/2012 00:00,481983,886.13,REVENUE,Housing 21,
Peterborough,http://opendatacommunities.org/id/unitary-authority/peterborough,Peterborough City Council,Capital,Capital,Capital Pending Update to BS,10/09/2012 00:00,481994,75374.4,CAPITAL,T Clarke East Limited,
Peterborough,http://opendatacommunities.org/id/unitary-authority/peterborough,Peterborough City Council,Adult Social Care,Older People,Supplies and Services,10/09/2012 00:00,481995,540.54,REVENUE,Housing 21,
Peterborough,http://opendatacommunities.org/id/unitary-authority/peterborough,Peterborough City Council,Adult Social Care,Older People,Supplies and Services,10/09/2012 00:00,481997,1504.08,REVENUE,Housing 21,
Peterborough,http://opendatacommunities.org/id/unitary-authority/peterborough,Peterborough City Council,Adult Social Care,Older People,Supplies and Services,10/09/2012 00:00,482002,656.55,REVENUE,Housing 21,
Peterborough,http://opendatacommunities.org/id/unitary-authority/peterborough,Peterborough City Council,Adult Social Care,Older People,Supplies and Services,10/09/2012 00:00,482004,555.77,REVENUE,Housing 21,
Peterborough,http://opendatacommunities.org/id/unitary-authority/peterborough,Peterborough City Council,Adult Social Care,Older People,Supplies and Services,10/09/2012 00:00,482008,819.81,REVENUE,Housing 21,
Peterborough,http://opendatacommunities.org/id/unitary-authority/peterborough,Peterborough City Council,Adult Social Care,Older People,Supplies and Services,10/09/2012 00:00,482012,679.84,REVENUE,BUPA CARE SERVICES,
Peterborough,http://opendatacommunities.org/id/unitary-authority/peterborough,Peterborough City Council,Adult Social Care,Older People,Supplies and Services,10/09/2012 00:00,482023,1798.4,REVENUE,Housing 21,
Peterborough,http://opendatacommunities.org/id/unitary-authority/peterborough,Peterborough City Council,Adult Social Care,Older People,Supplies and Services,10/09/2012 00:00,482058,594.48,REVENUE,Housing 21,
Peterborough,http://opendatacommunities.org/id/unitary-authority/peterborough,Peterborough City Council,Adult Social Care,Older People,Supplies and Services,10/09/2012 00:00,482071,700.29,REVENUE,Housing 21,
Peterborough,http://opendatacommunities.org/id/unitary-authority/peterborough,Peterborough City Council,Adult Social Care,Older People,Supplies and Services,10/09/2012 00:00,482079,944.76,REVENUE,Housing 21,
Peterborough,http://opendatacommunities.org/id/unitary-authority/peterborough,Peterborough City Council,Adult Social Care,Older People,Supplies and Services,10/09/2012 00:00,482085,540.54,REVENUE,Housing 21,
Peterborough,http://opendatacommunities.org/id/unitary-authority/peterborough,Peterborough City Council,Adult Social Care,Older People,Supplies and Services,10/09/2012 00:00,482097,720.72,REVENUE,Housing 21,
Peterborough,http://opendatacommunities.org/id/unitary-authority/peterborough,Peterborough City Council,Adult Social Care,Older People,Supplies and Services,10/09/2012 00:00,482098,523.2,REVENUE,Housing 21,
Peterborough,http://opendatacommunities.org/id/unitary-authority/peterborough,Peterborough City Council,Environmental and Regulatory Services,Waste Collection,Supplies and Services,10/09/2012 00:00,482109,522.03,REVENUE,FCC Recycling (UK) Limited,
Peterborough,http://opendatacommunities.org/id/unitary-authority/peterborough,Peterborough City Council,Environmental and Regulatory Services,Waste Collection,Supplies and Services,10/09/2012 00:00,482111,17567.8,REVENUE,FCC Recycling (UK) Limited,
Peterborough,http://opendatacommunities.org/id/unitary-authority/peterborough,Peterborough City Council,Environmental and Regulatory Services,Waste Collection,Supplies and Services,10/09/2012 00:00,482112,3268.44,REVENUE,FCC Recycling (UK) Limited,
Peterborough,http://opendatacommunities.org/id/unitary-authority/peterborough,Peterborough City Council,Environmental and Regulatory Services,Waste Collection,Supplies and Services,10/09/2012 00:00,482115,6830.06,REVENUE,FCC Recycling (UK) Limited,
Peterborough,http://opendatacommunities.org/id/unitary-authority/peterborough,Peterborough City Council,Environmental and Regulatory Services,Waste Collection,Supplies and Services,10/09/2012 00:00,482116,308104.09,REVENUE,FCC Recycling (UK) Limited,
Peterborough,http://opendatacommunities.org/id/unitary-authority/peterborough,Peterborough City Council,Environmental and Regulatory Services,Waste Collection,Supplies and Services,10/09/2012 00:00,482120,22808.58,REVENUE,FCC Recycling (UK) Limited,
Peterborough,http://opendatacommunities.org/id/unitary-authority/peterborough,Peterborough City Council,Environmental and Regulatory Services,Waste Collection,Supplies and Services,10/09/2012 00:00,482125,11103.27,REVENUE,FCC Recycling (UK) Limited,
Peterborough,http://opendatacommunities.org/id/unitary-authority/peterborough,Peterborough City Council,Environmental and Regulatory Services,Waste Collection,Supplies and Services,10/09/2012 00:00,482130,5199.76,REVENUE,FCC Recycling (UK) Limited,
Peterborough,http://opendatacommunities.org/id/unitary-authority/peterborough,Peterborough City Council,Environmental and Regulatory Services,Waste Collection,Supplies and Services,10/09/2012 00:00,482133,314405.68,REVENUE,FCC Recycling (UK) Limited,
Peterborough,http://opendatacommunities.org/id/unitary-authority/peterborough,Peterborough City Council,Environmental and Regulatory Services,Waste Collection,Supplies and Services,10/09/2012 00:00,482137,24173.1,REVENUE,FCC Recycling (UK) Limited,
Peterborough,http://opendatacommunities.org/id/unitary-authority/peterborough,Peterborough City Council,Adult Social Care,Older People,Supplies and Services,10/09/2012 00:00,482168,1112.35,REVENUE,Bondcare,
Peterborough,http://opendatacommunities.org/id/unitary-authority/peterborough,Peterborough City Council,Adult Social Care,Support Services & Management Costs,Supplies and Services,10/09/2012 00:00,482206,11602.35,REVENUE,Anglia Support Partnership,
Peterborough,http://opendatacommunities.org/id/unitary-authority/peterborough,Peterborough City Council,Children's & Education Services - Children's Social Care,Family Support Services,Employees,10/09/2012 00:00,482266,1503.72,REVENUE,Medicare First,
Peterborough,http://opendatacommunities.org/id/unitary-authority/peterborough,Peterborough City Council,Children's & Education Services - Children's Social Care,Family Support Services,Employees,10/09/2012 00:00,482270,1530,REVENUE,Medicare First,
Peterborough,http://opendatacommunities.org/id/unitary-authority/peterborough,Peterborough City Council,Deficit/(Surplus) on Trading Undertakings,Trading Account Surpluses & Deficits,Supplies and Services,10/09/2012 00:00,482276,619.06,REVENUE,Safetykleen UK Ltd,
Peterborough,http://opendatacommunities.org/id/unitary-authority/peterborough,Peterborough City Council,Cultural and Related Services,Open Spaces,Transport,10/09/2012 00:00,482306,570,REVENUE,JCB Finance Ltd,
Peterborough,http://opendatacommunities.org/id/unitary-authority/peterborough,Peterborough City Council,Highways and Transport Services,Street Lighting,Supplies and Services,10/09/2012 00:00,482391,1056,REVENUE,UK Power Networks (operations) Ltd,
Peterborough,http://opendatacommunities.org/id/unitary-authority/peterborough,Peterborough City Council,Support Services,Support Services,Supplies and Services,10/09/2012 00:00,482406,6000,REVENUE,Cambridgeshire Chamber of Commerce,
Peterborough,http://opendatacommunities.org/id/unitary-authority/peterborough,Peterborough City Council,Adult Social Care,Older People,Supplies and Services,10/09/2012 00:00,482473,697.16,REVENUE,Housing 21,
Peterborough,http://opendatacommunities.org/id/unitary-authority/peterborough,Peterborough City Council,Support Services,Support Services,Supplies and Services,10/09/2012 00:00,482517,593.33,REVENUE,Equita Ltd,
Peterborough,http://opendatacommunities.org/id/unitary-authority/peterborough,Peterborough City Council,Support Services,Support Services,Supplies and Services,10/09/2012 00:00,482526,757.36,REVENUE,Equita Ltd,
Peterborough,http://opendatacommunities.org/id/unitary-authority/peterborough,Peterborough City Council,Highways and Transport Services,Public Transport,Supplies and Services,10/09/2012 00:00,482543,3553,REVENUE,R Kime & Co Ltd,
Peterborough,http://opendatacommunities.org/id/unitary-authority/peterborough,Peterborough City Council,Highways and Transport Services,Public Transport,Supplies and Services,10/09/2012 00:00,482546,1344.49,REVENUE,Centrebus North Ltd,
Peterborough,http://opendatacommunities.org/id/unitary-authority/peterborough,Peterborough City Council,Highways and Transport Services,Public Transport,Supplies and Services,10/09/2012 00:00,482551,1779.96,REVENUE,Statutory Payment of Concessionary Fares to Bus Provider,
Peterborough,http://opendatacommunities.org/id/unitary-authority/peterborough,Peterborough City Council,Highways and Transport Services,Public Transport,Supplies and Services,10/09/2012 00:00,482655,18636,REVENUE,Stagecoach in Peterborough,
Peterborough,http://opendatacommunities.org/id/unitary-authority/peterborough,Peterborough City Council,Highways and Transport Services,Public Transport,Supplies and Services,10/09/2012 00:00,482656,-18461.52,REVENUE,Stagecoach in Peterborough,
Peterborough,http://opendatacommunities.org/id/unitary-authority/peterborough,Peterborough City Council,Capital,Capital,Capital Pending Update to BS,10/09/2012 00:00,482670,2833.2,CAPITAL,Atkins Limited,
Peterborough,http://opendatacommunities.org/id/unitary-authority/peterborough,Peterborough City Council,More than one Service Area Category,More than one Service Division,More than one Expenses Type,10/09/2012 00:00,482945,72385.63,"Mixture of Capital, Revenue and/or Balance Sheet",Ringway Infrastructure Services,
Peterborough,http://opendatacommunities.org/id/unitary-authority/peterborough,Peterborough City Council,Children's & Education Services - Children's Social Care,Other Children's & Families Services,Supplies and Services,10/09/2012 00:00,483071,1379.42,REVENUE,Carter Brown Associates Ltd,
Peterborough,http://opendatacommunities.org/id/unitary-authority/peterborough,Peterborough City Council,Environmental and Regulatory Services,Waste Collection,Supplies and Services,10/09/2012 00:00,483468,1135.2,REVENUE,Duston Oils,
Peterborough,http://opendatacommunities.org/id/unitary-authority/peterborough,Peterborough City Council,Children's & Education Services - Children's Social Care,Children Looked After,Employees,10/09/2012 00:00,483643,1529.14,REVENUE,Randstad Care Ltd,
Peterborough,http://opendatacommunities.org/id/unitary-authority/peterborough,Peterborough City Council,Children's & Education Services - Children's Social Care,Children Looked After,Employees,10/09/2012 00:00,483680,1529.14,REVENUE,Randstad Care Ltd,
Peterborough,http://opendatacommunities.org/id/unitary-authority/peterborough,Peterborough City Council,Children's & Education Services - Children's Social Care,Children Looked After,Employees,10/09/2012 00:00,483714,1157.18,REVENUE,Randstad Care Ltd,
Peterborough,http://opendatacommunities.org/id/unitary-authority/peterborough,Peterborough City Council,Planning Services,Environmental Initiatives,Third Party Payments,10/09/2012 00:00,483758,6000,REVENUE,UK CEED,
Peterborough,http://opendatacommunities.org/id/unitary-authority/peterborough,Peterborough City Council,Corporate & Democratic Core,Democratic Representation & Managemetn,Employees,10/09/2012 00:00,483761,3600,REVENUE,South East Employers,
Peterborough,http://opendatacommunities.org/id/unitary-authority/peterborough,Peterborough City Council,Adult Social Care,Service Strategy,Supplies and Services,10/09/2012 00:00,483764,20298,REVENUE,Veredus,
Peterborough,http://opendatacommunities.org/id/unitary-authority/peterborough,Peterborough City Council,Deficit/(Surplus) on Trading Undertakings,Trading Account Surpluses & Deficits,Supplies and Services,10/09/2012 00:00,483768,1300.5,REVENUE,Barron Clark Castings Ltd,
Peterborough,http://opendatacommunities.org/id/unitary-authority/peterborough,Peterborough City Council,Children's & Education Services - Children's Social Care,Family Support Services,Employees,10/09/2012 00:00,484000,2327.4,REVENUE,Randstad Care Ltd,
Peterborough,http://opendatacommunities.org/id/unitary-authority/peterborough,Peterborough City Council,Children's & Education Services - Children's Social Care,Children Looked After,Employees,10/09/2012 00:00,484022,1464.31,REVENUE,Randstad Care Ltd,
Peterborough,http://opendatacommunities.org/id/unitary-authority/peterborough,Peterborough City Council,Adult Social Care,Older People,Supplies and Services,10/09/2012 00:00,484085,640,REVENUE,Custom Care,
Peterborough,http://opendatacommunities.org/id/unitary-authority/peterborough,Peterborough City Council,Deficit/(Surplus) on Trading Undertakings,Trading Account Surpluses & Deficits,Supplies and Services,10/09/2012 00:00,484179,-1025.1,REVENUE,Barron Clark Castings Ltd,
Peterborough,http://opendatacommunities.org/id/unitary-authority/peterborough,Peterborough City Council,Adult Social Care,Older People,Supplies and Services,10/09/2012 00:00,484181,565.2,REVENUE,Custom Care,
Peterborough,http://opendatacommunities.org/id/unitary-authority/peterborough,Peterborough City Council,Adult Social Care,Older People,Supplies and Services,10/09/2012 00:00,484198,2557.8,REVENUE,Custom Care,
Peterborough,http://opendatacommunities.org/id/unitary-authority/peterborough,Peterborough City Council,Capital,Capital,Capital Pending Update to BS,10/09/2012 00:00,484257,726,CAPITAL,Eastern Shires Purchasing Organisation,
Peterborough,http://opendatacommunities.org/id/unitary-authority/peterborough,Peterborough City Council,Adult Social Care,Support Services & Management Costs,Employees,10/09/2012 00:00,484296,586.08,REVENUE,Reed Specialist Recruitment,
Peterborough,http://opendatacommunities.org/id/unitary-authority/peterborough,Peterborough City Council,Housing Services,Homelessness,Supplies and Services,10/09/2012 00:00,484332,530.6,REVENUE,DA Rosalia Hotel,
Peterborough,http://opendatacommunities.org/id/unitary-authority/peterborough,Peterborough City Council,More than one Service Area Category,More than one Service Division,Balance Sheet,10/09/2012 00:00,484344,1193.51,Balance Sheet,Redacted Personal Data,
Peterborough,http://opendatacommunities.org/id/unitary-authority/peterborough,Peterborough City Council,Adult Social Care,Older People,Supplies and Services,10/09/2012 00:00,484386,2605.96,REVENUE,Care UK Homecare Ltd,
Peterborough,http://opendatacommunities.org/id/unitary-authority/peterborough,Peterborough City Council,Housing Services,Homelessness,Supplies and Services,10/09/2012 00:00,484393,571.2,REVENUE,DA Rosalia Hotel,
Peterborough,http://opendatacommunities.org/id/unitary-authority/peterborough,Peterborough City Council,Housing Services,Homelessness,Supplies and Services,10/09/2012 00:00,484394,809.6,REVENUE,DA Rosalia Hotel,
Peterborough,http://opendatacommunities.org/id/unitary-authority/peterborough,Peterborough City Council,Housing Services,Homelessness,Supplies and Services,10/09/2012 00:00,484395,530.6,REVENUE,DA Rosalia Hotel,
Peterborough,http://opendatacommunities.org/id/unitary-authority/peterborough,Peterborough City Council,Support Services,Support Services,Supplies and Services,10/09/2012 00:00,484398,17443.72,REVENUE,Edenred,
Peterborough,http://opendatacommunities.org/id/unitary-authority/peterborough,Peterborough City Council,More than one Service Area Category,More than one Service Division,Premises,10/09/2012 00:00,484420,770.44,REVENUE,Southern Electric,
Peterborough,http://opendatacommunities.org/id/unitary-authority/peterborough,Peterborough City Council,Cultural and Related Services,Support Services & Management Costs,Premises,10/09/2012 00:00,484437,6016.68,REVENUE,EDF Energy Networks Ltd,
Peterborough,http://opendatacommunities.org/id/unitary-authority/peterborough,Peterborough City Council,More than one Service Area Category,More than one Service Division,Premises,10/09/2012 00:00,484443,763.9,REVENUE,British Gas Business,
Peterborough,http://opendatacommunities.org/id/unitary-authority/peterborough,Peterborough City Council,Adult Social Care,Older People,Supplies and Services,10/09/2012 00:00,484445,632.16,REVENUE,PRESTIGE NURSING LIMITED,
Peterborough,http://opendatacommunities.org/id/unitary-authority/peterborough,Peterborough City Council,More than one Service Area Category,More than one Service Division,More than one Expenses Type,10/09/2012 00:00,484452,769.45,REVENUE,Peterborough City Council,
Peterborough,http://opendatacommunities.org/id/unitary-authority/peterborough,Peterborough City Council,Adult Social Care,Older People,Supplies and Services,10/09/2012 00:00,484455,1076.99,REVENUE,Care UK Homecare Ltd,
Peterborough,http://opendatacommunities.org/id/unitary-authority/peterborough,Peterborough City Council,Adult Social Care,Older People,Supplies and Services,10/09/2012 00:00,484461,925.62,REVENUE,Tansor Assessment Centre,
Peterborough,http://opendatacommunities.org/id/unitary-authority/peterborough,Peterborough City Council,Adult Social Care,Adult Learning Disabilities,Employees,10/09/2012 00:00,484464,1209.6,REVENUE,City Resource Ltd,
Peterborough,http://opendatacommunities.org/id/unitary-authority/peterborough,Peterborough City Council,Adult Social Care,Older People,Supplies and Services,10/09/2012 00:00,484467,1090.74,REVENUE,Care UK Homecare Ltd,
Peterborough,http://opendatacommunities.org/id/unitary-authority/peterborough,Peterborough City Council,Adult Social Care,Older People,Supplies and Services,10/09/2012 00:00,484482,1586.54,REVENUE,Care UK Homecare Ltd,
Peterborough,http://opendatacommunities.org/id/unitary-authority/peterborough,Peterborough City Council,Children's & Education Services - Education,Other School -related Education Functions,Supplies and Services,10/09/2012 00:00,484495,29243.33,REVENUE,Action For Children,
Peterborough,http://opendatacommunities.org/id/unitary-authority/peterborough,Peterborough City Council,Planning Services,Economic Development,Employees,10/09/2012 00:00,484574,1497.6,REVENUE,The Synergy Group,
Peterborough,http://opendatacommunities.org/id/unitary-authority/peterborough,Peterborough City Council,More than one Service Area Category,More than one Service Division,More than one Expenses Type,10/09/2012 00:00,484611,9944.4,"Mixture of Capital, Revenue and/or Balance Sheet",Warics Ltd,
Peterborough,http://opendatacommunities.org/id/unitary-authority/peterborough,Peterborough City Council,Children's & Education Services - Education,Secondary,Employees,10/09/2012 00:00,484623,600,REVENUE,Vision for Education Ltd,
Peterborough,http://opendatacommunities.org/id/unitary-authority/peterborough,Peterborough City Council,Children's & Education Services - Education,Secondary,Employees,10/09/2012 00:00,484624,600,REVENUE,Vision for Education Ltd,
Peterborough,http://opendatacommunities.org/id/unitary-authority/peterborough,Peterborough City Council,Children's & Education Services - Education,Secondary,Employees,10/09/2012 00:00,484626,774,REVENUE,Vision for Education Ltd,
Peterborough,http://opendatacommunities.org/id/unitary-authority/peterborough,Peterborough City Council,More than one Service Area Category,More than one Service Division,More than one Expenses Type,10/09/2012 00:00,484627,4863,"Mixture of Capital, Revenue and/or Balance Sheet",P F S Builders & Contractors,
Peterborough,http://opendatacommunities.org/id/unitary-authority/peterborough,Peterborough City Council,Children's & Education Services - Education,Secondary,Employees,10/09/2012 00:00,484630,600,REVENUE,Vision for Education Ltd,
Peterborough,http://opendatacommunities.org/id/unitary-authority/peterborough,Peterborough City Council,Deficit/(Surplus) on Trading Undertakings,Trading Account Surpluses & Deficits,Supplies and Services,10/09/2012 00:00,484633,971.1,REVENUE,Perkins Engines Co Ltd,
Peterborough,http://opendatacommunities.org/id/unitary-authority/peterborough,Peterborough City Council,Children's & Education Services - Education,Secondary,Employees,10/09/2012 00:00,484635,572.4,REVENUE,Vision for Education Ltd,
Peterborough,http://opendatacommunities.org/id/unitary-authority/peterborough,Peterborough City Council,Children's & Education Services - Education,Secondary,Employees,10/09/2012 00:00,484637,619.2,REVENUE,Vision for Education Ltd,
Peterborough,http://opendatacommunities.org/id/unitary-authority/peterborough,Peterborough City Council,Children's & Education Services - Education,Secondary,Employees,10/09/2012 00:00,484638,774,REVENUE,Vision for Education Ltd,
Peterborough,http://opendatacommunities.org/id/unitary-authority/peterborough,Peterborough City Council,Children's & Education Services - Education,Other School -related Education Functions,Supplies and Services,10/09/2012 00:00,484642,780,REVENUE,Wordswell Ltd,
Peterborough,http://opendatacommunities.org/id/unitary-authority/peterborough,Peterborough City Council,Children's & Education Services - Education,Secondary,Employees,10/09/2012 00:00,484675,741,REVENUE,Vision for Education Ltd,
Peterborough,http://opendatacommunities.org/id/unitary-authority/peterborough,Peterborough City Council,Adult Social Care,Older People,Supplies and Services,10/09/2012 00:00,484749,2473.91,REVENUE,Redacted Personal Data,
Peterborough,http://opendatacommunities.org/id/unitary-authority/peterborough,Peterborough City Council,Children's & Education Services - Children's Social Care,Family Support Services,Employees,12/09/2012 00:00,438136,1779.76,REVENUE,Capita Resourcing Ltd,
Peterborough,http://opendatacommunities.org/id/unitary-authority/peterborough,Peterborough City Council,Children's & Education Services - Children's Social Care,Children Looked After,Supplies and Services - Transfer Payments,12/09/2012 00:00,474512,6407.2,REVENUE,Benjamin UK Ltd,
Peterborough,http://opendatacommunities.org/id/unitary-authority/peterborough,Peterborough City Council,Children's & Education Services - Children's Social Care,Children Looked After,Supplies and Services - Transfer Payments,12/09/2012 00:00,474514,8115.7,REVENUE,Benjamin UK Ltd,
Peterborough,http://opendatacommunities.org/id/unitary-authority/peterborough,Peterborough City Council,Children's & Education Services - Children's Social Care,Children Looked After,Supplies and Services - Transfer Payments,12/09/2012 00:00,474516,5980,REVENUE,Benjamin UK Ltd,
Peterborough,http://opendatacommunities.org/id/unitary-authority/peterborough,Peterborough City Council,Children's & Education Services - Children's Social Care,Children Looked After,Supplies and Services - Transfer Payments,12/09/2012 00:00,474518,5980,REVENUE,Benjamin UK Ltd,
Peterborough,http://opendatacommunities.org/id/unitary-authority/peterborough,Peterborough City Council,Deficit/(Surplus) on Trading Undertakings,Trading Account Surpluses & Deficits,Supplies and Services,12/09/2012 00:00,477973,1530,REVENUE,Barron Clark Castings Ltd,
Peterborough,http://opendatacommunities.org/id/unitary-authority/peterborough,Peterborough City Council,Loss on Disposal of fixed assets,Loss on Disposal of Fixed Assets,Third Party Payments,12/09/2012 00:00,479128,8700,REVENUE,MKB Solicitors,
Peterborough,http://opendatacommunities.org/id/unitary-authority/peterborough,Peterborough City Council,Environmental and Regulatory Services,Regulatory services,Supplies and Services,12/09/2012 00:00,479222,663,REVENUE,Unity Automotive Peterborough Ltd,
Peterborough,http://opendatacommunities.org/id/unitary-authority/peterborough,Peterborough City Council,Environmental and Regulatory Services,Regulatory services,Supplies and Services,12/09/2012 00:00,479223,780,REVENUE,Unity Automotive Peterborough Ltd,
Peterborough,http://opendatacommunities.org/id/unitary-authority/peterborough,Peterborough City Council,Adult Social Care,Older People,Supplies and Services,12/09/2012 00:00,479417,1713.99,REVENUE,BUPA CARE SERVICES,
Peterborough,http://opendatacommunities.org/id/unitary-authority/peterborough,Peterborough City Council,Adult Social Care,Older People,Supplies and Services,12/09/2012 00:00,479885,759.57,REVENUE,THOMAS RIDLEY & SON LTD,
Peterborough,http://opendatacommunities.org/id/unitary-authority/peterborough,Peterborough City Council,Children's & Education Services - Children's Social Care,Children Looked After,Supplies and Services - Transfer Payments,12/09/2012 00:00,479928,-1651.38,REVENUE,Fostering Solutions,
Peterborough,http://opendatacommunities.org/id/unitary-authority/peterborough,Peterborough City Council,Children's & Education Services - Children's Social Care,Children Looked After,Supplies and Services - Transfer Payments,12/09/2012 00:00,480187,2907.49,REVENUE,Foster Care Associates Ltd FCA,
Peterborough,http://opendatacommunities.org/id/unitary-authority/peterborough,Peterborough City Council,Children's & Education Services - Children's Social Care,Children Looked After,Supplies and Services - Transfer Payments,12/09/2012 00:00,480191,3011.34,REVENUE,Fostering Solutions,
Peterborough,http://opendatacommunities.org/id/unitary-authority/peterborough,Peterborough City Council,Children's & Education Services - Children's Social Care,Children Looked After,Supplies and Services - Transfer Payments,12/09/2012 00:00,480255,2886.41,REVENUE,Fostering Solutions,
Peterborough,http://opendatacommunities.org/id/unitary-authority/peterborough,Peterborough City Council,Planning Services,Economic Development,Supplies and Services,12/09/2012 00:00,480265,571.2,REVENUE,Performing Rights Society Ltd,
Peterborough,http://opendatacommunities.org/id/unitary-authority/peterborough,Peterborough City Council,Children's & Education Services - Children's Social Care,Children Looked After,Supplies and Services - Transfer Payments,12/09/2012 00:00,480275,2878.35,REVENUE,Fostering Solutions,
Peterborough,http://opendatacommunities.org/id/unitary-authority/peterborough,Peterborough City Council,Children's & Education Services - Children's Social Care,Family Support Services,Employees,12/09/2012 00:00,480280,1377.42,REVENUE,Capita Resourcing Ltd,
Peterborough,http://opendatacommunities.org/id/unitary-authority/peterborough,Peterborough City Council,Capital,Capital,Capital Pending Update to BS,12/09/2012 00:00,480284,900,CAPITAL,Barker Storey Matthews,
Peterborough,http://opendatacommunities.org/id/unitary-authority/peterborough,Peterborough City Council,Highways and Transport Services,"Transport planning, policy and strategy",Employees,12/09/2012 00:00,480288,990.72,REVENUE,Randstad CPE,
Peterborough,http://opendatacommunities.org/id/unitary-authority/peterborough,Peterborough City Council,Capital,Capital,Capital Pending Update to BS,12/09/2012 00:00,480331,1500.1,CAPITAL,Atkins Limited,
Peterborough,http://opendatacommunities.org/id/unitary-authority/peterborough,Peterborough City Council,Capital,Capital,Capital Pending Update to BS,12/09/2012 00:00,480333,774.71,CAPITAL,Atkins Limited,
Peterborough,http://opendatacommunities.org/id/unitary-authority/peterborough,Peterborough City Council,Capital,Capital,Capital Pending Update to BS,12/09/2012 00:00,480336,10627.92,CAPITAL,Atkins Limited,
Peterborough,http://opendatacommunities.org/id/unitary-authority/peterborough,Peterborough City Council,Capital,Capital,Capital Pending Update to BS,12/09/2012 00:00,480341,8348.52,CAPITAL,Atkins Limited,
Peterborough,http://opendatacommunities.org/id/unitary-authority/peterborough,Peterborough City Council,Highways and Transport Services,Street Lighting,Supplies and Services,12/09/2012 00:00,480342,524.58,REVENUE,Dambach UK Ltd,
Peterborough,http://opendatacommunities.org/id/unitary-authority/peterborough,Peterborough City Council,Capital,Capital,Capital Pending Update to BS,12/09/2012 00:00,480344,4211.66,CAPITAL,Atkins Limited,
Peterborough,http://opendatacommunities.org/id/unitary-authority/peterborough,Peterborough City Council,Highways and Transport Services,Structural Maintenance,Transport,12/09/2012 00:00,480351,682.32,REVENUE,Atkins Limited,
Peterborough,http://opendatacommunities.org/id/unitary-authority/peterborough,Peterborough City Council,Children's & Education Services - Children's Social Care,Children Looked After,Supplies and Services - Transfer Payments,12/09/2012 00:00,480354,2878.35,REVENUE,Fostering Solutions,
Peterborough,http://opendatacommunities.org/id/unitary-authority/peterborough,Peterborough City Council,Children's & Education Services - Children's Social Care,Children Looked After,Supplies and Services - Transfer Payments,12/09/2012 00:00,480376,3434.18,REVENUE,Fostering Solutions,
Peterborough,http://opendatacommunities.org/id/unitary-authority/peterborough,Peterborough City Council,Capital,Capital,Capital Pending Update to BS,12/09/2012 00:00,480378,4102.09,CAPITAL,Atkins Limited,
Peterborough,http://opendatacommunities.org/id/unitary-authority/peterborough,Peterborough City Council,Capital,Capital,Capital Pending Update to BS,12/09/2012 00:00,480382,3696.48,CAPITAL,Atkins Limited,
Peterborough,http://opendatacommunities.org/id/unitary-authority/peterborough,Peterborough City Council,Capital,Capital,Capital Pending Update to BS,12/09/2012 00:00,480385,10421.56,CAPITAL,Atkins Limited,
Peterborough,http://opendatacommunities.org/id/unitary-authority/peterborough,Peterborough City Council,Capital,Capital,Capital Pending Update to BS,12/09/2012 00:00,480390,821,CAPITAL,Atkins Limited,
Peterborough,http://opendatacommunities.org/id/unitary-authority/peterborough,Peterborough City Council,Capital,Capital,Capital Pending Update to BS,12/09/2012 00:00,480393,10320,CAPITAL,Atkins Limited,
Peterborough,http://opendatacommunities.org/id/unitary-authority/peterborough,Peterborough City Council,Highways and Transport Services,"Transport planning, policy and strategy",Transport,12/09/2012 00:00,480440,609.91,REVENUE,Atkins Limited,
Peterborough,http://opendatacommunities.org/id/unitary-authority/peterborough,Peterborough City Council,Capital,Capital,Capital Pending Update to BS,12/09/2012 00:00,480442,2372.21,CAPITAL,Atkins Limited,
Peterborough,http://opendatacommunities.org/id/unitary-authority/peterborough,Peterborough City Council,Capital,Capital,Capital Pending Update to BS,12/09/2012 00:00,480443,916.63,CAPITAL,Atkins Limited,
Peterborough,http://opendatacommunities.org/id/unitary-authority/peterborough,Peterborough City Council,Highways and Transport Services,"Environmental, Safety & Routine Maintenance",Transport,12/09/2012 00:00,480444,5070.47,REVENUE,Atkins Limited,
Peterborough,http://opendatacommunities.org/id/unitary-authority/peterborough,Peterborough City Council,Adult Social Care,Support Services & Management Costs,Employees,12/09/2012 00:00,480445,589.68,REVENUE,Service Care Solutions Ltd,
Peterborough,http://opendatacommunities.org/id/unitary-authority/peterborough,Peterborough City Council,Adult Social Care,Older People,Supplies and Services,12/09/2012 00:00,480457,540.73,REVENUE,COMFORCARE SENIOR SERVICES,
Peterborough,http://opendatacommunities.org/id/unitary-authority/peterborough,Peterborough City Council,Capital,Capital,Capital Pending Update to BS,12/09/2012 00:00,480464,1627.45,CAPITAL,Portakabin Ltd,
Peterborough,http://opendatacommunities.org/id/unitary-authority/peterborough,Peterborough City Council,Children's & Education Services - Children's Social Care,Children Looked After,Supplies and Services - Transfer Payments,12/09/2012 00:00,480471,3011.34,REVENUE,Fostering Solutions,
Peterborough,http://opendatacommunities.org/id/unitary-authority/peterborough,Peterborough City Council,Adult Social Care,Older People,Supplies and Services,12/09/2012 00:00,480478,1529.14,REVENUE,FAIRFIELD HOUSE HEALTHCARE LTD,
Peterborough,http://opendatacommunities.org/id/unitary-authority/peterborough,Peterborough City Council,Children's & Education Services - Children's Social Care,Children Looked After,Supplies and Services - Transfer Payments,12/09/2012 00:00,480479,2878.35,REVENUE,Fostering Solutions,
Peterborough,http://opendatacommunities.org/id/unitary-authority/peterborough,Peterborough City Council,Adult Social Care,Older People,Supplies and Services,12/09/2012 00:00,480480,3040,REVENUE,CHRISTIES CARE LTD,
Peterborough,http://opendatacommunities.org/id/unitary-authority/peterborough,Peterborough City Council,Children's & Education Services - Children's Social Care,Children Looked After,Supplies and Services - Transfer Payments,12/09/2012 00:00,480482,2878.35,REVENUE,Fostering Solutions,
Peterborough,http://opendatacommunities.org/id/unitary-authority/peterborough,Peterborough City Council,Children's & Education Services - Children's Social Care,Children Looked After,Supplies and Services - Transfer Payments,12/09/2012 00:00,480484,2878.35,REVENUE,Fostering Solutions,
Peterborough,http://opendatacommunities.org/id/unitary-authority/peterborough,Peterborough City Council,Environmental and Regulatory Services,Flood Defence & Land Drainage,Supplies and Services,12/09/2012 00:00,480495,46200,REVENUE,ADC (East Anglia) Ltd,
Peterborough,http://opendatacommunities.org/id/unitary-authority/peterborough,Peterborough City Council,Adult Social Care,Older People,Supplies and Services,12/09/2012 00:00,480535,964.25,REVENUE,COMFORCARE SENIOR SERVICES,
Peterborough,http://opendatacommunities.org/id/unitary-authority/peterborough,Peterborough City Council,Children's & Education Services - Children's Social Care,Children Looked After,Supplies and Services - Transfer Payments,12/09/2012 00:00,480555,2907.49,REVENUE,Foster Care Associates Ltd FCA,
Peterborough,http://opendatacommunities.org/id/unitary-authority/peterborough,Peterborough City Council,Adult Social Care,Older People,Supplies and Services,12/09/2012 00:00,480556,1002.4,REVENUE,PARTNERSHIPS IN CARE - RISBY,
Peterborough,http://opendatacommunities.org/id/unitary-authority/peterborough,Peterborough City Council,Children's & Education Services - Children's Social Care,Children Looked After,Supplies and Services - Transfer Payments,12/09/2012 00:00,480557,3007.62,REVENUE,Fostering Solutions,
Peterborough,http://opendatacommunities.org/id/unitary-authority/peterborough,Peterborough City Council,Children's & Education Services - Children's Social Care,Children Looked After,Supplies and Services - Transfer Payments,12/09/2012 00:00,480576,3554.46,REVENUE,Fostering Solutions,
Peterborough,http://opendatacommunities.org/id/unitary-authority/peterborough,Peterborough City Council,Adult Social Care,Older People,Supplies and Services,12/09/2012 00:00,480635,3600,REVENUE,LESTER HALL APARTMENTS LTD,
Peterborough,http://opendatacommunities.org/id/unitary-authority/peterborough,Peterborough City Council,Children's & Education Services - Children's Social Care,Children Looked After,Supplies and Services - Transfer Payments,12/09/2012 00:00,480655,3011.34,REVENUE,Fostering Solutions,
Peterborough,http://opendatacommunities.org/id/unitary-authority/peterborough,Peterborough City Council,Adult Social Care,Older People,Supplies and Services,12/09/2012 00:00,480695,1000.96,REVENUE,Tunstall Hall,
Peterborough,http://opendatacommunities.org/id/unitary-authority/peterborough,Peterborough City Council,Adult Social Care,Older People,Supplies and Services,12/09/2012 00:00,480696,1806.55,REVENUE,BUPA CARE SERVICES,
Peterborough,http://opendatacommunities.org/id/unitary-authority/peterborough,Peterborough City Council,Adult Social Care,Older People,Supplies and Services,12/09/2012 00:00,480697,1636.05,REVENUE,BUPA CARE SERVICES,
Peterborough,http://opendatacommunities.org/id/unitary-authority/peterborough,Peterborough City Council,Adult Social Care,Older People,Supplies and Services,12/09/2012 00:00,480715,1437.54,REVENUE,BUPA CARE SERVICES,
Peterborough,http://opendatacommunities.org/id/unitary-authority/peterborough,Peterborough City Council,Adult Social Care,Adult Learning Disabilities,Supplies and Services,12/09/2012 00:00,480716,1668.34,REVENUE,PRIME LIFE LTD,
Peterborough,http://opendatacommunities.org/id/unitary-authority/peterborough,Peterborough City Council,Children's & Education Services - Children's Social Care,Children Looked After,Supplies and Services - Transfer Payments,12/09/2012 00:00,480718,3239.81,REVENUE,Fostering Solutions,
Peterborough,http://opendatacommunities.org/id/unitary-authority/peterborough,Peterborough City Council,Children's & Education Services - Children's Social Care,Children Looked After,Supplies and Services - Transfer Payments,12/09/2012 00:00,480736,3122.01,REVENUE,Fostering Solutions,
Peterborough,http://opendatacommunities.org/id/unitary-authority/peterborough,Peterborough City Council,Adult Social Care,Older People,Supplies and Services,12/09/2012 00:00,480739,1101.7,REVENUE,BUPA CARE SERVICES,
Peterborough,http://opendatacommunities.org/id/unitary-authority/peterborough,Peterborough City Council,Adult Social Care,Adult Learning Disabilities,Supplies and Services,12/09/2012 00:00,480781,3451.5,REVENUE,Thera East Anglia,
Peterborough,http://opendatacommunities.org/id/unitary-authority/peterborough,Peterborough City Council,Children's & Education Services - Children's Social Care,Children Looked After,Supplies and Services - Transfer Payments,12/09/2012 00:00,480782,3122.01,REVENUE,Fostering Solutions,
Peterborough,http://opendatacommunities.org/id/unitary-authority/peterborough,Peterborough City Council,Children's & Education Services - Children's Social Care,Children Looked After,Supplies and Services - Transfer Payments,12/09/2012 00:00,480783,3556.01,REVENUE,Foster Care Associates Ltd FCA,
Peterborough,http://opendatacommunities.org/id/unitary-authority/peterborough,Peterborough City Council,Children's & Education Services - Children's Social Care,Children Looked After,Supplies and Services - Transfer Payments,12/09/2012 00:00,480786,3052.57,REVENUE,Foster Care Associates Ltd FCA,
Peterborough,http://opendatacommunities.org/id/unitary-authority/peterborough,Peterborough City Council,Children's & Education Services - Children's Social Care,Children Looked After,Supplies and Services - Transfer Payments,12/09/2012 00:00,480788,2907.49,REVENUE,Foster Care Associates Ltd FCA,
Peterborough,http://opendatacommunities.org/id/unitary-authority/peterborough,Peterborough City Council,Children's & Education Services - Children's Social Care,Children Looked After,Supplies and Services - Transfer Payments,12/09/2012 00:00,480793,3556.01,REVENUE,Foster Care Associates Ltd FCA,
Peterborough,http://opendatacommunities.org/id/unitary-authority/peterborough,Peterborough City Council,Children's & Education Services - Children's Social Care,Children Looked After,Supplies and Services - Transfer Payments,12/09/2012 00:00,480799,2907.49,REVENUE,Foster Care Associates Ltd FCA,
Peterborough,http://opendatacommunities.org/id/unitary-authority/peterborough,Peterborough City Council,Children's & Education Services - Children's Social Care,Children Looked After,Supplies and Services - Transfer Payments,12/09/2012 00:00,480801,2907.49,REVENUE,Foster Care Associates Ltd FCA,
Peterborough,http://opendatacommunities.org/id/unitary-authority/peterborough,Peterborough City Council,Children's & Education Services - Children's Social Care,Children Looked After,Supplies and Services - Transfer Payments,12/09/2012 00:00,480806,3556.01,REVENUE,Foster Care Associates Ltd FCA,
Peterborough,http://opendatacommunities.org/id/unitary-authority/peterborough,Peterborough City Council,Children's & Education Services - Children's Social Care,Children Looked After,Supplies and Services - Transfer Payments,12/09/2012 00:00,480809,3556.01,REVENUE,Foster Care Associates Ltd FCA,
Peterborough,http://opendatacommunities.org/id/unitary-authority/peterborough,Peterborough City Council,Children's & Education Services - Children's Social Care,Children Looked After,Supplies and Services - Transfer Payments,12/09/2012 00:00,480810,3555.7,REVENUE,Foster Care Associates Ltd FCA,
Peterborough,http://opendatacommunities.org/id/unitary-authority/peterborough,Peterborough City Council,Children's & Education Services - Children's Social Care,Children Looked After,Supplies and Services - Transfer Payments,12/09/2012 00:00,480822,6421.34,REVENUE,Foster Care Associates Ltd FCA,
Peterborough,http://opendatacommunities.org/id/unitary-authority/peterborough,Peterborough City Council,Children's & Education Services - Children's Social Care,Children Looked After,Supplies and Services - Transfer Payments,12/09/2012 00:00,480835,3556.01,REVENUE,Foster Care Associates Ltd FCA,
Peterborough,http://opendatacommunities.org/id/unitary-authority/peterborough,Peterborough City Council,Children's & Education Services - Children's Social Care,Children Looked After,Supplies and Services - Transfer Payments,12/09/2012 00:00,480836,3556.01,REVENUE,Foster Care Associates Ltd FCA,
Peterborough,http://opendatacommunities.org/id/unitary-authority/peterborough,Peterborough City Council,Children's & Education Services - Children's Social Care,Children Looked After,Supplies and Services - Transfer Payments,12/09/2012 00:00,480841,3556.01,REVENUE,Foster Care Associates Ltd FCA,
Peterborough,http://opendatacommunities.org/id/unitary-authority/peterborough,Peterborough City Council,Children's & Education Services - Children's Social Care,Children Looked After,Supplies and Services - Transfer Payments,12/09/2012 00:00,480846,3556.01,REVENUE,Foster Care Associates Ltd FCA,
Peterborough,http://opendatacommunities.org/id/unitary-authority/peterborough,Peterborough City Council,Children's & Education Services - Children's Social Care,Children Looked After,Supplies and Services - Transfer Payments,12/09/2012 00:00,480903,3555.7,REVENUE,Foster Care Associates Ltd FCA,
Peterborough,http://opendatacommunities.org/id/unitary-authority/peterborough,Peterborough City Council,Children's & Education Services - Children's Social Care,Children Looked After,Supplies and Services - Transfer Payments,12/09/2012 00:00,480910,3556.01,REVENUE,Foster Care Associates Ltd FCA,
Peterborough,http://opendatacommunities.org/id/unitary-authority/peterborough,Peterborough City Council,Planning Services,Economic Development,Supplies and Services,12/09/2012 00:00,480924,960,REVENUE,"O'Brien, Mr Michael",
Peterborough,http://opendatacommunities.org/id/unitary-authority/peterborough,Peterborough City Council,Adult Social Care,Older People,Supplies and Services,12/09/2012 00:00,480952,1423.25,REVENUE,BUPA Care  Homes,
Peterborough,http://opendatacommunities.org/id/unitary-authority/peterborough,Peterborough City Council,Adult Social Care,Older People,Supplies and Services,12/09/2012 00:00,480989,1721.12,REVENUE,BUPA Care  Homes,
Peterborough,http://opendatacommunities.org/id/unitary-authority/peterborough,Peterborough City Council,Adult Social Care,Older People,Supplies and Services,12/09/2012 00:00,480996,1534.41,REVENUE,BUPA Care  Homes,
Peterborough,http://opendatacommunities.org/id/unitary-authority/peterborough,Peterborough City Council,Adult Social Care,Older People,Supplies and Services,12/09/2012 00:00,480999,1423.25,REVENUE,BUPA Care  Homes,
Peterborough,http://opendatacommunities.org/id/unitary-authority/peterborough,Peterborough City Council,Adult Social Care,Older People,Supplies and Services,12/09/2012 00:00,481000,1591.01,REVENUE,BUPA Care  Homes,
Peterborough,http://opendatacommunities.org/id/unitary-authority/peterborough,Peterborough City Council,Adult Social Care,Adult Mental Health,Supplies and Services,12/09/2012 00:00,481005,1134.25,REVENUE,BUPA Care  Homes,
Peterborough,http://opendatacommunities.org/id/unitary-authority/peterborough,Peterborough City Council,Adult Social Care,Older People,Supplies and Services,12/09/2012 00:00,481006,1713.99,REVENUE,BUPA Care  Homes,
Peterborough,http://opendatacommunities.org/id/unitary-authority/peterborough,Peterborough City Council,Adult Social Care,Older People,Supplies and Services,12/09/2012 00:00,481007,1656.42,REVENUE,BUPA Care  Homes,
Peterborough,http://opendatacommunities.org/id/unitary-authority/peterborough,Peterborough City Council,Adult Social Care,Older People,Supplies and Services,12/09/2012 00:00,481012,1186.1,REVENUE,BUPA Care  Homes,
Peterborough,http://opendatacommunities.org/id/unitary-authority/peterborough,Peterborough City Council,Adult Social Care,Older People,Supplies and Services,12/09/2012 00:00,481014,1758.98,REVENUE,BUPA Care  Homes,
Peterborough,http://opendatacommunities.org/id/unitary-authority/peterborough,Peterborough City Council,Adult Social Care,Older People,Supplies and Services,12/09/2012 00:00,481017,1186.1,REVENUE,BUPA Care  Homes,
Peterborough,http://opendatacommunities.org/id/unitary-authority/peterborough,Peterborough City Council,Adult Social Care,Older People,Supplies and Services,12/09/2012 00:00,481019,1758.98,REVENUE,BUPA Care  Homes,
Peterborough,http://opendatacommunities.org/id/unitary-authority/peterborough,Peterborough City Council,Adult Social Care,Older People,Supplies and Services,12/09/2012 00:00,481025,1323.43,REVENUE,BUPA Care  Homes,
Peterborough,http://opendatacommunities.org/id/unitary-authority/peterborough,Peterborough City Council,Adult Social Care,Older People,Supplies and Services,12/09/2012 00:00,481027,1475.25,REVENUE,BUPA Care  Homes,
Peterborough,http://opendatacommunities.org/id/unitary-authority/peterborough,Peterborough City Council,Adult Social Care,Older People,Supplies and Services,12/09/2012 00:00,481032,1434.68,REVENUE,BUPA Care  Homes,
Peterborough,http://opendatacommunities.org/id/unitary-authority/peterborough,Peterborough City Council,Planning Services,Economic Development,Premises,12/09/2012 00:00,481057,770.64,REVENUE,Equinox (Peterborough) Ltd,
Peterborough,http://opendatacommunities.org/id/unitary-authority/peterborough,Peterborough City Council,Housing Services,Private Sector Housing Renewal,Supplies and Services,12/09/2012 00:00,481105,918,REVENUE,Fletton Electrics Ltd,
Peterborough,http://opendatacommunities.org/id/unitary-authority/peterborough,Peterborough City Council,Highways and Transport Services,"Transport planning, policy and strategy",Transport,12/09/2012 00:00,481113,1092,REVENUE,Atkins Limited,
Peterborough,http://opendatacommunities.org/id/unitary-authority/peterborough,Peterborough City Council,Highways and Transport Services,"Transport planning, policy and strategy",Supplies and Services,12/09/2012 00:00,481115,558.46,REVENUE,Johnston Press Midlands Division,
Peterborough,http://opendatacommunities.org/id/unitary-authority/peterborough,Peterborough City Council,Adult Social Care,Older People,Supplies and Services,12/09/2012 00:00,481148,1423.25,REVENUE,BUPA Care  Homes,
Peterborough,http://opendatacommunities.org/id/unitary-authority/peterborough,Peterborough City Council,Adult Social Care,Older People,Supplies and Services,12/09/2012 00:00,481152,1186.1,REVENUE,BUPA Care  Homes,
Peterborough,http://opendatacommunities.org/id/unitary-authority/peterborough,Peterborough City Council,Adult Social Care,Older People,Supplies and Services,12/09/2012 00:00,481156,1440.97,REVENUE,BUPA Care  Homes,
Peterborough,http://opendatacommunities.org/id/unitary-authority/peterborough,Peterborough City Council,Adult Social Care,Older People,Supplies and Services,12/09/2012 00:00,481167,1363.47,REVENUE,BUPA Care  Homes,
Peterborough,http://opendatacommunities.org/id/unitary-authority/peterborough,Peterborough City Council,Adult Social Care,Older People,Supplies and Services,12/09/2012 00:00,481171,976.41,REVENUE,BUPA Care  Homes,
Peterborough,http://opendatacommunities.org/id/unitary-authority/peterborough,Peterborough City Council,Adult Social Care,Older People,Supplies and Services,12/09/2012 00:00,481175,1146.56,REVENUE,BUPA Care  Homes,
Peterborough,http://opendatacommunities.org/id/unitary-authority/peterborough,Peterborough City Council,Adult Social Care,Older People,Supplies and Services,12/09/2012 00:00,481178,1951.14,REVENUE,BUPA Care  Homes,
Peterborough,http://opendatacommunities.org/id/unitary-authority/peterborough,Peterborough City Council,Adult Social Care,Older People,Supplies and Services,12/09/2012 00:00,481180,1176.63,REVENUE,BUPA Care  Homes,
Peterborough,http://opendatacommunities.org/id/unitary-authority/peterborough,Peterborough City Council,Adult Social Care,Older People,Supplies and Services,12/09/2012 00:00,481188,950.81,REVENUE,BUPA Care  Homes,
Peterborough,http://opendatacommunities.org/id/unitary-authority/peterborough,Peterborough City Council,Adult Social Care,Older People,Supplies and Services,12/09/2012 00:00,481193,1321.71,REVENUE,BUPA Care  Homes,
Peterborough,http://opendatacommunities.org/id/unitary-authority/peterborough,Peterborough City Council,Adult Social Care,Older People,Supplies and Services,12/09/2012 00:00,481195,1143.01,REVENUE,BUPA Care  Homes,
Peterborough,http://opendatacommunities.org/id/unitary-authority/peterborough,Peterborough City Council,Adult Social Care,Older People,Supplies and Services,12/09/2012 00:00,481204,1120.61,REVENUE,BUPA Care  Homes,
Peterborough,http://opendatacommunities.org/id/unitary-authority/peterborough,Peterborough City Council,Adult Social Care,Older People,Supplies and Services,12/09/2012 00:00,481220,1315.11,REVENUE,BUPA Care  Homes,
Peterborough,http://opendatacommunities.org/id/unitary-authority/peterborough,Peterborough City Council,Adult Social Care,Older People,Supplies and Services,12/09/2012 00:00,481222,1423.25,REVENUE,BUPA Care  Homes,
Peterborough,http://opendatacommunities.org/id/unitary-authority/peterborough,Peterborough City Council,Adult Social Care,Older People,Supplies and Services,12/09/2012 00:00,481224,1327.24,REVENUE,BUPA Care  Homes,
Peterborough,http://opendatacommunities.org/id/unitary-authority/peterborough,Peterborough City Council,Adult Social Care,Older People,Supplies and Services,12/09/2012 00:00,481230,1423.25,REVENUE,BUPA Care  Homes,
Peterborough,http://opendatacommunities.org/id/unitary-authority/peterborough,Peterborough City Council,Adult Social Care,Older People,Supplies and Services,12/09/2012 00:00,481234,1423.25,REVENUE,BUPA Care  Homes,
Peterborough,http://opendatacommunities.org/id/unitary-authority/peterborough,Peterborough City Council,Adult Social Care,Older People,Supplies and Services,12/09/2012 00:00,481237,1574.36,REVENUE,BUPA Care  Homes,
Peterborough,http://opendatacommunities.org/id/unitary-authority/peterborough,Peterborough City Council,Adult Social Care,Older People,Supplies and Services,12/09/2012 00:00,481241,1186.1,REVENUE,BUPA Care  Homes,
Peterborough,http://opendatacommunities.org/id/unitary-authority/peterborough,Peterborough City Council,Adult Social Care,Adult Mental Health,Supplies and Services,12/09/2012 00:00,481246,1604.34,REVENUE,BUPA Care  Homes,
Peterborough,http://opendatacommunities.org/id/unitary-authority/peterborough,Peterborough City Council,Adult Social Care,Older People,Supplies and Services,12/09/2012 00:00,481250,1423.25,REVENUE,BUPA Care  Homes,
Peterborough,http://opendatacommunities.org/id/unitary-authority/peterborough,Peterborough City Council,Adult Social Care,Older People,Supplies and Services,12/09/2012 00:00,481268,1325.78,REVENUE,BUPA Care  Homes,
Peterborough,http://opendatacommunities.org/id/unitary-authority/peterborough,Peterborough City Council,Adult Social Care,Older People,Supplies and Services,12/09/2012 00:00,481282,1180.97,REVENUE,BUPA Care  Homes,
Peterborough,http://opendatacommunities.org/id/unitary-authority/peterborough,Peterborough City Council,Adult Social Care,Adult Mental Health,Supplies and Services,12/09/2012 00:00,481285,897.58,REVENUE,BUPA Care  Homes,
Peterborough,http://opendatacommunities.org/id/unitary-authority/peterborough,Peterborough City Council,Capital,Capital,Capital Pending Update to BS,12/09/2012 00:00,481287,105779.78,CAPITAL,J Breheny Contractors Ltd,
Peterborough,http://opendatacommunities.org/id/unitary-authority/peterborough,Peterborough City Council,Capital,Capital,Capital Pending Update to BS,12/09/2012 00:00,481288,594.46,CAPITAL,Atkins Limited,
Peterborough,http://opendatacommunities.org/id/unitary-authority/peterborough,Peterborough City Council,Adult Social Care,Older People,Supplies and Services,12/09/2012 00:00,481290,2561.44,REVENUE,BUPA Care  Homes,
Peterborough,http://opendatacommunities.org/id/unitary-authority/peterborough,Peterborough City Council,Capital,Capital,Capital Pending Update to BS,12/09/2012 00:00,481293,7915.5,CAPITAL,Atkins Limited,
Peterborough,http://opendatacommunities.org/id/unitary-authority/peterborough,Peterborough City Council,Capital,Capital,Capital Pending Update to BS,12/09/2012 00:00,481298,13331.83,CAPITAL,Atkins Limited,
Peterborough,http://opendatacommunities.org/id/unitary-authority/peterborough,Peterborough City Council,Capital,Capital,Capital Pending Update to BS,12/09/2012 00:00,481301,2906.52,CAPITAL,Atkins Limited,
Peterborough,http://opendatacommunities.org/id/unitary-authority/peterborough,Peterborough City Council,Capital,Capital,Capital Pending Update to BS,12/09/2012 00:00,481303,3862.75,CAPITAL,Atkins Limited,
Peterborough,http://opendatacommunities.org/id/unitary-authority/peterborough,Peterborough City Council,Adult Social Care,Older People,Supplies and Services,12/09/2012 00:00,481304,1369.05,REVENUE,BUPA Care  Homes,
Peterborough,http://opendatacommunities.org/id/unitary-authority/peterborough,Peterborough City Council,Highways and Transport Services,"Transport planning, policy and strategy",Transport,12/09/2012 00:00,481307,3721.04,REVENUE,Atkins Limited,
Peterborough,http://opendatacommunities.org/id/unitary-authority/peterborough,Peterborough City Council,Highways and Transport Services,"Transport planning, policy and strategy",Transport,12/09/2012 00:00,481310,1892.04,REVENUE,Atkins Limited,
Peterborough,http://opendatacommunities.org/id/unitary-authority/peterborough,Peterborough City Council,Capital,Capital,Capital Pending Update to BS,12/09/2012 00:00,481312,800.11,CAPITAL,Atkins Limited,
Peterborough,http://opendatacommunities.org/id/unitary-authority/peterborough,Peterborough City Council,Capital,Capital,Capital Pending Update to BS,12/09/2012 00:00,481316,1409.88,CAPITAL,Atkins Limited,
Peterborough,http://opendatacommunities.org/id/unitary-authority/peterborough,Peterborough City Council,Capital,Capital,Capital Pending Update to BS,12/09/2012 00:00,481319,1392.41,CAPITAL,Atkins Limited,
Peterborough,http://opendatacommunities.org/id/unitary-authority/peterborough,Peterborough City Council,Capital,Capital,Capital Pending Update to BS,12/09/2012 00:00,481321,754.18,CAPITAL,Atkins Limited,
Peterborough,http://opendatacommunities.org/id/unitary-authority/peterborough,Peterborough City Council,Adult Social Care,Adult Mental Health,Supplies and Services,12/09/2012 00:00,481329,1423.25,REVENUE,BUPA Care  Homes,
Peterborough,http://opendatacommunities.org/id/unitary-authority/peterborough,Peterborough City Council,Highways and Transport Services,"Transport planning, policy and strategy",Supplies and Services,12/09/2012 00:00,481349,797.78,REVENUE,Johnston Press Midlands Division,
Peterborough,http://opendatacommunities.org/id/unitary-authority/peterborough,Peterborough City Council,Children's & Education Services - Education,Other School -related Education Functions,Supplies and Services,12/09/2012 00:00,481352,1058.51,REVENUE,Peterborough Tree Services Ltd,
Peterborough,http://opendatacommunities.org/id/unitary-authority/peterborough,Peterborough City Council,Capital,Capital,Capital Pending Update to BS,12/09/2012 00:00,481356,6003.6,CAPITAL,Civica UK Limited,
Peterborough,http://opendatacommunities.org/id/unitary-authority/peterborough,Peterborough City Council,Capital,Capital,Capital Pending Update to BS,12/09/2012 00:00,481928,37500,CAPITAL,Pinsent Masons,
Peterborough,http://opendatacommunities.org/id/unitary-authority/peterborough,Peterborough City Council,Capital,Capital,Capital Pending Update to BS,12/09/2012 00:00,481932,24000,CAPITAL,Pinsent Masons,
Peterborough,http://opendatacommunities.org/id/unitary-authority/peterborough,Peterborough City Council,Adult Social Care,Older People,Supplies and Services,12/09/2012 00:00,481940,1275.12,REVENUE,BUPA CARE SERVICES,
Peterborough,http://opendatacommunities.org/id/unitary-authority/peterborough,Peterborough City Council,Children's & Education Services - Education,Other School -related Education Functions,Supplies and Services,12/09/2012 00:00,481942,20814.28,REVENUE,Oracle Care Ltd (Region 2),
Peterborough,http://opendatacommunities.org/id/unitary-authority/peterborough,Peterborough City Council,Adult Social Care,Older People,Supplies and Services,12/09/2012 00:00,481944,1423.25,REVENUE,BUPA CARE SERVICES,
Peterborough,http://opendatacommunities.org/id/unitary-authority/peterborough,Peterborough City Council,Adult Social Care,Older People,Supplies and Services,12/09/2012 00:00,481958,1951.14,REVENUE,BUPA CARE SERVICES,
Peterborough,http://opendatacommunities.org/id/unitary-authority/peterborough,Peterborough City Council,Adult Social Care,Older People,Supplies and Services,12/09/2012 00:00,481961,2561.44,REVENUE,BUPA CARE SERVICES,
Peterborough,http://opendatacommunities.org/id/unitary-authority/peterborough,Peterborough City Council,Adult Social Care,Older People,Supplies and Services,12/09/2012 00:00,481967,1186.1,REVENUE,BUPA CARE SERVICES,
Peterborough,http://opendatacommunities.org/id/unitary-authority/peterborough,Peterborough City Council,Adult Social Care,Adult Mental Health,Supplies and Services,12/09/2012 00:00,481969,1709.43,REVENUE,BUPA CARE SERVICES,
Peterborough,http://opendatacommunities.org/id/unitary-authority/peterborough,Peterborough City Council,Adult Social Care,Adult Learning Disabilities,Supplies and Services,12/09/2012 00:00,482010,1065.43,REVENUE,BUPA CARE SERVICES,
Peterborough,http://opendatacommunities.org/id/unitary-authority/peterborough,Peterborough City Council,Adult Social Care,Older People,Supplies and Services,12/09/2012 00:00,482011,7200,REVENUE,BUPA CARE SERVICES,
Peterborough,http://opendatacommunities.org/id/unitary-authority/peterborough,Peterborough City Council,Environmental and Regulatory Services,Waste Collection,Supplies and Services,12/09/2012 00:00,482036,10246.75,REVENUE,H W Martin Waste Ltd,
Peterborough,http://opendatacommunities.org/id/unitary-authority/peterborough,Peterborough City Council,Adult Social Care,Older People,Supplies and Services,12/09/2012 00:00,482086,-1951.14,REVENUE,BUPA CARE SERVICES,
Peterborough,http://opendatacommunities.org/id/unitary-authority/peterborough,Peterborough City Council,Adult Social Care,Older People,Supplies and Services,12/09/2012 00:00,482089,-1888.2,REVENUE,BUPA CARE SERVICES,
Peterborough,http://opendatacommunities.org/id/unitary-authority/peterborough,Peterborough City Council,Adult Social Care,Older People,Supplies and Services,12/09/2012 00:00,482101,-959.01,REVENUE,BUPA CARE SERVICES,
Peterborough,http://opendatacommunities.org/id/unitary-authority/peterborough,Peterborough City Council,Adult Social Care,Older People,Supplies and Services,12/09/2012 00:00,482103,-755.28,REVENUE,BUPA CARE SERVICES,
Peterborough,http://opendatacommunities.org/id/unitary-authority/peterborough,Peterborough City Council,Adult Social Care,Older People,Supplies and Services,12/09/2012 00:00,482119,-1951.14,REVENUE,BUPA CARE SERVICES,
Peterborough,http://opendatacommunities.org/id/unitary-authority/peterborough,Peterborough City Council,Adult Social Care,Older People,Supplies and Services,12/09/2012 00:00,482122,-959.01,REVENUE,BUPA CARE SERVICES,
Peterborough,http://opendatacommunities.org/id/unitary-authority/peterborough,Peterborough City Council,Adult Social Care,Older People,Supplies and Services,12/09/2012 00:00,482126,-708.11,REVENUE,BUPA CARE SERVICES,
Peterborough,http://opendatacommunities.org/id/unitary-authority/peterborough,Peterborough City Council,Adult Social Care,Older People,Supplies and Services,12/09/2012 00:00,482148,1776,REVENUE,Care UK Homecare Ltd,
Peterborough,http://opendatacommunities.org/id/unitary-authority/peterborough,Peterborough City Council,Adult Social Care,Older People,Supplies and Services,12/09/2012 00:00,482154,3022.5,REVENUE,Papworth Trust,
Peterborough,http://opendatacommunities.org/id/unitary-authority/peterborough,Peterborough City Council,Adult Social Care,Older People,Supplies and Services,12/09/2012 00:00,482164,6663.32,REVENUE,Care UK Homecare Ltd,
Peterborough,http://opendatacommunities.org/id/unitary-authority/peterborough,Peterborough City Council,Children's & Education Services - Education,Other School -related Education Functions,Supplies and Services,12/09/2012 00:00,482205,3039.77,REVENUE,Continuum Care & Educ. Group.,
Peterborough,http://opendatacommunities.org/id/unitary-authority/peterborough,Peterborough City Council,Adult Social Care,Older People,Supplies and Services,12/09/2012 00:00,482207,561.63,REVENUE,Saga Homecare,
Peterborough,http://opendatacommunities.org/id/unitary-authority/peterborough,Peterborough City Council,Adult Social Care,Support Services & Management Costs,Employees,12/09/2012 00:00,482209,1620,REVENUE,Caritas Recruitment,
Peterborough,http://opendatacommunities.org/id/unitary-authority/peterborough,Peterborough City Council,Adult Social Care,Older People,Supplies and Services,12/09/2012 00:00,482213,596.01,REVENUE,Saga Homecare,
Peterborough,http://opendatacommunities.org/id/unitary-authority/peterborough,Peterborough City Council,Highways and Transport Services,Parking Services,Supplies and Services,12/09/2012 00:00,482219,2654.4,REVENUE,Contract Signs Systems,
Peterborough,http://opendatacommunities.org/id/unitary-authority/peterborough,Peterborough City Council,Children's & Education Services - Children's Social Care,Other Children's & Families Services,Supplies and Services,12/09/2012 00:00,482227,1150.75,REVENUE,R S P LTD,
Peterborough,http://opendatacommunities.org/id/unitary-authority/peterborough,Peterborough City Council,Highways and Transport Services,"Transport planning, policy and strategy",Supplies and Services,12/09/2012 00:00,482244,9244.8,REVENUE,Hammerson Operations Ltd,
Peterborough,http://opendatacommunities.org/id/unitary-authority/peterborough,Peterborough City Council,Capital,Capital,Capital Pending Update to BS,12/09/2012 00:00,482248,142835.86,CAPITAL,Ringway Infrastructure Services,
Peterborough,http://opendatacommunities.org/id/unitary-authority/peterborough,Peterborough City Council,Housing Services,Private Sector Housing Renewal,Supplies and Services,12/09/2012 00:00,482271,2048.5,REVENUE,Nightingale Services,
Peterborough,http://opendatacommunities.org/id/unitary-authority/peterborough,Peterborough City Council,Adult Social Care,Adult Learning Disabilities,Supplies and Services,12/09/2012 00:00,482272,830,REVENUE,Mencap,
Peterborough,http://opendatacommunities.org/id/unitary-authority/peterborough,Peterborough City Council,Adult Social Care,Adult Mental Health,Third Party Payments,12/09/2012 00:00,482277,2035.16,REVENUE,Mencap,
Peterborough,http://opendatacommunities.org/id/unitary-authority/peterborough,Peterborough City Council,Children's & Education Services - Children's Social Care,Family Support Services,Employees,12/09/2012 00:00,482279,1264.8,REVENUE,Service Care Solutions Ltd,
Peterborough,http://opendatacommunities.org/id/unitary-authority/peterborough,Peterborough City Council,Adult Social Care,Adult Learning Disabilities,Supplies and Services,12/09/2012 00:00,482280,826.72,REVENUE,Mencap,
Peterborough,http://opendatacommunities.org/id/unitary-authority/peterborough,Peterborough City Council,Support Services,Support Services,Premises,12/09/2012 00:00,482283,7855.19,REVENUE,Baker Perkins Ltd,
Peterborough,http://opendatacommunities.org/id/unitary-authority/peterborough,Peterborough City Council,Adult Social Care,Older People,Supplies and Services,12/09/2012 00:00,482323,594.02,REVENUE,Hales Group Ltd,
Peterborough,http://opendatacommunities.org/id/unitary-authority/peterborough,Peterborough City Council,Adult Social Care,Older People,Supplies and Services,12/09/2012 00:00,482326,584.91,REVENUE,Hales Group Ltd,
Peterborough,http://opendatacommunities.org/id/unitary-authority/peterborough,Peterborough City Council,Adult Social Care,Older People,Supplies and Services,12/09/2012 00:00,482327,651,REVENUE,Saga Homecare,
Peterborough,http://opendatacommunities.org/id/unitary-authority/peterborough,Peterborough City Council,Adult Social Care,Older People,Supplies and Services,12/09/2012 00:00,482339,1226.5,REVENUE,Beaumont Healthcare Limited,
Peterborough,http://opendatacommunities.org/id/unitary-authority/peterborough,Peterborough City Council,Adult Social Care,Older People,Supplies and Services,12/09/2012 00:00,482340,797.5,REVENUE,Beaumont Healthcare Limited,
Peterborough,http://opendatacommunities.org/id/unitary-authority/peterborough,Peterborough City Council,Adult Social Care,Older People,Supplies and Services,12/09/2012 00:00,482349,655,REVENUE,Beaumont Healthcare Limited,
Peterborough,http://opendatacommunities.org/id/unitary-authority/peterborough,Peterborough City Council,Adult Social Care,Older People,Supplies and Services,12/09/2012 00:00,482354,585.28,REVENUE,Hales Group Ltd,
Peterborough,http://opendatacommunities.org/id/unitary-authority/peterborough,Peterborough City Council,Adult Social Care,Older People,Supplies and Services,12/09/2012 00:00,482355,516,REVENUE,Beaumont Healthcare Limited,
Peterborough,http://opendatacommunities.org/id/unitary-authority/peterborough,Peterborough City Council,Adult Social Care,Older People,Supplies and Services,12/09/2012 00:00,482358,2250.53,REVENUE,Beaumont Healthcare Limited,
Peterborough,http://opendatacommunities.org/id/unitary-authority/peterborough,Peterborough City Council,Adult Social Care,Older People,Supplies and Services,12/09/2012 00:00,482361,502.44,REVENUE,Saga Homecare,
Peterborough,http://opendatacommunities.org/id/unitary-authority/peterborough,Peterborough City Council,Adult Social Care,Older People,Supplies and Services,12/09/2012 00:00,482367,1200,REVENUE,Beaumont Healthcare Limited,
Peterborough,http://opendatacommunities.org/id/unitary-authority/peterborough,Peterborough City Council,Adult Social Care,Older People,Supplies and Services,12/09/2012 00:00,482369,521,REVENUE,Beaumont Healthcare Limited,
Peterborough,http://opendatacommunities.org/id/unitary-authority/peterborough,Peterborough City Council,Adult Social Care,Older People,Supplies and Services,12/09/2012 00:00,482377,744.16,REVENUE,Saga Homecare,
Peterborough,http://opendatacommunities.org/id/unitary-authority/peterborough,Peterborough City Council,Adult Social Care,Older People,Supplies and Services,12/09/2012 00:00,482382,2045,REVENUE,Beaumont Healthcare Limited,
Peterborough,http://opendatacommunities.org/id/unitary-authority/peterborough,Peterborough City Council,Adult Social Care,Older People,Supplies and Services,12/09/2012 00:00,482384,699.42,REVENUE,Saga Homecare,
Peterborough,http://opendatacommunities.org/id/unitary-authority/peterborough,Peterborough City Council,Adult Social Care,Older People,Supplies and Services,12/09/2012 00:00,482387,536.12,REVENUE,Hales Group Ltd,
Peterborough,http://opendatacommunities.org/id/unitary-authority/peterborough,Peterborough City Council,Adult Social Care,Older People,Supplies and Services,12/09/2012 00:00,482389,689.37,REVENUE,Saga Homecare,
Peterborough,http://opendatacommunities.org/id/unitary-authority/peterborough,Peterborough City Council,Adult Social Care,Older People,Supplies and Services,12/09/2012 00:00,482390,2329.52,REVENUE,Hales Group Ltd,
Peterborough,http://opendatacommunities.org/id/unitary-authority/peterborough,Peterborough City Council,Adult Social Care,Adult Learning Disabilities,Third Party Payments,12/09/2012 00:00,482392,7057.25,REVENUE,Saga Homecare,
Peterborough,http://opendatacommunities.org/id/unitary-authority/peterborough,Peterborough City Council,Adult Social Care,Older People,Supplies and Services,12/09/2012 00:00,482394,743.33,REVENUE,Saga Homecare,
Peterborough,http://opendatacommunities.org/id/unitary-authority/peterborough,Peterborough City Council,Adult Social Care,Older People,Supplies and Services,12/09/2012 00:00,482410,534.44,REVENUE,Hales Group Ltd,
Peterborough,http://opendatacommunities.org/id/unitary-authority/peterborough,Peterborough City Council,Adult Social Care,Older People,Supplies and Services,12/09/2012 00:00,482424,618.33,REVENUE,Hales Group Ltd,
Peterborough,http://opendatacommunities.org/id/unitary-authority/peterborough,Peterborough City Council,Adult Social Care,Adult Learning Disabilities,Third Party Payments,12/09/2012 00:00,482425,783.4,REVENUE,Mencap,
Peterborough,http://opendatacommunities.org/id/unitary-authority/peterborough,Peterborough City Council,Adult Social Care,Adult Learning Disabilities,Employees,12/09/2012 00:00,482446,1199.88,REVENUE,Randstad Care Ltd,
Peterborough,http://opendatacommunities.org/id/unitary-authority/peterborough,Peterborough City Council,Environmental and Regulatory Services,Regulatory services,Supplies and Services,12/09/2012 00:00,482448,750,REVENUE,"Snelling, Mr Charles",
Peterborough,http://opendatacommunities.org/id/unitary-authority/peterborough,Peterborough City Council,Adult Social Care,Older People,Supplies and Services,12/09/2012 00:00,482450,916.6,REVENUE,Hales Group Ltd,
Peterborough,http://opendatacommunities.org/id/unitary-authority/peterborough,Peterborough City Council,Capital,Capital,Capital Pending Update to BS,12/09/2012 00:00,482452,53120,CAPITAL,Lyster Grillet & Harding,
Peterborough,http://opendatacommunities.org/id/unitary-authority/peterborough,Peterborough City Council,Adult Social Care,Older People,Supplies and Services,12/09/2012 00:00,482464,575.93,REVENUE,Hales Group Ltd,
Peterborough,http://opendatacommunities.org/id/unitary-authority/peterborough,Peterborough City Council,Adult Social Care,Older People,Employees,12/09/2012 00:00,482477,1395,REVENUE,Falcon Recruitment & Training Ltd,
Peterborough,http://opendatacommunities.org/id/unitary-authority/peterborough,Peterborough City Council,Adult Social Care,Older People,Supplies and Services,12/09/2012 00:00,482478,542.66,REVENUE,Hales Group Ltd,
Peterborough,http://opendatacommunities.org/id/unitary-authority/peterborough,Peterborough City Council,Adult Social Care,Older People,Supplies and Services,12/09/2012 00:00,482487,528.26,REVENUE,Hales Group Ltd,
Peterborough,http://opendatacommunities.org/id/unitary-authority/peterborough,Peterborough City Council,Adult Social Care,Older People,Supplies and Services,12/09/2012 00:00,482491,1032.56,REVENUE,Hales Group Ltd,
Peterborough,http://opendatacommunities.org/id/unitary-authority/peterborough,Peterborough City Council,Adult Social Care,Older People,Supplies and Services,12/09/2012 00:00,482498,1788.55,REVENUE,Hales Group Ltd,
Peterborough,http://opendatacommunities.org/id/unitary-authority/peterborough,Peterborough City Council,Adult Social Care,Older People,Supplies and Services,12/09/2012 00:00,482500,511.83,REVENUE,Hales Group Ltd,
Peterborough,http://opendatacommunities.org/id/unitary-authority/peterborough,Peterborough City Council,Children's & Education Services - Education,Secondary,Employees,12/09/2012 00:00,482504,1028.6,REVENUE,IIC by Education (P'boro) Ltd,
Peterborough,http://opendatacommunities.org/id/unitary-authority/peterborough,Peterborough City Council,Children's & Education Services - Education,Secondary,Employees,12/09/2012 00:00,482510,1028.79,REVENUE,IIC by Education (P'boro) Ltd,
Peterborough,http://opendatacommunities.org/id/unitary-authority/peterborough,Peterborough City Council,Adult Social Care,Older People,Supplies and Services,12/09/2012 00:00,482512,794.98,REVENUE,Hales Group Ltd,
Peterborough,http://opendatacommunities.org/id/unitary-authority/peterborough,Peterborough City Council,Adult Social Care,Older People,Supplies and Services,12/09/2012 00:00,482525,520.93,REVENUE,Hales Group Ltd,
Peterborough,http://opendatacommunities.org/id/unitary-authority/peterborough,Peterborough City Council,Adult Social Care,Older People,Supplies and Services,12/09/2012 00:00,482535,534.55,REVENUE,Hales Group Ltd,
Peterborough,http://opendatacommunities.org/id/unitary-authority/peterborough,Peterborough City Council,Adult Social Care,Older People,Supplies and Services,12/09/2012 00:00,482538,537.58,REVENUE,Hales Group Ltd,
Peterborough,http://opendatacommunities.org/id/unitary-authority/peterborough,Peterborough City Council,Adult Social Care,Older People,Supplies and Services,12/09/2012 00:00,482541,1124.3,REVENUE,Hales Group Ltd,
Peterborough,http://opendatacommunities.org/id/unitary-authority/peterborough,Peterborough City Council,Adult Social Care,Older People,Supplies and Services,12/09/2012 00:00,482549,1868.22,REVENUE,Hales Group Ltd,
Peterborough,http://opendatacommunities.org/id/unitary-authority/peterborough,Peterborough City Council,Environmental and Regulatory Services,Waste Collection,Supplies and Services,12/09/2012 00:00,482555,-29217.24,REVENUE,Enterprise Managed Services Limited,
Peterborough,http://opendatacommunities.org/id/unitary-authority/peterborough,Peterborough City Council,Adult Social Care,Adult Learning Disabilities,Third Party Payments,12/09/2012 00:00,482559,528.16,REVENUE,Saga Homecare,
Peterborough,http://opendatacommunities.org/id/unitary-authority/peterborough,Peterborough City Council,Adult Social Care,Older People,Supplies and Services,12/09/2012 00:00,482564,527.08,REVENUE,Hales Group Ltd,
Peterborough,http://opendatacommunities.org/id/unitary-authority/peterborough,Peterborough City Council,Children's & Education Services - Education,Services to Young People,Supplies and Services,12/09/2012 00:00,482573,1867.6,REVENUE,StepUp,
Peterborough,http://opendatacommunities.org/id/unitary-authority/peterborough,Peterborough City Council,Adult Social Care,Adult Learning Disabilities,Third Party Payments,12/09/2012 00:00,482620,666.72,REVENUE,Mencap,
Peterborough,http://opendatacommunities.org/id/unitary-authority/peterborough,Peterborough City Council,Children's & Education Services - Children's Social Care,Children Looked After,Supplies and Services - Transfer Payments,12/09/2012 00:00,482695,-1578.45,REVENUE,Fostering Solutions,
Peterborough,http://opendatacommunities.org/id/unitary-authority/peterborough,Peterborough City Council,Adult Social Care,Adult Learning Disabilities,Third Party Payments,12/09/2012 00:00,482707,7458,REVENUE,Hales Group Ltd,
Peterborough,http://opendatacommunities.org/id/unitary-authority/peterborough,Peterborough City Council,Adult Social Care,Older People,Supplies and Services,12/09/2012 00:00,482708,2061.4,REVENUE,Hales Group Ltd,
Peterborough,http://opendatacommunities.org/id/unitary-authority/peterborough,Peterborough City Council,Adult Social Care,Older People,Supplies and Services,12/09/2012 00:00,482710,1500.16,REVENUE,Hales Group Ltd,
Peterborough,http://opendatacommunities.org/id/unitary-authority/peterborough,Peterborough City Council,Adult Social Care,Adult Learning Disabilities,Third Party Payments,12/09/2012 00:00,482715,529.9,REVENUE,Hales Group Ltd,
Peterborough,http://opendatacommunities.org/id/unitary-authority/peterborough,Peterborough City Council,Adult Social Care,Older People,Supplies and Services,12/09/2012 00:00,482718,505.97,REVENUE,Hales Group Ltd,
Peterborough,http://opendatacommunities.org/id/unitary-authority/peterborough,Peterborough City Council,Adult Social Care,Adult Learning Disabilities,Third Party Payments,12/09/2012 00:00,482730,836.44,REVENUE,Hales Group Ltd,
Peterborough,http://opendatacommunities.org/id/unitary-authority/peterborough,Peterborough City Council,Children's & Education Services - Children's Social Care,Children Looked After,Supplies and Services - Transfer Payments,12/09/2012 00:00,482777,46971.52,REVENUE,Cambian Autism Services Ltd,
Peterborough,http://opendatacommunities.org/id/unitary-authority/peterborough,Peterborough City Council,More than one Service Area Category,More than one Service Division,More than one Expenses Type,12/09/2012 00:00,482926,3537.45,"Mixture of Capital, Revenue and/or Balance Sheet",Optimum Plumbing & Heating Ltd,
Peterborough,http://opendatacommunities.org/id/unitary-authority/peterborough,Peterborough City Council,Children's & Education Services - Children's Social Care,Children Looked After,Supplies and Services - Transfer Payments,12/09/2012 00:00,482929,-3554.46,REVENUE,Fostering Solutions,
Peterborough,http://opendatacommunities.org/id/unitary-authority/peterborough,Peterborough City Council,Children's & Education Services - Children's Social Care,Other Children's & Families Services,Premises,12/09/2012 00:00,482937,9657.9,REVENUE,Mapeley Gamma Acquisition Co Ltd,
Peterborough,http://opendatacommunities.org/id/unitary-authority/peterborough,Peterborough City Council,Cultural and Related Services,Culture & Heritage,Supplies and Services,12/09/2012 00:00,482999,2118,REVENUE,Fools Paradise Ltd,
Peterborough,http://opendatacommunities.org/id/unitary-authority/peterborough,Peterborough City Council,Adult Social Care,Older People,Supplies and Services,12/09/2012 00:00,483042,508.77,REVENUE,Hales Group Ltd,
Peterborough,http://opendatacommunities.org/id/unitary-authority/peterborough,Peterborough City Council,Adult Social Care,Older People,Supplies and Services,12/09/2012 00:00,483046,1430.94,REVENUE,Hales Group Ltd,
Peterborough,http://opendatacommunities.org/id/unitary-authority/peterborough,Peterborough City Council,Adult Social Care,Older People,Supplies and Services,12/09/2012 00:00,483053,936.72,REVENUE,Hales Group Ltd,
Peterborough,http://opendatacommunities.org/id/unitary-authority/peterborough,Peterborough City Council,Adult Social Care,Older People,Supplies and Services,12/09/2012 00:00,483056,544.35,REVENUE,Hales Group Ltd,
Peterborough,http://opendatacommunities.org/id/unitary-authority/peterborough,Peterborough City Council,Adult Social Care,Older People,Supplies and Services,12/09/2012 00:00,483059,618.33,REVENUE,Hales Group Ltd,
Peterborough,http://opendatacommunities.org/id/unitary-authority/peterborough,Peterborough City Council,Adult Social Care,Adult Learning Disabilities,Third Party Payments,12/09/2012 00:00,483061,534.17,REVENUE,Hales Group Ltd,
Peterborough,http://opendatacommunities.org/id/unitary-authority/peterborough,Peterborough City Council,Adult Social Care,Older People,Supplies and Services,12/09/2012 00:00,483095,531.15,REVENUE,Hales Group Ltd,
Peterborough,http://opendatacommunities.org/id/unitary-authority/peterborough,Peterborough City Council,Adult Social Care,Older People,Supplies and Services,12/09/2012 00:00,483097,537.32,REVENUE,Hales Group Ltd,
Peterborough,http://opendatacommunities.org/id/unitary-authority/peterborough,Peterborough City Council,Cultural and Related Services,Culture & Heritage,Supplies and Services,12/09/2012 00:00,483131,1620,REVENUE,Tarby Davenport,
Peterborough,http://opendatacommunities.org/id/unitary-authority/peterborough,Peterborough City Council,Environmental and Regulatory Services,Regulatory services,Employees,12/09/2012 00:00,483156,1126.82,REVENUE,The Synergy Group,
Peterborough,http://opendatacommunities.org/id/unitary-authority/peterborough,Peterborough City Council,Planning Services,Economic Development,Employees,12/09/2012 00:00,483159,1446.53,REVENUE,The Synergy Group,
Peterborough,http://opendatacommunities.org/id/unitary-authority/peterborough,Peterborough City Council,Environmental and Regulatory Services,Regulatory services,Employees,12/09/2012 00:00,483176,1579.93,REVENUE,The Synergy Group,
Peterborough,http://opendatacommunities.org/id/unitary-authority/peterborough,Peterborough City Council,Planning Services,Economic Development,Employees,12/09/2012 00:00,483183,1618.94,REVENUE,The Synergy Group,
Peterborough,http://opendatacommunities.org/id/unitary-authority/peterborough,Peterborough City Council,Planning Services,Economic Development,Employees,12/09/2012 00:00,483186,2626.96,REVENUE,The Synergy Group,
Peterborough,http://opendatacommunities.org/id/unitary-authority/peterborough,Peterborough City Council,Adult Social Care,Older People,Supplies and Services,12/09/2012 00:00,483187,727.93,REVENUE,Hales Group Ltd,
Peterborough,http://opendatacommunities.org/id/unitary-authority/peterborough,Peterborough City Council,Planning Services,Economic Development,Employees,12/09/2012 00:00,483193,1870.02,REVENUE,The Synergy Group,
Peterborough,http://opendatacommunities.org/id/unitary-authority/peterborough,Peterborough City Council,Adult Social Care,Older People,Supplies and Services,12/09/2012 00:00,483194,1592.8,REVENUE,Hales Group Ltd,
Peterborough,http://opendatacommunities.org/id/unitary-authority/peterborough,Peterborough City Council,Environmental and Regulatory Services,Regulatory services,Employees,12/09/2012 00:00,483197,1191.94,REVENUE,The Synergy Group,
Peterborough,http://opendatacommunities.org/id/unitary-authority/peterborough,Peterborough City Council,Adult Social Care,Older People,Supplies and Services,12/09/2012 00:00,483203,1133.47,REVENUE,Hales Group Ltd,
Peterborough,http://opendatacommunities.org/id/unitary-authority/peterborough,Peterborough City Council,Adult Social Care,Older People,Supplies and Services,12/09/2012 00:00,483206,759.84,REVENUE,Hales Group Ltd,
Peterborough,http://opendatacommunities.org/id/unitary-authority/peterborough,Peterborough City Council,Adult Social Care,Older People,Supplies and Services,12/09/2012 00:00,483207,672.35,REVENUE,Hales Group Ltd,
Peterborough,http://opendatacommunities.org/id/unitary-authority/peterborough,Peterborough City Council,Adult Social Care,Older People,Supplies and Services,12/09/2012 00:00,483210,707.98,REVENUE,Hales Group Ltd,
Peterborough,http://opendatacommunities.org/id/unitary-authority/peterborough,Peterborough City Council,Adult Social Care,Older People,Supplies and Services,12/09/2012 00:00,483215,515.66,REVENUE,Hales Group Ltd,
Peterborough,http://opendatacommunities.org/id/unitary-authority/peterborough,Peterborough City Council,Adult Social Care,Older People,Supplies and Services,12/09/2012 00:00,483220,797.31,REVENUE,Hales Group Ltd,
Peterborough,http://opendatacommunities.org/id/unitary-authority/peterborough,Peterborough City Council,Planning Services,Economic Development,Employees,12/09/2012 00:00,483221,1870.02,REVENUE,The Synergy Group,
Peterborough,http://opendatacommunities.org/id/unitary-authority/peterborough,Peterborough City Council,Planning Services,Economic Development,Employees,12/09/2012 00:00,483224,1373.93,REVENUE,The Synergy Group,
Peterborough,http://opendatacommunities.org/id/unitary-authority/peterborough,Peterborough City Council,Adult Social Care,Older People,Supplies and Services,12/09/2012 00:00,483232,715.1,REVENUE,Hales Group Ltd,
Peterborough,http://opendatacommunities.org/id/unitary-authority/peterborough,Peterborough City Council,Adult Social Care,Older People,Supplies and Services,12/09/2012 00:00,483239,530.75,REVENUE,Hales Group Ltd,
Peterborough,http://opendatacommunities.org/id/unitary-authority/peterborough,Peterborough City Council,Children's & Education Services - Children's Social Care,More than one Service Division,Employees,12/09/2012 00:00,483251,1603.28,REVENUE,Capita Resourcing Ltd,
Peterborough,http://opendatacommunities.org/id/unitary-authority/peterborough,Peterborough City Council,Adult Social Care,Older People,Supplies and Services,12/09/2012 00:00,483273,545.02,REVENUE,Hales Group Ltd,
Peterborough,http://opendatacommunities.org/id/unitary-authority/peterborough,Peterborough City Council,Children's & Education Services - Children's Social Care,Other Children's & Families Services,Employees,12/09/2012 00:00,483275,1726.2,REVENUE,Sellick Partnership Group Limited,
Peterborough,http://opendatacommunities.org/id/unitary-authority/peterborough,Peterborough City Council,Adult Social Care,Older People,Supplies and Services,12/09/2012 00:00,483285,506.72,REVENUE,Hales Group Ltd,
Peterborough,http://opendatacommunities.org/id/unitary-authority/peterborough,Peterborough City Council,Adult Social Care,Older People,Supplies and Services,12/09/2012 00:00,483292,681.63,REVENUE,Hales Group Ltd,
Peterborough,http://opendatacommunities.org/id/unitary-authority/peterborough,Peterborough City Council,Adult Social Care,Older People,Supplies and Services,12/09/2012 00:00,483301,973.22,REVENUE,Hales Group Ltd,
Peterborough,http://opendatacommunities.org/id/unitary-authority/peterborough,Peterborough City Council,Adult Social Care,Older People,Supplies and Services,12/09/2012 00:00,483307,1792.75,REVENUE,Hales Group Ltd,
Peterborough,http://opendatacommunities.org/id/unitary-authority/peterborough,Peterborough City Council,Adult Social Care,Support Services & Management Costs,Employees,12/09/2012 00:00,483313,554.4,REVENUE,Reed Specialist Recruitment,
Peterborough,http://opendatacommunities.org/id/unitary-authority/peterborough,Peterborough City Council,Adult Social Care,Support Services & Management Costs,Employees,12/09/2012 00:00,483326,578.02,REVENUE,Reed Specialist Recruitment,
Peterborough,http://opendatacommunities.org/id/unitary-authority/peterborough,Peterborough City Council,Adult Social Care,Older People,Supplies and Services,12/09/2012 00:00,483329,1604.82,REVENUE,Hales Group Ltd,
